Department,Entity, Transaction Date, Expense Type, Expense Area, Supplier Name,component number, Amount, Invoice Description
DFID,DFID,30/10/2015,Training - Course Fees ,Finance and Corporate Performance Division ,KAPLAN,100008-104 ,582.00,
DFID,DFID,28/10/2015,Air fares ,East and Central Africa ,Corporate Travel Provider ,100016-107 ,832.80,
DFID,DFID,28/10/2015,Air fares ,Research and Evidence Division ,Corporate Travel Provider ,100039-108 ,"1,241.36",
DFID,DFID,28/10/2015,Air fares ,Research and Evidence Division ,Corporate Travel Provider ,100039-111 ,781.46,
DFID,DFID,09/10/2015,Air fares ,Asia  Caribbean and Overseas Territories ,Corporate Travel Provider ,100084-101 ,506.96,
DFID,DFID,09/10/2015,Air fares ,Asia  Caribbean and Overseas Territories ,Corporate Travel Provider ,100084-101 ,"2,050.10",
DFID,DFID,09/10/2015,Air fares ,Research and Evidence Division ,Corporate Travel Provider ,100088-101 ,862.50,
DFID,DFID,09/10/2015,Air fares ,Research and Evidence Division ,Corporate Travel Provider ,100088-101 ,521.14,
DFID,DFID,28/10/2015,Air fares ,Research and Evidence Division ,Corporate Travel Provider ,100088-101 ,627.81,
DFID,DFID,30/10/2015,Reproduction & Printing Materials ,Group Operations ,Banner,100106-101 ,508.32,
DFID,DFID,30/10/2015,Employee Training and Conference ,Internal Audit , ACFE (Association of Certified Fraud Examiners) ,100121-101 ,686.34,
DFID,DFID,09/10/2015,Air fares ,Internal Audit ,Corporate Travel Provider ,100121-101 ,555.03,
DFID,DFID,28/10/2015,Air fares ,Economic Development Division ,Corporate Travel Provider ,100111-101 ,"1,431.51",
DFID,DFID,28/10/2015,Air fares ,Economic Development Division ,Corporate Travel Provider ,100111-101 ,"1,432.31",
DFID,DFID,28/10/2015,Air fares ,Communications Division ,Corporate Travel Provider ,100197-101 ,"1,799.60",
DFID,DFID,28/10/2015,Air fares ,Communications Division ,Corporate Travel Provider ,100197-101 ,"1,666.56",
DFID,DFID,28/10/2015,Air fares ,Policy Division ,Corporate Travel Provider ,100191-101 ,"1,420.86",
DFID,DFID,28/10/2015,Air fares ,Top Management Group ,Corporate Travel Provider ,100232-103 ,"3,399.90",
DFID,DFID,28/10/2015,Air fares ,Top Management Group ,Corporate Travel Provider ,100232-103 ,"2,323.26",
DFID,DFID,09/10/2015,Air fares ,Top Management Group ,Corporate Travel Provider ,100232-103 ,"2,417.30",
DFID,DFID,09/10/2015,Air fares ,Top Management Group ,Corporate Travel Provider ,100232-103 ,"5,274.16",
DFID,DFID,09/10/2015,Air fares ,Top Management Group ,Corporate Travel Provider ,100232-103 ,662.00,
DFID,DFID,09/10/2015,Air fares ,Top Management Group ,Corporate Travel Provider ,100232-103 ,"2,965.46",
DFID,DFID,09/10/2015,Air fares ,Top Management Group ,Corporate Travel Provider ,100232-103 ,903.16,
DFID,DFID,09/10/2015,Air fares ,Top Management Group ,Corporate Travel Provider ,100232-103 ,"2,164.37",
DFID,DFID,28/10/2015,Air fares ,Top Management Group ,Corporate Travel Provider ,100232-104 ,"5,212.80",
DFID,DFID,09/10/2015,Air fares ,Top Management Group ,Corporate Travel Provider ,100232-106 ,"1,179.66",
DFID,DFID,09/10/2015,Air fares ,Top Management Group ,Corporate Travel Provider ,100232-106 ,"1,523.30",
DFID,DFID,09/10/2015,Air fares ,Top Management Group ,Corporate Travel Provider ,100232-106 ,"1,523.30",
DFID,DFID,09/10/2015,Air fares ,Top Management Group ,Corporate Travel Provider ,100232-106 ,661.66,
DFID,DFID,02/10/2015,Hotels - Accommodation only ,Top Management Group ,Foreign & Commonwealth Office ,100232-106 ,649.75,
DFID,DFID,09/10/2015,Air fares ,Top Management Group ,Corporate Travel Provider ,100232-106 ,662.00,
DFID,DFID,28/10/2015,Air fares ,Top Management Group ,Corporate Travel Provider ,100232-107 ,"3,493.12",
DFID,DFID,28/10/2015,Air fares ,Top Management Group ,Corporate Travel Provider ,100232-107 ,"3,493.12",
DFID,DFID,28/10/2015,Air fares ,Top Management Group ,Corporate Travel Provider ,100232-107 ,"2,274.70",
DFID,DFID,28/10/2015,Air fares ,Top Management Group ,Corporate Travel Provider ,100232-108 ,"2,323.26",
DFID,DFID,28/10/2015,Air fares ,Top Management Group ,Corporate Travel Provider ,100232-108 ,"2,323.26",
DFID,DFID,28/10/2015,Air fares ,Top Management Group ,Corporate Travel Provider ,100232-108 ,"3,399.90",
DFID,DFID,09/10/2015,Air fares ,Top Management Group ,Corporate Travel Provider ,100232-108 ,"2,417.30",
DFID,DFID,09/10/2015,Air fares ,Top Management Group ,Corporate Travel Provider ,100232-108 ,"5,274.16",
DFID,DFID,09/10/2015,Air fares ,Top Management Group ,Corporate Travel Provider ,100232-108 ,"5,274.16",
DFID,DFID,09/10/2015,Air fares ,Top Management Group ,Corporate Travel Provider ,100232-108 ,"2,164.37",
DFID,DFID,09/10/2015,Air fares ,Top Management Group ,Corporate Travel Provider ,100232-108 ,"2,164.37",
DFID,DFID,09/10/2015,Air fares ,Top Management Group ,Corporate Travel Provider ,100232-108 ,530.96,
DFID,DFID,09/10/2015,Air fares ,Top Management Group ,Corporate Travel Provider ,100232-108 ,662.00,
DFID,DFID,09/10/2015,Air fares ,Top Management Group ,Corporate Travel Provider ,100232-108 ,"2,417.30",
DFID,DFID,09/10/2015,Air fares ,Top Management Group ,Corporate Travel Provider ,100232-108 ,"2,965.46",
DFID,DFID,09/10/2015,Air fares ,Top Management Group ,Corporate Travel Provider ,100232-108 ,"2,965.46",
DFID,DFID,09/10/2015,Air fares ,Top Management Group ,Corporate Travel Provider ,100232-108 ,958.10,
DFID,DFID,09/10/2015,Air fares ,Top Management Group ,Corporate Travel Provider ,100232-108 ,958.10,
DFID,DFID,09/10/2015,Air fares ,Top Management Group ,Corporate Travel Provider ,100232-105 ,760.60,
DFID,DFID,09/10/2015,Air fares ,Top Management Group ,Corporate Travel Provider ,100232-105 ,"1,573.96",
DFID,DFID,09/10/2015,Air fares ,Top Management Group ,Corporate Travel Provider ,100232-105 ,"2,050.20",
DFID,DFID,09/10/2015,Air fares ,Top Management Group ,Corporate Travel Provider ,100232-105 ,"1,961.06",
DFID,DFID,09/10/2015,Other passenger transport ,Central Department Division ,Corporate Travel Provider ,100259-101 ,599.00,
DFID,DFID,09/10/2015,Other passenger transport ,Central Department Division ,Corporate Travel Provider ,100259-101 ,900.00,
DFID,DFID,09/10/2015,Other passenger transport ,Central Department Division ,Corporate Travel Provider ,100259-101 ,"1,440.60",
DFID,DFID,09/10/2015,Hotels - Accommodation only ,Human Resources ,Corporate Travel Provider ,100269-158 ,"3,461.24",
DFID,DFID,09/10/2015,Air fares ,Policy Division ,Corporate Travel Provider ,100274-111 ,"3,489.76",
DFID,DFID,30/10/2015,Conferences  Seminars & Meeting/Event Resource ,Policy Division ,Chatham House Royal Institute of International Affairs  ,100274-111 ,630.00,
DFID,DFID,28/10/2015,Air fares ,Policy Division ,Corporate Travel Provider ,100274-111 ,"1,343.51",
DFID,DFID,28/10/2015,Air fares ,Policy Division ,Corporate Travel Provider ,100274-111 ,"1,171.64",
DFID,DFID,28/10/2015,Air fares ,Policy Division ,Corporate Travel Provider ,100274-111 ,824.46,
DFID,DFID,28/10/2015,Air fares ,Policy Division ,Corporate Travel Provider ,100274-111 ,824.46,
DFID,DFID,09/10/2015,Air fares ,Policy Division ,Corporate Travel Provider ,100275-105 ,857.91,
DFID,DFID,09/10/2015,Air fares ,Policy Division ,Corporate Travel Provider ,100275-105 ,900.86,
DFID,DFID,09/10/2015,Air fares ,Policy Division ,Corporate Travel Provider ,100277-101 ,758.36,
DFID,DFID,28/10/2015,Air fares ,Policy Division ,Corporate Travel Provider ,100277-101 ,620.46,
DFID,DFID,28/10/2015,Air fares ,Policy Division ,Corporate Travel Provider ,100277-102 ,651.91,
DFID,DFID,28/10/2015,Air fares ,Middle East  Humanitarian & Conflict Division ,Corporate Travel Provider ,100303-101 ,554.45,
DFID,DFID,26/10/2015,Other passenger transport ,Western Asia Division ,Foreign & Commonwealth Office ,101601-110 ,"1,235.77",
DFID,DFID,28/10/2015,Air fares ,Western Asia Division ,Corporate Travel Provider ,101601-110 ,"1,708.44",
DFID,DFID,09/10/2015,Air fares ,Western Asia Division ,Corporate Travel Provider ,101601-110 ,"2,442.35",
DFID,DFID,09/10/2015,Air fares ,Western Asia Division ,Corporate Travel Provider ,101601-110 ,548.70,
DFID,DFID,09/10/2015,Air fares ,Western Asia Division ,Corporate Travel Provider ,101601-110 ,"1,149.40",
DFID,DFID,28/10/2015,Air fares ,West and Southern Africa ,Corporate Travel Provider ,101610-101 ,824.40,
DFID,DFID,28/10/2015,Air fares ,West and Southern Africa ,Corporate Travel Provider ,101610-101 ,904.00,
DFID,DFID,26/10/2015,Air fares ,East and Central Africa ,Foreign & Commonwealth Office ,101612-101 ,903.74,
DFID,DFID,02/10/2015,Training - Travel & Subsistence ,East and Central Africa ,Foreign & Commonwealth Office ,101612-101 ,597.48,
DFID,DFID,02/10/2015,Hotels - Accommodation only ,East and Central Africa ,Foreign & Commonwealth Office ,101612-101 ,"1,196.06",
DFID,DFID,02/10/2015,Secure Staff Accommodation ,East and Central Africa ,Foreign & Commonwealth Office ,101612-101 ,"10,466.00",
DFID,DFID,28/10/2015,Air fares ,West and Southern Africa ,Corporate Travel Provider ,101618-101 ,"1,325.90",
DFID,DFID,28/10/2015,Air fares ,West and Southern Africa ,Corporate Travel Provider ,101618-101 ,701.70,
DFID,DFID,28/10/2015,Air fares ,West and Southern Africa ,Corporate Travel Provider ,101620-102 ,739.46,
DFID,DFID,28/10/2015,Air fares ,West and Southern Africa ,Corporate Travel Provider ,101620-102 ,704.46,
DFID,DFID,28/10/2015,Air fares ,Asia  Caribbean and Overseas Territories ,Corporate Travel Provider ,101621-101 ,967.48,
DFID,DFID,09/10/2015,Air fares ,Asia  Caribbean and Overseas Territories ,Corporate Travel Provider ,101621-101 ,714.00,
DFID,DFID,26/10/2015,Storage & Distribution costs ,West and Southern Africa ,Foreign & Commonwealth Office ,101622-105 ,"2,146.11",
DFID,DFID,28/10/2015,Air fares ,West and Southern Africa ,Supplier Name withheld ,101622-106 ,"1,250.72",
DFID,DFID,28/10/2015,Air fares ,West and Southern Africa ,Supplier Name withheld ,101622-106 ,"1,250.72",
DFID,DFID,28/10/2015,Air fares ,West and Southern Africa ,Supplier Name withheld ,101622-106 ,991.50,
DFID,DFID,28/10/2015,Air fares ,West and Southern Africa ,Supplier Name withheld ,101622-106 ,991.50,
DFID,DFID,28/10/2015,Air fares ,West and Southern Africa ,Supplier Name withheld ,101622-106 ,991.50,
DFID,DFID,28/10/2015,Air fares ,East and Central Africa ,Corporate Travel Provider ,101625-102 ,"1,322.63",
DFID,DFID,09/10/2015,Air fares ,East and Central Africa ,Corporate Travel Provider ,101625-102 ,756.86,
DFID,DFID,28/10/2015,Air fares ,East and Central Africa ,Corporate Travel Provider ,101625-103 ,507.11,
DFID,DFID,28/10/2015,Air fares ,East and Central Africa ,Corporate Travel Provider ,101625-103 ,750.51,
DFID,DFID,09/10/2015,Air fares ,East and Central Africa ,Corporate Travel Provider ,101625-108 ,619.31,
DFID,DFID,28/10/2015,Air fares ,East and Central Africa ,Corporate Travel Provider ,101634-101 ,604.27,
DFID,DFID,09/10/2015,Air fares ,East and Central Africa ,Corporate Travel Provider ,101633-101 ,762.35,
DFID,DFID,09/10/2015,Air fares ,East and Central Africa ,Corporate Travel Provider ,101635-101 ,810.41,
DFID,DFID,09/10/2015,Air fares ,East and Central Africa ,Corporate Travel Provider ,101635-101 ,629.86,
DFID,DFID,02/10/2015,Training - Travel & Subsistence ,Asia  Caribbean and Overseas Territories ,Foreign & Commonwealth Office ,101636-101 ,572.74,
DFID,DFID,02/10/2015,Training - Travel & Subsistence ,Asia  Caribbean and Overseas Territories ,Foreign & Commonwealth Office ,101636-101 ,596.47,
DFID,DFID,28/10/2015,Hotels - Accommodation only ,West and Southern Africa ,Corporate Travel Provider ,101637-102 ,"1,144.74",
DFID,DFID,09/10/2015,Air fares ,West and Southern Africa ,Corporate Travel Provider ,101638-101 ,615.56,
DFID,DFID,02/10/2015,Conferences  Seminars & Meeting/Event Resource ,Western Asia Division ,Foreign & Commonwealth Office ,114450-101 ,859.86,
DFID,DFID,28/10/2015,Hotels - Accommodation only ,Business Solutions Division Level ,Corporate Travel Provider ,200001-101 ,968.86,
DFID,DFID,09/10/2015,Air fares ,Business Solutions Division Level ,Corporate Travel Provider ,200001-101 ,639.39,
DFID,DFID,09/10/2015,Air fares ,Business Solutions Division Level ,Corporate Travel Provider ,200001-101 ,672.17,
DFID,DFID,09/10/2015,Hotels - Accommodation only ,Business Solutions Division Level ,Corporate Travel Provider ,200001-101 ,638.71,
DFID,DFID,28/10/2015,Air fares ,Western Asia Division ,Corporate Travel Provider ,201111-101 ,"1,651.05",
DFID,DFID,26/10/2015,Cleaning Costs ,Middle East  Humanitarian & Conflict Division ,Foreign & Commonwealth Office ,201705-101 ,648.01,
DFID,DFID,09/10/2015,Air fares ,Middle East  Humanitarian & Conflict Division ,Corporate Travel Provider ,201705-101 ,979.16,
DFID,DFID,28/10/2015,Air fares ,West and Southern Africa ,Corporate Travel Provider ,201806-103 ,704.36,
DFID,DFID,09/10/2015,Air fares ,Economic Development Division ,Corporate Travel Provider ,202259-101 ,"1,035.01",
DFID,DFID,09/10/2015,Air fares ,Research and Evidence Division ,Corporate Travel Provider ,202348-101 ,604.98,
DFID,DFID,09/10/2015,Air fares ,Research and Evidence Division ,Corporate Travel Provider ,202348-101 ,722.00,
DFID,DFID,09/10/2015,Air fares ,Research and Evidence Division ,Corporate Travel Provider ,202392-101 ,"1,719.95",
DFID,DFID,09/10/2015,Air fares ,Research and Evidence Division ,Corporate Travel Provider ,202392-101 ,919.14,
DFID,DFID,09/10/2015,Air fares ,Research and Evidence Division ,Corporate Travel Provider ,202392-101 ,919.14,
DFID,DFID,28/10/2015,Air fares ,Research and Evidence Division ,Corporate Travel Provider ,202392-102 ,901.66,
DFID,DFID,09/10/2015,Air fares ,Research and Evidence Division ,Corporate Travel Provider ,202392-105 ,900.86,
DFID,DFID,09/10/2015,Air fares ,Research and Evidence Division ,Corporate Travel Provider ,202392-107 ,"1,139.52",
DFID,DFID,28/10/2015,Air fares ,Policy Division ,Corporate Travel Provider ,202396-101 ,535.02,
DFID,DFID,28/10/2015,Air fares ,Policy Division ,Corporate Travel Provider ,202402-107 ,793.42,
DFID,DFID,28/10/2015,Air fares ,Asia  Caribbean and Overseas Territories ,Corporate Travel Provider ,202403-101 ,"1,089.76",
DFID,DFID,28/10/2015,Air fares ,Policy Division ,Corporate Travel Provider ,202419-101 ,622.92,
DFID,DFID,28/10/2015,Air fares ,Policy Division ,Corporate Travel Provider ,202419-101 ,595.17,
DFID,DFID,09/10/2015,Air fares ,Policy Division ,Corporate Travel Provider ,202419-101 ,550.44,
DFID,DFID,28/10/2015,Air fares ,Policy Division ,Corporate Travel Provider ,202419-104 ,956.01,
DFID,DFID,28/10/2015,Air fares ,Policy Division ,Corporate Travel Provider ,202419-104 ,574.12,
DFID,DFID,28/10/2015,Air fares ,Economic Development Division ,Corporate Travel Provider ,202432-101 ,638.59,
DFID,DFID,26/10/2015,Air fares ,East and Central Africa ,Foreign & Commonwealth Office ,202594-101 ,554.15,
DFID,DFID,28/10/2015,Air fares ,East and Central Africa ,Corporate Travel Provider ,202594-101 ,504.65,
DFID,DFID,28/10/2015,Air fares ,East and Central Africa ,Corporate Travel Provider ,202594-101 ,563.80,
DFID,DFID,28/10/2015,Air fares ,East and Central Africa ,Corporate Travel Provider ,202594-101 ,"1,588.63",
DFID,DFID,28/10/2015,Air fares ,East and Central Africa ,Corporate Travel Provider ,202594-101 ,815.75,
DFID,DFID,09/10/2015,Air fares ,East and Central Africa ,Corporate Travel Provider ,202594-101 ,501.10,
DFID,DFID,28/10/2015,Air fares ,Asia  Caribbean and Overseas Territories ,Corporate Travel Provider ,202775-108 ,565.70,
DFID,DFID,26/10/2015,Joint programme contribution ,Asia  Caribbean and Overseas Territories ,Foreign & Commonwealth Office ,203478-105 ,"1,054.80",
DFID,DFID,26/10/2015,Air fares ,Asia  Caribbean and Overseas Territories ,Foreign & Commonwealth Office ,203478-105 ,746.20,
DFID,DFID,26/10/2015,Joint programme contribution ,Asia  Caribbean and Overseas Territories ,Foreign & Commonwealth Office ,203478-105 ,526.36,
DFID,DFID,26/10/2015,Joint programme contribution ,Asia  Caribbean and Overseas Territories ,Foreign & Commonwealth Office ,203478-105 ,531.39,
DFID,DFID,26/10/2015,DFID Purchased Relief Supplies ,West and Southern Africa ,Foreign & Commonwealth Office ,203674-103 ,"2,136.22",
DFID,DFID,28/10/2015,Air fares ,Research and Evidence Division ,Corporate Travel Provider ,203874-101 ,607.80,
DFID,DFID,28/10/2015,Air fares ,Research and Evidence Division ,Corporate Travel Provider ,203874-102 ,641.06,
DFID,DFID,09/10/2015,Hotels - Accommodation only ,Asia  Caribbean and Overseas Territories ,Corporate Travel Provider ,204053-101 ,598.60,
DFID,DFID,02/10/2015,Aid Programme - Humanitarian Material Relief Assistance and Services ,Middle East  Humanitarian & Conflict Division ,Foreign & Commonwealth Office ,204516-103 ,644.58,
DFID,DFID,02/10/2015,Aid Programme - Humanitarian Material Relief Assistance and Services ,Middle East  Humanitarian & Conflict Division ,Foreign & Commonwealth Office ,204516-103 ,"1,045.01",
DFID,DFID,28/10/2015,Hotels - Accommodation only ,Western Asia Division ,Corporate Travel Provider ,204619-102 ,603.74,
DFID,DFID,28/10/2015,Air fares ,Regional Directorate ,Corporate Travel Provider ,204891-101 ,718.61,
DFID,DFID,28/10/2015,Air fares ,Regional Directorate ,Corporate Travel Provider ,204891-101 ,669.63,
DFID,DFID,28/10/2015,Air fares ,Regional Directorate ,Corporate Travel Provider ,204892-101 ,923.50,
DFID,DFID,28/10/2015,Air fares ,Regional Directorate ,Corporate Travel Provider ,204892-101 ,913.40,
DFID,DFID,28/10/2015,Air fares ,Regional Directorate ,Corporate Travel Provider ,204892-101 ,"1,044.51",
DFID,DFID,28/10/2015,Air fares ,Regional Directorate ,Corporate Travel Provider ,204892-101 ,743.05,
DFID,DFID,28/10/2015,Air fares ,Regional Directorate ,Corporate Travel Provider ,204892-101 ,681.40,
DFID,DFID,28/10/2015,Air fares ,Regional Directorate ,Corporate Travel Provider ,204892-101 ,"1,119.50",
DFID,DFID,09/10/2015,Air fares ,Regional Directorate ,Corporate Travel Provider ,204892-101 ,564.76,
DFID,DFID,09/10/2015,Air fares ,Regional Directorate ,Corporate Travel Provider ,204892-101 ,"2,247.31",
DFID,DFID,09/10/2015,Air fares ,Regional Directorate ,Corporate Travel Provider ,204892-101 ,"1,065.60",
DFID,DFID,09/10/2015,Air fares ,Regional Directorate ,Corporate Travel Provider ,204892-101 ,691.15,
DFID,DFID,09/10/2015,Air fares ,Regional Directorate ,Corporate Travel Provider ,204892-101 ,692.64,
DFID,DFID,28/10/2015,Air fares ,Non-Departmental Public Body ,Corporate Travel Provider ,204873-103 ,"1,671.16",
DFID,DFID,09/10/2015,Air fares ,Middle East  Humanitarian & Conflict Division ,Corporate Travel Provider ,204981-101 ,569.12,
DFID,DFID,26/10/2015,Hotels - Accommodation only ,Middle East  Humanitarian & Conflict Division ,Foreign & Commonwealth Office ,204982-101 ,646.25,
DFID,DFID,26/10/2015,Hotels - Accommodation only ,Middle East  Humanitarian & Conflict Division ,Foreign & Commonwealth Office ,204982-101 ,530.10,
DFID,DFID,28/10/2015,Air fares ,Middle East  Humanitarian & Conflict Division ,Corporate Travel Provider ,204982-101 ,781.46,
DFID,DFID,09/10/2015,Air fares ,PGP Directorate ,Corporate Travel Provider ,205044-101 ,"1,082.23",
DFID,DFID,26/10/2015,Project delivery costs – supplier services ,Western Asia Division ,Foreign & Commonwealth Office ,202495-111 ,833.41,
DFID,DFID,26/10/2015,Office Equipment - Purchases ,East and Central Africa ,Foreign & Commonwealth Office ,202913-104 ,"1,226.90",
DFID,DFID,26/10/2015,Repairs  Maint  Alter - Property & Constrct. Services ,East and Central Africa ,Foreign & Commonwealth Office ,202913-104 ,555.42,
DFID,DFID,26/10/2015,Project delivery costs – supplier services ,Asia  Caribbean and Overseas Territories ,Foreign & Commonwealth Office ,203012-102 ,"19,943.99",
DFID,DFID,26/10/2015,Project delivery costs – supplier services ,West and Southern Africa ,Foreign & Commonwealth Office ,104223-101 ,"5,995.19",
DFID,DFID,30/10/2015,Computer Consumables ,Business Solutions Division Level ,MISCO Ltd,200004-125 ,"1,291.84",
DFID,DFID,02/10/2015,Project delivery costs – supplier services ,Policy Division ,Foreign & Commonwealth Office ,201724-124 ,"2,066.83",
DFID,DFID,06/10/2015,Aid Programme - Partnership Programme Arrangements ,Policy Division ,ACTIONAID ,202663-101 ,"1,029,751.00",
DFID,DFID,05/10/2015,Aid Programme - Accountable Grant Payments ,Research and Evidence Division ,ASSOCIATION OF COMMONWEALTH UNIVER ,202004-101 ,"328,786.00",
DFID,DFID,02/10/2015,Aid Programme - Partnership Programme Arrangements ,Policy Division ,ACTION ON DISABILITY AND DE ,202561-101 ,"283,456.25",
DFID,DFID,13/10/2015,Project delivery costs – supplier services ,East and Central Africa ,ADAM SMITH INTERNATIONAL  LTD ,202657-102 ,"59,557.00",
DFID,DFID,13/10/2015,Project delivery costs – supplier services ,East and Central Africa ,ADAM SMITH INTERNATIONAL  LTD ,202657-102 ,"25,524.00",
DFID,DFID,12/10/2015,Fund monies to be managed and dispersed by the supplier ,East and Central Africa ,ADAM SMITH INTERNATIONAL  LTD ,202657-102 ,"112,042.00",
DFID,DFID,27/10/2015,Fund monies to be managed and dispersed by the supplier ,East and Central Africa ,ADAM SMITH INTERNATIONAL  LTD ,202657-114 ,"923,207.00",
DFID,DFID,27/10/2015,Fund monies to be managed and dispersed by the supplier ,East and Central Africa ,ADAM SMITH INTERNATIONAL  LTD ,202657-115 ,"1,651,958.00",
DFID,DFID,02/10/2015,Project delivery costs – supplier services ,East and Central Africa ,ADAM SMITH INTERNATIONAL  LTD ,203153-103 ,"88,273.66",
DFID,DFID,28/10/2015,Project delivery costs – supplier services ,East and Central Africa ,ADAM SMITH INTERNATIONAL  LTD ,203153-103 ,"55,119.79",
DFID,DFID,20/10/2015,Project delivery costs – supplier services ,West and Southern Africa ,ADAM SMITH INTERNATIONAL  LTD ,203161-103 ,"600,312.88",
DFID,DFID,13/10/2015,Project delivery costs – supplier services ,Western Asia Division ,Supplier Name withheld ,203309-101 ,"113,724.00",
DFID,DFID,20/10/2015,Project delivery costs – supplier services ,East and Central Africa ,ADAM SMITH INTERNATIONAL  LTD ,203382-114 ,"333,300.00",
DFID,DFID,30/10/2015,Project delivery costs – supplier services ,Western Asia Division ,ADAM SMITH INTERNATIONAL  LTD ,203508-103 ,"185,972.00",
DFID,DFID,09/10/2015,Research and development costs - supplier services ,Research and Evidence Division ,ADAM SMITH INTERNATIONAL  LTD ,203778-104 ,"224,115.01",
DFID,DFID,21/10/2015,Project delivery costs – supplier services ,Western Asia Division ,Supplier Name withheld ,202112-102 ,"328,494.45",
DFID,DFID,13/10/2015,Project delivery costs – supplier services ,Western Asia Division ,Supplier Name withheld ,202311-102 ,"479,061.65",
DFID,DFID,05/10/2015,Project delivery costs – supplier services ,Western Asia Division ,Supplier Name withheld ,202311-102 ,"435,675.00",
DFID,DFID,13/10/2015,Project delivery costs – supplier services ,Western Asia Division ,Supplier Name withheld ,201098-102 ,"253,791.00",
DFID,DFID,15/10/2015,Project delivery costs – supplier services ,Asia  Caribbean and Overseas Territories ,ADAM SMITH INTERNATIONAL  LTD ,201367-103 ,"402,910.92",
DFID,DFID,07/10/2015,Project delivery costs – supplier services ,Asia  Caribbean and Overseas Territories ,ADAM SMITH INTERNATIONAL  LTD ,201367-103 ,"294,945.36",
DFID,DFID,26/10/2015,Project delivery costs – supplier services ,East and Central Africa ,ADAM SMITH INTERNATIONAL  LTD ,202974-101 ,"72,499.00",
DFID,DFID,26/10/2015,Project delivery costs – supplier services ,East and Central Africa ,ADAM SMITH INTERNATIONAL  LTD ,202974-101 ,"144,998.00",
DFID,DFID,26/10/2015,Project delivery costs – supplier services ,East and Central Africa ,ADAM SMITH INTERNATIONAL  LTD ,202974-101 ,"229,582.00",
DFID,DFID,26/10/2015,Project delivery costs – supplier services ,East and Central Africa ,ADAM SMITH INTERNATIONAL  LTD ,202974-101 ,"72,499.00",
DFID,DFID,26/10/2015,Project delivery costs – supplier services ,Western Asia Division ,ADAM SMITH INTERNATIONAL  LTD ,202697-109 ,"797,569.00",
DFID,DFID,05/10/2015,Project delivery costs – supplier services ,East and Central Africa ,ADAM SMITH INTERNATIONAL  LTD ,202698-104 ,"346,833.77",
DFID,DFID,12/10/2015,Project delivery costs – supplier services ,East and Central Africa ,ADAM SMITH INTERNATIONAL  LTD ,202698-104 ,"139,831.93",
DFID,DFID,12/10/2015,Project delivery costs – supplier services ,East and Central Africa ,ADAM SMITH INTERNATIONAL  LTD ,202698-106 ,"455,936.44",
DFID,DFID,05/10/2015,Project delivery costs – supplier services ,East and Central Africa ,ADAM SMITH INTERNATIONAL  LTD ,202698-108 ,"64,419.78",
DFID,DFID,26/10/2015,Project delivery costs – supplier services ,East and Central Africa ,ADAM SMITH INTERNATIONAL  LTD ,202698-112 ,"72,293.83",
DFID,DFID,05/10/2015,Project delivery costs – supplier services ,East and Central Africa ,ADAM SMITH INTERNATIONAL  LTD ,202698-112 ,"48,640.50",
DFID,DFID,05/10/2015,Project delivery costs – supplier services ,East and Central Africa ,ADAM SMITH INTERNATIONAL  LTD ,202698-113 ,"139,399.58",
DFID,DFID,26/10/2015,Project delivery costs – supplier services ,East and Central Africa ,ADAM SMITH INTERNATIONAL  LTD ,202698-113 ,"196,565.81",
DFID,DFID,01/10/2015,Project delivery costs – supplier services ,West and Southern Africa ,ADAM SMITH INTERNATIONAL  LTD ,202539-106 ,"1,307,000.00",
DFID,DFID,28/10/2015,Project delivery costs – supplier services ,West and Southern Africa ,ADAM SMITH INTERNATIONAL  LTD ,202539-106 ,"338,947.90",
DFID,DFID,28/10/2015,Project delivery costs – supplier services ,West and Southern Africa ,ADAM SMITH INTERNATIONAL  LTD ,202539-106 ,"55,106.46",
DFID,DFID,28/10/2015,Project delivery costs – supplier services ,West and Southern Africa ,ADAM SMITH INTERNATIONAL  LTD ,202539-106 ,"256,367.09",
DFID,DFID,28/10/2015,Project delivery costs – supplier services ,West and Southern Africa ,ADAM SMITH INTERNATIONAL  LTD ,202539-108 ,"57,137.25",
DFID,DFID,01/10/2015,Project delivery costs – supplier services ,West and Southern Africa ,ADAM SMITH INTERNATIONAL  LTD ,202539-108 ,"13,478.80",
DFID,DFID,20/10/2015,Project delivery costs – supplier services ,West and Southern Africa ,ADAM SMITH INTERNATIONAL  LTD ,202584-106 ,"65,114.84",
DFID,DFID,01/10/2015,Project delivery costs – supplier services ,West and Southern Africa ,ADAM SMITH INTERNATIONAL  LTD ,202584-106 ,"331,052.73",
DFID,DFID,19/10/2015,Project delivery costs – supplier services ,West and Southern Africa ,ADAM SMITH INTERNATIONAL  LTD ,202584-106 ,"130,578.50",
DFID,DFID,27/10/2015,Fund monies to be managed and dispersed by the supplier ,East and Central Africa ,ADAM SMITH INTERNATIONAL  LTD ,202657-102 ,"127,042.00",
DFID,DFID,27/10/2015,Project delivery costs – supplier services ,West and Southern Africa ,ADAM SMITH INTERNATIONAL  LTD ,203666-102 ,"112,955.58",
DFID,DFID,19/10/2015,Project delivery costs – supplier services ,West and Southern Africa ,ADAM SMITH INTERNATIONAL  LTD ,203674-102 ,"8,087.37",
DFID,DFID,19/10/2015,Project delivery costs – supplier services ,West and Southern Africa ,ADAM SMITH INTERNATIONAL  LTD ,203674-102 ,"96,434.35",
DFID,DFID,28/10/2015,Project delivery costs – supplier services ,West and Southern Africa ,ADAM SMITH INTERNATIONAL  LTD ,203719-101 ,"156,934.21",
DFID,DFID,16/10/2015,Project delivery costs – supplier services ,West and Southern Africa ,ADAM SMITH INTERNATIONAL  LTD ,203719-101 ,"147,431.60",
DFID,DFID,23/10/2015,Project delivery costs – supplier services ,West and Southern Africa ,ADAM SMITH INTERNATIONAL  LTD ,203824-103 ,"192,387.61",
DFID,DFID,15/10/2015,Project delivery costs – supplier services ,West and Southern Africa ,ADAM SMITH INTERNATIONAL  LTD ,203839-101 ,"22,000.00",
DFID,DFID,13/10/2015,Project delivery costs – supplier services ,West and Southern Africa ,ADAM SMITH INTERNATIONAL  LTD ,203839-101 ,"84,683.13",
DFID,DFID,28/10/2015,Project delivery costs – supplier services ,West and Southern Africa ,ADAM SMITH INTERNATIONAL  LTD ,203839-101 ,"119,358.07",
DFID,DFID,06/10/2015,Project delivery costs – supplier services ,West and Southern Africa ,ADAM SMITH INTERNATIONAL  LTD ,203839-101 ,"47,947.24",
DFID,DFID,28/10/2015,Project delivery costs – supplier services ,West and Southern Africa ,ADAM SMITH INTERNATIONAL  LTD ,203839-101 ,"9,719.00",
DFID,DFID,19/10/2015,Project delivery costs – supplier services ,West and Southern Africa ,ADAM SMITH INTERNATIONAL  LTD ,203839-101 ,"36,754.60",
DFID,DFID,22/10/2015,Project delivery costs – supplier services ,Western Asia Division ,Supplier Name withheld ,203951-101 ,"27,655.64",
DFID,DFID,19/10/2015,Project delivery costs – supplier services ,West and Southern Africa ,ADAM SMITH INTERNATIONAL  LTD ,203910-102 ,"251,328.00",
DFID,DFID,26/10/2015,Project delivery costs – supplier services ,Western Asia Division ,ADAM SMITH INTERNATIONAL  LTD ,202328-102 ,"318,363.24",
DFID,DFID,05/10/2015,Contract & Agency Staff ,Business Solutions Division Level ,ALLEGIS GROUP LIMITED ,200001-101 ,"2,250.00",
DFID,DFID,02/10/2015,Contract & Agency Staff ,Business Solutions Division Level ,ALLEGIS GROUP LIMITED ,200001-101 ,"5,928.00",
DFID,DFID,21/10/2015,Project delivery costs – supplier services ,West and Southern Africa ,ATOS CONSULTING LIMITED ,200452-101 ,"426,602.29",
DFID,DFID,02/10/2015,Aid Programme - Partnership Programme Arrangements ,Policy Division ,ARTICLE 19 ,202556-101 ,"135,671.75",
DFID,DFID,20/10/2015,Aid Programme - Accountable Grant Payments ,East and Central Africa ,THE AEGIS TRUST ,203923-101 ,"104,355.00",
DFID,DFID,22/10/2015,Encashment of Promissory Notes ,Economic Development Division ,AFRICAN  DEVELOPMENT BANK ,203546-101 ,"15,576,173.26",
DFID,DFID,22/10/2015,Encashment of Promissory Notes ,Economic Development Division ,AFRICAN  DEVELOPMENT BANK ,202278-102 ,"18,413,137.89",
DFID,DFID,22/10/2015,Encashment of Promissory Notes ,Economic Development Division ,AFRICAN  DEVELOPMENT BANK ,200147-104 ,"10,153,950.00",
DFID,DFID,01/10/2015,Computer software maintenance ,Business Solutions Division Level ,Unit 4 ,200002-107 ,"65,074.28",Quarterly support and maintenance costs for DFID Financial Management System for the period April  - June 2015 
DFID,DFID,28/10/2015,Consultancy Services ,Business Solutions Division Level ,Unit 4 ,200002-107 ,"3,960.00",
DFID,DFID,27/10/2015,Consultancy Services ,Business Solutions Division Level ,Unit 4 ,200002-107 ,"1,320.00",
DFID,DFID,28/10/2015,Project delivery costs – supplier services ,Business Solutions Division Level ,Unit 4 ,200002-107 ,540.00,
DFID,DFID,19/10/2015,Project delivery costs – supplier services ,East and Central Africa ,AGUACONSULT ,204033-104 ,"3,000.00",
DFID,DFID,30/10/2015,Training - Course Fees ,Group Operations ,ADVANTAGE LEARNING LTD ,204284-101 ,"5,405.00",
DFID,DFID,14/10/2015,Training - Course Fees ,Group Operations ,ADVANTAGE LEARNING LTD ,204284-101 ,796.00,
DFID,DFID,27/10/2015,Aid Programme - Accountable Grant Payments ,East and Central Africa ,Supplier Name withheld ,203928-102 ,"143,541.64",
DFID,DFID,08/10/2015,Aid Programme - Accountable Grant Payments ,East and Central Africa ,Supplier Name withheld ,203363-102 ,"259,717.93",
DFID,DFID,01/10/2015,Aid Programme - Challenge Fund payments ,Western Asia Division ,DAI EUROPE LIMITED ,202261-103 ,"131,543.18",
DFID,DFID,02/10/2015,Training Providers/Facilitation Services ,Human Resources ,BOND ,100269-153 ,"4,308.82",
DFID,DFID,02/10/2015,Aid Programme - Partnership Programme Arrangements ,Policy Division ,Supplier Name withheld ,202786-101 ,"409,498.75",
DFID,DFID,30/10/2015,Aid Programme - Core contributions ,Middle East  Humanitarian & Conflict Division ,Supplier Name withheld ,205039-102 ,"4,000,000.00",
DFID,DFID,30/10/2015,Project delivery costs – supplier services ,East and Central Africa ,Supplier Name withheld ,203768-103 ,"450,000.00",
DFID,DFID,27/10/2015,Aid Programme - Accountable Grant Payments ,Policy Division ,BBC Media Action ,202629-101 ,"3,400,000.00",
DFID,DFID,08/10/2015,Telephone Usage & services ,Business Solutions Division Level ,BT BACS PAYMENTS ,200002-130 ,"1,354.95",
DFID,DFID,02/10/2015,Aid Programme - Accountable Grant Payments ,West and Southern Africa ,BRITISH GEOLOGICAL SURVEY ,203634-101 ,"123,672.96",
DFID,DFID,30/10/2015,Further Education costs ,Top Management Group ,BIRKBECK UNIVERSITY OF LONDON ,100232-105 ,"1,788.75",
DFID,DFID,28/10/2015,Project delivery costs – supplier services ,East and Central Africa ,BRITISH COUNCIL ,203468-103 ,"216,829.90",
DFID,DFID,20/10/2015,Project delivery costs – supplier services ,Asia  Caribbean and Overseas Territories ,BRITISH COUNCIL ,203601-113 ,"269,759.13",
DFID,DFID,29/10/2015,Project delivery costs – supplier services ,West and Southern Africa ,BRITISH COUNCIL ,203851-102 ,"39,115.01",
DFID,DFID,26/10/2015,Project delivery costs – supplier services ,West and Southern Africa ,BRITISH COUNCIL ,203816-102 ,"93,992.67",
DFID,DFID,23/10/2015,Project delivery costs – supplier services ,West and Southern Africa ,BRITISH COUNCIL ,203816-102 ,"103,733.06",
DFID,DFID,23/10/2015,Project delivery costs – supplier services ,West and Southern Africa ,BRITISH COUNCIL ,203816-103 ,"100,000.00",
DFID,DFID,26/10/2015,Project delivery costs – supplier services ,West and Southern Africa ,BRITISH COUNCIL ,203816-103 ,"205,000.00",
DFID,DFID,20/10/2015,Project delivery costs – supplier services ,East and Central Africa ,BRITISH COUNCIL ,204463-104 ,"2,681.18",
DFID,DFID,20/10/2015,Project delivery costs – supplier services ,Policy Division ,BRITISH COUNCIL ,204864-102 ,"198,353.04",
DFID,DFID,15/10/2015,Project delivery costs – supplier services ,Middle East  Humanitarian & Conflict Division ,BRITISH COUNCIL ,202886-102 ,"476,096.10",
DFID,DFID,05/10/2015,Project delivery costs – supplier services ,Policy Division ,CHRISTIAN AID ,204333-104 ,"100,820.11",
DFID,DFID,05/10/2015,Project delivery costs – supplier services ,Asia  Caribbean and Overseas Territories ,CHRISTIAN AID ,113311-101 ,"358,476.44",
DFID,DFID,23/10/2015,Project delivery costs – supplier services ,Asia  Caribbean and Overseas Territories ,CHRISTIAN AID ,113311-101 ,"370,965.81",
DFID,DFID,23/10/2015,Project delivery costs – supplier services ,Asia  Caribbean and Overseas Territories ,CHRISTIAN AID ,113311-101 ,"324,134.52",
DFID,DFID,28/10/2015,Aid Programme - Accountable Grant Payments ,Policy Division ,CHRISTIAN AID ,203559-130 ,"114,725.00",
DFID,DFID,21/10/2015,DFID Purchased Relief Supplies ,West and Southern Africa ,Supplier Name withheld ,203674-103 ,"246,356.08",
DFID,DFID,29/10/2015,Fund monies to be managed and dispersed by the supplier ,West and Southern Africa ,Supplier Name withheld ,203551-102 ,"568,468.07",
DFID,DFID,06/10/2015,Fund monies to be managed and dispersed by the supplier ,East and Central Africa ,Supplier Name withheld ,203382-101 ,"1,236,357.81",
DFID,DFID,06/10/2015,Fund monies to be managed and dispersed by the supplier ,East and Central Africa ,Supplier Name withheld ,203382-115 ,"195,868.15",
DFID,DFID,13/10/2015,DFID Purchased Relief Supplies ,Asia  Caribbean and Overseas Territories ,Supplier Name withheld ,203400-109 ,"6,387.26",
DFID,DFID,13/10/2015,DFID Purchased Relief Supplies ,Asia  Caribbean and Overseas Territories ,Supplier Name withheld ,203400-109 ,"1,348.69",
DFID,DFID,22/10/2015,DFID Purchased Relief Supplies ,Asia  Caribbean and Overseas Territories ,Supplier Name withheld ,203400-109 ,"16,975.95",
DFID,DFID,20/10/2015,DFID Purchased Relief Supplies ,Asia  Caribbean and Overseas Territories ,Supplier Name withheld ,203400-109 ,"2,811.50",
DFID,DFID,29/10/2015,Aid Programme - Humanitarian Material Relief Assistance and Services ,Middle East  Humanitarian & Conflict Division ,Supplier Name withheld ,203419-105 ,"37,293.00",
DFID,DFID,16/10/2015,Aid Programme - Humanitarian Material Relief Assistance and Services ,Middle East  Humanitarian & Conflict Division ,Supplier Name withheld ,203419-105 ,"3,432.00",
DFID,DFID,27/10/2015,Aid Programme - Humanitarian Material Relief Assistance and Services ,Middle East  Humanitarian & Conflict Division ,Supplier Name withheld ,203419-105 ,"6,864.00",
DFID,DFID,07/10/2015,Fund monies to be managed and dispersed by the supplier ,East and Central Africa ,Supplier Name withheld ,202946-103 ,"37,991.60",
DFID,DFID,07/10/2015,Fund monies to be managed and dispersed by the supplier ,East and Central Africa ,Supplier Name withheld ,202946-103 ,"45,522.74",
DFID,DFID,07/10/2015,DFID Purchased Relief Supplies ,West and Southern Africa ,Supplier Name withheld ,202992-102 ,"11,319.00",
DFID,DFID,15/10/2015,DFID Purchased Relief Supplies ,West and Southern Africa ,Supplier Name withheld ,202992-102 ,"84,554.10",
DFID,DFID,14/10/2015,Fund monies to be managed and dispersed by the supplier ,East and Central Africa ,Supplier Name withheld ,203109-106 ,"26,232.00",
DFID,DFID,14/10/2015,Fund monies to be managed and dispersed by the supplier ,East and Central Africa ,Supplier Name withheld ,203109-106 ,"196,022.00",
DFID,DFID,14/10/2015,Fund monies to be managed and dispersed by the supplier ,East and Central Africa ,Supplier Name withheld ,203109-106 ,"206,437.82",
DFID,DFID,29/10/2015,Fund monies to be managed and dispersed by the supplier ,East and Central Africa ,Supplier Name withheld ,203109-106 ,"276,705.26",
DFID,DFID,02/10/2015,Fund monies to be managed and dispersed by the supplier ,East and Central Africa ,Supplier Name withheld ,203109-106 ,"1,329,363.00",
DFID,DFID,05/10/2015,Fund monies to be managed and dispersed by the supplier ,East and Central Africa ,Supplier Name withheld ,203109-106 ,"141,945.18",
DFID,DFID,01/10/2015,Aid Programme - Humanitarian Material Relief Assistance and Services ,Western Asia Division ,Supplier Name withheld ,203967-101 ,"3,412.80",
DFID,DFID,23/10/2015,Aid Programme - Humanitarian Material Relief Assistance and Services ,Middle East  Humanitarian & Conflict Division ,Supplier Name withheld ,204016-104 ,"63,020.38",
DFID,DFID,23/10/2015,Aid Programme - Humanitarian Material Relief Assistance and Services ,Middle East  Humanitarian & Conflict Division ,Supplier Name withheld ,204016-104 ,"5,819.33",
DFID,DFID,22/10/2015,Aid Programme - Humanitarian Material Relief Assistance and Services ,Middle East  Humanitarian & Conflict Division ,Supplier Name withheld ,204516-102 ,"8,400.00",
DFID,DFID,22/10/2015,Aid Programme - Humanitarian Material Relief Assistance and Services ,Middle East  Humanitarian & Conflict Division ,Supplier Name withheld ,204516-102 ,"13,920.00",
DFID,DFID,16/10/2015,Aid Programme - Humanitarian Material Relief Assistance and Services ,Middle East  Humanitarian & Conflict Division ,Supplier Name withheld ,204516-102 ,"30,566.40",
DFID,DFID,19/10/2015,Aid Programme - Humanitarian Material Relief Assistance and Services ,Middle East  Humanitarian & Conflict Division ,Supplier Name withheld ,204516-102 ,"12,921.60",
DFID,DFID,20/10/2015,Aid Programme - Humanitarian Material Relief Assistance and Services ,Middle East  Humanitarian & Conflict Division ,Supplier Name withheld ,204516-102 ,"15,224.29",
DFID,DFID,30/10/2015,Aid Programme - Humanitarian Material Relief Assistance and Services ,Middle East  Humanitarian & Conflict Division ,Supplier Name withheld ,204516-102 ,"19,034.40",
DFID,DFID,09/10/2015,Aid Programme - Humanitarian Material Relief Assistance and Services ,Middle East  Humanitarian & Conflict Division ,Supplier Name withheld ,204516-102 ,"17,787.60",
DFID,DFID,02/10/2015,Aid Programme - Humanitarian Material Relief Assistance and Services ,Middle East  Humanitarian & Conflict Division ,Supplier Name withheld ,204516-102 ,"15,388.65",
DFID,DFID,09/10/2015,Aid Programme - Humanitarian Material Relief Assistance and Services ,Middle East  Humanitarian & Conflict Division ,Supplier Name withheld ,204516-103 ,"10,171.20",
DFID,DFID,19/10/2015,Aid Programme - Humanitarian Material Relief Assistance and Services ,Middle East  Humanitarian & Conflict Division ,Supplier Name withheld ,204516-103 ,"17,212.80",
DFID,DFID,05/10/2015,Aid Programme - Humanitarian Material Relief Assistance and Services ,Middle East  Humanitarian & Conflict Division ,Supplier Name withheld ,204516-103 ,"11,401.90",
DFID,DFID,28/10/2015,Aid Programme - Humanitarian Material Relief Assistance and Services ,Middle East  Humanitarian & Conflict Division ,Supplier Name withheld ,204516-103 ,"2,040.00",
DFID,DFID,28/10/2015,Aid Programme - Humanitarian Material Relief Assistance and Services ,Middle East  Humanitarian & Conflict Division ,Supplier Name withheld ,204516-103 ,916.49,
DFID,DFID,23/10/2015,Aid Programme - Humanitarian Material Relief Assistance and Services ,Middle East  Humanitarian & Conflict Division ,Supplier Name withheld ,204351-101 ,"7,646.40",
DFID,DFID,29/10/2015,Project delivery costs – supplier services ,West and Southern Africa ,Supplier Name withheld ,203551-102 ,"126,867.17",
DFID,DFID,06/10/2015,Project delivery costs – supplier services ,East and Central Africa ,Supplier Name withheld ,203382-119 ,"383,306.09",
DFID,DFID,09/10/2015,Project delivery costs – supplier services ,Economic Development Division ,Supplier Name withheld ,203375-101 ,"333,073.00",
DFID,DFID,21/10/2015,Project delivery costs – supplier services ,Economic Development Division ,Supplier Name withheld ,203375-101 ,"51,116.00",
DFID,DFID,30/10/2015,Project delivery costs – supplier services ,Asia  Caribbean and Overseas Territories ,Supplier Name withheld ,203275-102 ,"139,503.13",
DFID,DFID,13/10/2015,Project delivery costs – supplier services ,Middle East  Humanitarian & Conflict Division ,Supplier Name withheld ,203416-102 ,"4,844.45",
DFID,DFID,13/10/2015,Project delivery costs – supplier services ,Middle East  Humanitarian & Conflict Division ,Supplier Name withheld ,203416-102 ,"69,877.75",
DFID,DFID,15/10/2015,Project delivery costs – supplier services ,Middle East  Humanitarian & Conflict Division ,Supplier Name withheld ,203416-102 ,"1,159.20",
DFID,DFID,15/10/2015,Project delivery costs – supplier services ,Middle East  Humanitarian & Conflict Division ,Supplier Name withheld ,203416-102 ,"7,484.40",
DFID,DFID,22/10/2015,Project delivery costs – supplier services ,Middle East  Humanitarian & Conflict Division ,Supplier Name withheld ,203416-102 ,660.00,
DFID,DFID,05/10/2015,Project delivery costs – supplier services ,Policy Division ,Supplier Name withheld ,203146-102 ,"79,959.21",
DFID,DFID,05/10/2015,Project delivery costs – supplier services ,Policy Division ,Supplier Name withheld ,203146-102 ,"2,998.47",
DFID,DFID,06/10/2015,Project delivery costs – supplier services ,Policy Division ,Supplier Name withheld ,203146-102 ,"22,297.09",
DFID,DFID,06/10/2015,Project delivery costs – supplier services ,Policy Division ,Supplier Name withheld ,203146-102 ,836.14,
DFID,DFID,26/10/2015,Project delivery costs – supplier services ,Policy Division ,Supplier Name withheld ,203146-102 ,"11,637.38",
DFID,DFID,23/10/2015,Project delivery costs – supplier services ,Policy Division ,Supplier Name withheld ,203146-102 ,"3,000.35",
DFID,DFID,13/10/2015,Aid Programme - Humanitarian Material Relief Assistance and Services ,Asia  Caribbean and Overseas Territories ,Supplier Name withheld ,205028-101 ,"16,764.00",
DFID,DFID,15/10/2015,Aid Programme - Humanitarian Material Relief Assistance and Services ,Asia  Caribbean and Overseas Territories ,Supplier Name withheld ,205028-101 ,"296,045.34",
DFID,DFID,27/10/2015,Aid Programme - Humanitarian Material Relief Assistance and Services ,Asia  Caribbean and Overseas Territories ,Supplier Name withheld ,205028-101 ,"8,954.40",
DFID,DFID,27/10/2015,Aid Programme - Humanitarian Material Relief Assistance and Services ,Asia  Caribbean and Overseas Territories ,Supplier Name withheld ,205028-101 ,"1,157.70",
DFID,DFID,28/10/2015,Aid Programme - Humanitarian Material Relief Assistance and Services ,Asia  Caribbean and Overseas Territories ,Supplier Name withheld ,205028-101 ,"3,547.91",
DFID,DFID,02/10/2015,Aid Programme - Humanitarian Material Relief Assistance and Services ,Asia  Caribbean and Overseas Territories ,Supplier Name withheld ,205028-101 ,"36,758.95",
DFID,DFID,02/10/2015,Aid Programme - Humanitarian Material Relief Assistance and Services ,Asia  Caribbean and Overseas Territories ,Supplier Name withheld ,205028-101 ,"1,744.84",
DFID,DFID,09/10/2015,Aid Programme - Humanitarian Material Relief Assistance and Services ,Western Asia Division ,Supplier Name withheld ,204973-104 ,680.40,
DFID,DFID,20/10/2015,Aid Programme - Humanitarian Material Relief Assistance and Services ,Middle East  Humanitarian & Conflict Division ,Supplier Name withheld ,204968-103 ,"11,683.09",
DFID,DFID,09/10/2015,Aid Programme - Humanitarian Material Relief Assistance and Services ,Middle East  Humanitarian & Conflict Division ,Supplier Name withheld ,204968-103 ,910.80,
DFID,DFID,05/10/2015,Aid Programme - Humanitarian Material Relief Assistance and Services ,Middle East  Humanitarian & Conflict Division ,Supplier Name withheld ,204968-103 ,"1,726.15",
DFID,DFID,12/10/2015,Aid Programme - Humanitarian Material Relief Assistance and Services ,Middle East  Humanitarian & Conflict Division ,Supplier Name withheld ,204813-101 ,"5,756.40",
DFID,DFID,19/10/2015,Aid Programme - Humanitarian Material Relief Assistance and Services ,Middle East  Humanitarian & Conflict Division ,Supplier Name withheld ,204813-101 ,"1,082.71",
DFID,DFID,13/10/2015,Aid Programme - Humanitarian Material Relief Assistance and Services ,Middle East  Humanitarian & Conflict Division ,Supplier Name withheld ,204813-101 ,"11,592.00",
DFID,DFID,19/10/2015,Aid Programme - Humanitarian Material Relief Assistance and Services ,Middle East  Humanitarian & Conflict Division ,Supplier Name withheld ,204813-103 ,"1,549.36",
DFID,DFID,19/10/2015,Aid Programme - Humanitarian Material Relief Assistance and Services ,Western Asia Division ,Supplier Name withheld ,204603-101 ,762.00,
DFID,DFID,02/10/2015,Aid Programme - Accountable Grant Payments ,Economic Development Division ,Supplier Name withheld ,204609-101 ,"4,646,168.00",
DFID,DFID,13/10/2015,Bank Charges/Services ,Group Operations ,Supplier Name withheld ,204664-101 ,"3,000.00",
DFID,DFID,01/10/2015,Vehicle Repairs & Maintenance ,West and Southern Africa ,Supplier Name withheld ,101622-105 ,"4,762.80",
DFID,DFID,28/10/2015,Vehicle Repairs & Maintenance ,West and Southern Africa ,Supplier Name withheld ,101622-105 ,"2,871.80",
DFID,DFID,21/10/2015,Fund monies to be managed and dispersed by the supplier ,East and Central Africa ,Supplier Name withheld ,200349-102 ,"518,905.59",
DFID,DFID,19/10/2015,Aid Programme - Pooled/Basket funding ,Policy Division ,Supplier Name withheld ,201101-108 ,"284,644.32",
DFID,DFID,27/10/2015,DFID Purchased Relief Supplies ,West and Southern Africa ,Supplier Name withheld ,114206-102 ,"135,405.31",
DFID,DFID,23/10/2015,DFID Purchased Relief Supplies ,West and Southern Africa ,Supplier Name withheld ,104187-108 ,"30,195.81",
DFID,DFID,28/10/2015,DFID Purchased Relief Supplies ,West and Southern Africa ,Supplier Name withheld ,104229-102 ,"59,811.35",
DFID,DFID,28/10/2015,DFID Purchased Relief Supplies ,West and Southern Africa ,Supplier Name withheld ,104229-102 ,"8,823.40",
DFID,DFID,30/10/2015,DFID Purchased Relief Supplies ,West and Southern Africa ,Supplier Name withheld ,104229-102 ,"10,970.42",
DFID,DFID,27/10/2015,DFID Purchased Relief Supplies ,West and Southern Africa ,Supplier Name withheld ,202584-104 ,"3,709.64",
DFID,DFID,27/10/2015,DFID Purchased Relief Supplies ,West and Southern Africa ,Supplier Name withheld ,202584-104 ,"4,307.67",
DFID,DFID,30/10/2015,DFID Purchased Relief Supplies ,East and Central Africa ,Supplier Name withheld ,202900-107 ,"17,739.30",
DFID,DFID,23/10/2015,Project delivery costs – supplier services ,East and Central Africa ,Supplier Name withheld ,202900-107 ,"486,431.40",
DFID,DFID,13/10/2015,Fund monies to be managed and dispersed by the supplier ,Economic Development Division ,Supplier Name withheld ,202089-102 ,"157,851.38",
DFID,DFID,22/10/2015,Fund monies to be managed and dispersed by the supplier ,West and Southern Africa ,Supplier Name withheld ,202531-104 ,"144,048.16",
DFID,DFID,01/10/2015,Fund monies to be managed and dispersed by the supplier ,West and Southern Africa ,Supplier Name withheld ,202541-105 ,"81,675.13",
DFID,DFID,21/10/2015,Project delivery costs – supplier services ,East and Central Africa ,Supplier Name withheld ,200349-102 ,"403,312.00",
DFID,DFID,29/10/2015,Project delivery costs – supplier services ,Policy Division ,Supplier Name withheld ,200706-102 ,"3,520.87",
DFID,DFID,20/10/2015,Project delivery costs – supplier services ,Policy Division ,Supplier Name withheld ,200706-102 ,"141,169.87",
DFID,DFID,27/10/2015,Project delivery costs – supplier services ,Policy Division ,Supplier Name withheld ,200706-102 ,"11,510.47",
DFID,DFID,30/10/2015,Project delivery costs – supplier services ,Policy Division ,Supplier Name withheld ,200706-102 ,"15,089.59",
DFID,DFID,29/10/2015,Project delivery costs – supplier services ,Policy Division ,Supplier Name withheld ,200706-102 ,"11,602.03",
DFID,DFID,07/10/2015,Project delivery costs – supplier services ,Policy Division ,Supplier Name withheld ,200706-102 ,"5,983.00",
DFID,DFID,14/10/2015,Project delivery costs – supplier services ,Asia  Caribbean and Overseas Territories ,Supplier Name withheld ,113287-103 ,"11,782.16",
DFID,DFID,13/10/2015,Project delivery costs – supplier services ,Asia  Caribbean and Overseas Territories ,Supplier Name withheld ,113287-103 ,868.53,
DFID,DFID,13/10/2015,Repairs  Maint  Alter - Property & Constrct. Services ,Asia  Caribbean and Overseas Territories ,Supplier Name withheld ,113287-104 ,"6,298.54",
DFID,DFID,29/10/2015,Project delivery costs – supplier services ,West and Southern Africa ,Supplier Name withheld ,100153-101 ,"3,402.00",
DFID,DFID,23/10/2015,Project delivery costs – supplier services ,West and Southern Africa ,Supplier Name withheld ,104187-108 ,"1,132.34",
DFID,DFID,15/10/2015,Project delivery costs – supplier services ,West and Southern Africa ,Supplier Name withheld ,202293-102 ,"39,276.75",
DFID,DFID,15/10/2015,Project delivery costs – supplier services ,West and Southern Africa ,Supplier Name withheld ,202293-102 ,"9,500.00",
DFID,DFID,20/10/2015,Project delivery costs – supplier services ,Regional Directorate ,Supplier Name withheld ,204929-103 ,"1,879.00",
DFID,DFID,06/10/2015,Project delivery costs – supplier services ,Western Asia Division ,Supplier Name withheld ,204973-104 ,"2,821.32",
DFID,DFID,27/10/2015,Project delivery costs – supplier services ,Western Asia Division ,Supplier Name withheld ,204973-104 ,"11,622.60",
DFID,DFID,19/10/2015,Project delivery costs – supplier services ,Western Asia Division ,Supplier Name withheld ,204973-104 ,896.31,
DFID,DFID,01/10/2015,Project delivery costs – supplier services ,East and Central Africa ,Supplier Name withheld ,205064-106 ,"2,162.47",
DFID,DFID,26/10/2015,Project delivery costs – supplier services ,East and Central Africa ,Supplier Name withheld ,205064-106 ,"2,291.26",
DFID,DFID,30/10/2015,Project delivery costs – supplier services ,East and Central Africa ,Supplier Name withheld ,205064-106 ,"12,954.00",
DFID,DFID,30/10/2015,Project delivery costs – supplier services ,East and Central Africa ,Supplier Name withheld ,205064-106 ,"1,762.26",
DFID,DFID,27/10/2015,Project delivery costs – supplier services ,Economic Development Division ,Supplier Name withheld ,202089-101 ,"46,514.01",
DFID,DFID,16/10/2015,Project delivery costs – supplier services ,Regional Directorate ,Supplier Name withheld ,204902-105 ,"20,556.00",
DFID,DFID,22/10/2015,Project delivery costs – supplier services ,Regional Directorate ,Supplier Name withheld ,204902-105 ,"16,296.00",
DFID,DFID,22/10/2015,Project delivery costs – supplier services ,Regional Directorate ,Supplier Name withheld ,204902-105 ,"2,167.00",
DFID,DFID,22/10/2015,Project delivery costs – supplier services ,Regional Directorate ,Supplier Name withheld ,204902-105 ,"2,446.60",
DFID,DFID,22/10/2015,Project delivery costs – supplier services ,Regional Directorate ,Supplier Name withheld ,204902-105 ,"3,148.56",
DFID,DFID,22/10/2015,Project delivery costs – supplier services ,Regional Directorate ,Supplier Name withheld ,204902-105 ,"3,611.02",
DFID,DFID,22/10/2015,Project delivery costs – supplier services ,Regional Directorate ,Supplier Name withheld ,204902-105 ,"3,381.26",
DFID,DFID,22/10/2015,Project delivery costs – supplier services ,Regional Directorate ,Supplier Name withheld ,204902-105 ,"1,856.08",
DFID,DFID,22/10/2015,Project delivery costs – supplier services ,Regional Directorate ,Supplier Name withheld ,204902-105 ,989.26,
DFID,DFID,22/10/2015,Project delivery costs – supplier services ,Regional Directorate ,Supplier Name withheld ,204902-105 ,"24,804.00",
DFID,DFID,22/10/2015,Project delivery costs – supplier services ,Regional Directorate ,Supplier Name withheld ,204902-105 ,"24,516.00",
DFID,DFID,22/10/2015,Project delivery costs – supplier services ,Regional Directorate ,Supplier Name withheld ,204902-105 ,691.06,
DFID,DFID,22/10/2015,Project delivery costs – supplier services ,Regional Directorate ,Supplier Name withheld ,204902-105 ,"2,768.62",
DFID,DFID,22/10/2015,Project delivery costs – supplier services ,Regional Directorate ,Supplier Name withheld ,204902-105 ,"1,174.81",
DFID,DFID,22/10/2015,Project delivery costs – supplier services ,Regional Directorate ,Supplier Name withheld ,204902-105 ,"15,526.80",
DFID,DFID,22/10/2015,Project delivery costs – supplier services ,Regional Directorate ,Supplier Name withheld ,204902-105 ,"2,667.93",
DFID,DFID,22/10/2015,Project delivery costs – supplier services ,Regional Directorate ,Supplier Name withheld ,204902-105 ,"2,756.53",
DFID,DFID,22/10/2015,Project delivery costs – supplier services ,Regional Directorate ,Supplier Name withheld ,204902-105 ,"4,475.39",
DFID,DFID,30/10/2015,Project delivery costs – supplier services ,Regional Directorate ,Supplier Name withheld ,204902-105 ,"1,488.00",
DFID,DFID,29/10/2015,Project delivery costs – supplier services ,Asia  Caribbean and Overseas Territories ,Supplier Name withheld ,201645-105 ,"83,002.43",
DFID,DFID,13/10/2015,Project delivery costs – supplier services ,East and Central Africa ,Supplier Name withheld ,204400-101 ,"13,075.20",
DFID,DFID,09/10/2015,Project delivery costs – supplier services ,East and Central Africa ,Supplier Name withheld ,204400-101 ,"3,878.20",
DFID,DFID,06/10/2015,Project delivery costs – supplier services ,East and Central Africa ,Supplier Name withheld ,204439-103 ,"20,487.93",
DFID,DFID,27/10/2015,Project delivery costs – supplier services ,East and Central Africa ,Supplier Name withheld ,204439-103 ,"10,873.20",
DFID,DFID,13/10/2015,Project delivery costs – supplier services ,East and Central Africa ,Supplier Name withheld ,204439-103 ,"3,128.50",
DFID,DFID,22/10/2015,Project delivery costs – supplier services ,East and Central Africa ,Supplier Name withheld ,204439-103 ,"36,045.00",
DFID,DFID,15/10/2015,Project delivery costs – supplier services ,Middle East  Humanitarian & Conflict Division ,Supplier Name withheld ,204016-103 ,"17,452.80",
DFID,DFID,15/10/2015,Project delivery costs – supplier services ,Middle East  Humanitarian & Conflict Division ,Supplier Name withheld ,203815-106 ,"6,422.00",
DFID,DFID,16/10/2015,Project delivery costs – supplier services ,Middle East  Humanitarian & Conflict Division ,Supplier Name withheld ,203815-106 ,"5,498.58",
DFID,DFID,02/10/2015,Project delivery costs – supplier services ,Middle East  Humanitarian & Conflict Division ,Supplier Name withheld ,203815-106 ,"3,934.80",
DFID,DFID,20/10/2015,Project delivery costs – supplier services ,West and Southern Africa ,Supplier Name withheld ,204883-102 ,"3,283.95",
DFID,DFID,13/10/2015,Project delivery costs – supplier services ,West and Southern Africa ,Supplier Name withheld ,204883-102 ,"14,959.20",
DFID,DFID,12/10/2015,Project delivery costs – supplier services ,West and Southern Africa ,Supplier Name withheld ,204883-102 ,"1,221.09",
DFID,DFID,09/10/2015,Project delivery costs – supplier services ,Western Asia Division ,Supplier Name withheld ,204792-105 ,"6,096.00",
DFID,DFID,05/10/2015,Project delivery costs – supplier services ,Western Asia Division ,Supplier Name withheld ,204792-105 ,756.48,
DFID,DFID,14/10/2015,Project delivery costs – supplier services ,East and Central Africa ,Supplier Name withheld ,204851-105 ,"2,654.40",
DFID,DFID,14/10/2015,Project delivery costs – supplier services ,East and Central Africa ,Supplier Name withheld ,204851-105 ,"15,168.00",
DFID,DFID,16/10/2015,Project delivery costs – supplier services ,East and Central Africa ,Supplier Name withheld ,204851-105 ,"2,792.87",
DFID,DFID,15/10/2015,Project delivery costs – supplier services ,Asia  Caribbean and Overseas Territories ,Supplier Name withheld ,202393-102 ,"233,059.67",
DFID,DFID,08/10/2015,Project delivery costs – supplier services ,Regional Directorate ,Supplier Name withheld ,204902-103 ,"54,752.40",
DFID,DFID,30/10/2015,Project delivery costs – supplier services ,Regional Directorate ,Supplier Name withheld ,204902-103 ,"77,173.20",
DFID,DFID,30/10/2015,Project delivery costs – supplier services ,Regional Directorate ,Supplier Name withheld ,204902-103 ,"121,096.62",
DFID,DFID,30/10/2015,Project delivery costs – supplier services ,Regional Directorate ,Supplier Name withheld ,204902-103 ,"49,947.14",
DFID,DFID,15/10/2015,Project delivery costs – supplier services ,Regional Directorate ,Supplier Name withheld ,204902-103 ,"47,869.20",
DFID,DFID,13/10/2015,Project delivery costs – supplier services ,Regional Directorate ,Supplier Name withheld ,204902-103 ,"37,273.50",
DFID,DFID,20/10/2015,Project delivery costs – supplier services ,Regional Directorate ,Supplier Name withheld ,204902-103 ,"29,945.06",
DFID,DFID,20/10/2015,Project delivery costs – supplier services ,Regional Directorate ,Supplier Name withheld ,204902-103 ,"2,028.06",
DFID,DFID,19/10/2015,Project delivery costs – supplier services ,West and Southern Africa ,Supplier Name withheld ,202349-103 ,"125,000.00",
DFID,DFID,26/10/2015,Project delivery costs – supplier services ,Middle East  Humanitarian & Conflict Division ,Supplier Name withheld ,202741-104 ,"7,550.40",
DFID,DFID,29/10/2015,Project delivery costs – supplier services ,Middle East  Humanitarian & Conflict Division ,Supplier Name withheld ,202741-104 ,"179,034.00",
DFID,DFID,15/10/2015,Project delivery costs – supplier services ,Middle East  Humanitarian & Conflict Division ,Supplier Name withheld ,202741-106 ,"355,245.60",
DFID,DFID,22/10/2015,Project delivery costs – supplier services ,West and Southern Africa ,Supplier Name withheld ,202640-103 ,"32,147.39",
DFID,DFID,16/10/2015,Project delivery costs – supplier services ,Asia  Caribbean and Overseas Territories ,Supplier Name withheld ,202433-103 ,"18,969.60",
DFID,DFID,15/10/2015,Project delivery costs – supplier services ,Asia  Caribbean and Overseas Territories ,Supplier Name withheld ,202433-103 ,767.18,
DFID,DFID,16/10/2015,Project delivery costs – supplier services ,Asia  Caribbean and Overseas Territories ,Supplier Name withheld ,202433-103 ,"18,969.00",
DFID,DFID,27/10/2015,Project delivery costs – supplier services ,Asia  Caribbean and Overseas Territories ,Supplier Name withheld ,202433-103 ,"13,634.40",
DFID,DFID,05/10/2015,Project delivery costs – supplier services ,Asia  Caribbean and Overseas Territories ,Supplier Name withheld ,202433-103 ,"1,454.28",
DFID,DFID,14/10/2015,Project delivery costs – supplier services ,West and Southern Africa ,Supplier Name withheld ,202416-103 ,"40,950.00",
DFID,DFID,15/10/2015,Project delivery costs – supplier services ,West and Southern Africa ,Supplier Name withheld ,202416-103 ,"17,273.37",
DFID,DFID,08/10/2015,Aid Programme - Accountable Grant Payments ,East and Central Africa ,CONCERN WORLDWIDE ,202619-114 ,"104,865.41",
DFID,DFID,28/10/2015,AV Conferencing systems -hardware ,Business Solutions Division Level ,COMPUTACENTER (UK) LTD ,200002-153 ,"1,346.00",
DFID,DFID,14/10/2015,Hardware - networking equipment ,Business Solutions Division Level ,COMPUTACENTER (UK) LTD ,200005-116 ,"2,051.95",
DFID,DFID,02/10/2015,Aid Programme - Partnership Programme Arrangements ,Policy Division ,Conciliation Resources ,202702-101 ,"250,644.75",
DFID,DFID,30/10/2015,Aid Programme - Accountable Grant Payments ,West and Southern Africa ,CAMFED ,203292-101 ,"209,291.00",
DFID,DFID,21/10/2015,Aid Programme - Accountable Grant Payments ,West and Southern Africa ,CAMFED ,203292-101 ,"227,336.00",
DFID,DFID,12/10/2015,Aid Programme - Humanitarian Material Relief Assistance and Services ,Asia  Caribbean and Overseas Territories ,CARE INTERNATIONAL UK ,205028-102 ,"498,074.50",
DFID,DFID,29/10/2015,Aid Programme - Accountable Grant Payments ,Research and Evidence Division ,CENTRE FOR ECONOMIC POLICY RESEARCH ,202835-101 ,"121,193.00",
DFID,DFID,27/10/2015,Aid Programme - Accountable Grant Payments ,West and Southern Africa ,CONCERN UNIVERSAL ,201196-113 ,"367,117.00",
DFID,DFID,16/10/2015,Project delivery costs – supplier services ,Research and Evidence Division ,CAB INTERNATIONAL ,112152-102 ,"17,883.08",
DFID,DFID,05/10/2015,Property rates ,Group Operations ,CITY OF WESTMINSTER ,203717-101 ,"127,224.00",One tenth of the 2015/16 Whitehall headquarters rateable value (seventh October instalment) 
DFID,DFID,01/10/2015,Project delivery costs – supplier services ,Economic Development Division ,CAMBRIDGE ECONOMIC POLICY ASSOCIATES ,202650-102 ,"43,120.80",
DFID,DFID,21/10/2015,DFID Purchased Relief Supplies ,West and Southern Africa ,CHARLES KENDALL & PARTNERS LIMITED (PROCUREMENT) ,202214-106 ,"10,184.19",
DFID,DFID,13/10/2015,Storage & Distribution costs ,West and Southern Africa ,CROWN RELOCATIONS  UK ,101638-101 ,600.00,
DFID,DFID,13/10/2015,Storage & Distribution costs ,West and Southern Africa ,CROWN RELOCATIONS  UK ,101620-101 ,600.00,
DFID,DFID,19/10/2015,Aid Programme - Accountable Grant Payments ,East and Central Africa ,Supplier Name withheld ,200658-102 ,"340,146.18",
DFID,DFID,01/10/2015,Aid Programme - Partnership Programme Arrangements ,Policy Division ,Supplier Name withheld ,202615-101 ,"808,317.00",
DFID,DFID,09/10/2015,Project delivery costs – supplier services ,Asia  Caribbean and Overseas Territories ,Supplier Name withheld ,114506-101 ,"117,594.54",
DFID,DFID,27/10/2015,Professional member subscriptions ,Human Resources ,CABINET OFFICE ,100269-148 ,"1,223.84",
DFID,DFID,30/10/2015,FCO shared service charges ,Human Resources ,CABINET OFFICE ,100269-149 ,"14,144.32",
DFID,DFID,30/10/2015,FCO shared service charges ,Human Resources ,CABINET OFFICE ,100269-150 ,"14,867.92",
DFID,DFID,30/10/2015,FCO shared service charges ,Human Resources ,CABINET OFFICE ,100269-151 ,"24,557.57",
DFID,DFID,16/10/2015,Training - Course Fees ,Human Resources ,Capita  Business Services ,100269-153 ,951.22,
DFID,DFID,22/10/2015,Training - Course Fees ,Human Resources ,Capita  Business Services ,100269-153 ,515.24,
DFID,DFID,05/10/2015,Training - Course Fees ,Human Resources ,Capita  Business Services ,100269-155 ,"4,500.00",
DFID,DFID,14/10/2015,Training Providers/Facilitation Services ,Human Resources ,Capita  Business Services ,100269-155 ,"3,456.00",
DFID,DFID,21/10/2015,Training - Course Fees ,Human Resources ,Capita  Business Services ,100269-158 ,"2,743.90",
DFID,DFID,26/10/2015,Training - Course Fees ,Human Resources ,Capita  Business Services ,100269-158 ,"2,743.90",
DFID,DFID,02/10/2015,Training Providers/Facilitation Services ,Human Resources ,Capita  Business Services ,100269-158 ,"2,066.00",
DFID,DFID,05/10/2015,Training Providers/Facilitation Services ,West and Southern Africa ,Capita  Business Services ,100152-101 ,510.00,
DFID,DFID,21/10/2015,Conferences  Seminars & Meeting/Event Resource ,East and Central Africa ,Capita  Business Services ,101625-108 ,792.68,
DFID,DFID,20/10/2015,Training Providers/Facilitation Services ,East and Central Africa ,Capita  Business Services ,101634-101 ,"1,956.64",
DFID,DFID,20/10/2015,Training Providers/Facilitation Services ,Group Operations ,Capita  Business Services ,204284-101 ,"1,274.00",
DFID,DFID,13/10/2015,Training Providers/Facilitation Services ,Group Operations ,Capita  Business Services ,204284-101 ,637.00,
DFID,DFID,13/10/2015,Training Providers/Facilitation Services ,Economic Development Division ,Capita  Business Services ,204686-101 ,"1,567.00",
DFID,DFID,21/10/2015,Training Providers/Facilitation Services ,Finance and Corporate Performance Division ,Capita  Business Services ,204846-101 ,"9,359.43",
DFID,DFID,29/10/2015,Training Providers/Facilitation Services ,Finance and Corporate Performance Division ,Capita  Business Services ,204846-101 ,"6,519.51",
DFID,DFID,26/10/2015,Aid Programme - Accountable Grant Payments ,West and Southern Africa ,CONCERN WORLDWIDE ,203445-104 ,"3,516,448.00",
DFID,DFID,23/10/2015,Research and development costs - supplier services ,Research and Evidence Division ,DEMOS ,204584-122 ,"12,154.00",
DFID,DFID,23/10/2015,Project delivery costs – supplier services ,East and Central Africa ,THE ENTERPRISE PARTNERSHIP ,201575-102 ,"17,160.00",
DFID,DFID,15/10/2015,Project delivery costs – supplier services ,Asia  Caribbean and Overseas Territories ,Nathan Associates London Ltd ,202180-102 ,"183,322.14",
DFID,DFID,05/10/2015,Professional member subscriptions ,Human Resources ,ECA INTERNATIONAL ,100269-135 ,900.00,
DFID,DFID,01/10/2015,Project delivery costs � supplier services,East and Central Africa ,Supplier Name withheld ,101635-101 ,"18,015.29",
DFID,DFID,28/10/2015,Project delivery costs – supplier services ,Research and Evidence Division ,Supplier Name withheld ,203193-101 ,"5,926.38",
DFID,DFID,30/10/2015,Project delivery costs – supplier services ,Research and Evidence Division ,Supplier Name withheld ,203193-101 ,"28,747.78",
DFID,DFID,23/10/2015,Project delivery costs – supplier services ,East and Central Africa ,Supplier Name withheld ,203308-109 ,"49,446.55",
DFID,DFID,30/10/2015,Project delivery costs – supplier services ,Policy Division ,Supplier Name withheld ,202194-102 ,"3,852.91",
DFID,DFID,20/10/2015,Project delivery costs – supplier services ,Western Asia Division ,Supplier Name withheld ,202109-104 ,"137,616.95",
DFID,DFID,30/10/2015,Project delivery costs – supplier services ,East and Central Africa ,Supplier Name withheld ,200842-112 ,"10,819.58",
DFID,DFID,12/10/2015,Project delivery costs – supplier services ,West and Southern Africa ,Supplier Name withheld ,202455-104 ,"4,200.00",
DFID,DFID,30/10/2015,Project delivery costs – supplier services ,East and Central Africa ,Supplier Name withheld ,202509-102 ,"336,181.00",
DFID,DFID,13/10/2015,Project delivery costs – supplier services ,Asia  Caribbean and Overseas Territories ,Supplier Name withheld ,202788-101 ,"58,222.89",
DFID,DFID,27/10/2015,Project delivery costs – supplier services ,East and Central Africa ,Supplier Name withheld ,202891-105 ,"21,677.00",
DFID,DFID,27/10/2015,Project delivery costs – supplier services ,East and Central Africa ,Supplier Name withheld ,202891-105 ,"228,373.00",
DFID,DFID,30/10/2015,Project delivery costs – supplier services ,East and Central Africa ,Supplier Name withheld ,202891-105 ,"492,665.36",
DFID,DFID,22/10/2015,Project delivery costs – supplier services ,East and Central Africa ,Supplier Name withheld ,202974-105 ,"74,292.93",
DFID,DFID,07/10/2015,Project delivery costs – supplier services ,Policy Division ,Supplier Name withheld ,202948-129 ,"30,927.60",
DFID,DFID,27/10/2015,Project delivery costs – supplier services ,Western Asia Division ,Supplier Name withheld ,202368-102 ,"79,749.60",
DFID,DFID,30/10/2015,Project delivery costs – supplier services ,Western Asia Division ,Supplier Name withheld ,202368-102 ,"85,103.60",
DFID,DFID,24/10/2015,Project delivery costs – supplier services ,Western Asia Division ,Supplier Name withheld ,202368-102 ,"786,138.00",
DFID,DFID,23/10/2015,Project delivery costs – supplier services ,Policy Division ,Supplier Name withheld ,202372-104 ,"139,222.39",
DFID,DFID,20/10/2015,Project delivery costs – supplier services ,Policy Division ,Supplier Name withheld ,202372-104 ,"140,686.66",
DFID,DFID,09/10/2015,Project delivery costs – supplier services ,Research and Evidence Division ,Supplier Name withheld ,204806-101 ,"20,273.00",
DFID,DFID,08/10/2015,Project delivery costs – supplier services ,Middle East  Humanitarian & Conflict Division ,Supplier Name withheld ,204795-102 ,"38,153.00",
DFID,DFID,12/10/2015,Project delivery costs – supplier services ,Middle East  Humanitarian & Conflict Division ,Supplier Name withheld ,204795-102 ,"43,401.21",
DFID,DFID,28/10/2015,Project delivery costs – supplier services ,East and Central Africa ,Supplier Name withheld ,204882-104 ,"26,073.98",
DFID,DFID,12/10/2015,Project delivery costs – supplier services ,East and Central Africa ,Supplier Name withheld ,204882-105 ,"24,483.00",
DFID,DFID,05/10/2015,Project delivery costs – supplier services ,East and Central Africa ,Supplier Name withheld ,204366-101 ,"115,061.08",
DFID,DFID,26/10/2015,Project delivery costs – supplier services ,East and Central Africa ,Supplier Name withheld ,204366-101 ,"71,177.06",
DFID,DFID,22/10/2015,Research and development costs - supplier services ,Research and Evidence Division ,Edinburgh Research & Innovation Ltd ,203604-101 ,"33,246.00",
DFID,DFID,26/10/2015,Aid Programme - Accountable Grant Payments ,Research and Evidence Division ,ECONOMIC AND SOCIAL RESEARCH COUNCIL ,204324-101 ,"350,257.00",
DFID,DFID,26/10/2015,Aid Programme - Accountable Grant Payments ,Research and Evidence Division ,ECONOMIC AND SOCIAL RESEARCH COUNCIL ,204324-101 ,"20,833.00",
DFID,DFID,28/10/2015,Aid Programme - Accountable Grant Payments ,Research and Evidence Division ,ECONOMIC AND SOCIAL RESEARCH COUNCIL ,203704-102 ,"174,440.44",
DFID,DFID,28/10/2015,Aid Programme - Accountable Grant Payments ,Research and Evidence Division ,ECONOMIC AND SOCIAL RESEARCH COUNCIL ,203704-102 ,"1,111.11",
DFID,DFID,27/10/2015,Research and development costs - supplier services ,Research and Evidence Division ,ECONOMIC AND SOCIAL RESEARCH COUNCIL ,203545-103 ,"974,364.00",
DFID,DFID,27/10/2015,Research and development costs - supplier services ,Research and Evidence Division ,ECONOMIC AND SOCIAL RESEARCH COUNCIL ,203545-103 ,"33,082.80",
DFID,DFID,27/10/2015,Research and development costs - supplier services ,Research and Evidence Division ,ECONOMIC AND SOCIAL RESEARCH COUNCIL ,200461-101 ,"286,010.00",
DFID,DFID,27/10/2015,Research and development costs - supplier services ,Research and Evidence Division ,ECONOMIC AND SOCIAL RESEARCH COUNCIL ,200461-101 ,"5,864.40",
DFID,DFID,06/10/2015,Aid Programme - Partnership Programme Arrangements ,Policy Division ,FARM-Africa ,202624-101 ,"769,567.00",
DFID,DFID,19/10/2015,Postage Costs ,Group Operations ,FCO SERVICES ,201157-101 ,"7,885.50",
DFID,DFID,30/10/2015,Government Car Scheme UK ,Top Management Group ,FCO SERVICES ,100232-102 ,"6,382.08",
DFID,DFID,30/10/2015,Government Car Scheme UK ,Top Management Group ,FCO SERVICES ,100232-108 ,"6,382.08",
DFID,DFID,30/10/2015,Government Car Scheme UK ,Top Management Group ,FCO SERVICES ,100232-106 ,"6,382.08",
DFID,DFID,30/10/2015,Government Car Scheme UK ,Top Management Group ,FCO SERVICES ,100232-107 ,"6,379.20",
DFID,DFID,21/10/2015,Gas ,Group Operations ,CORONA ENERGY ,100106-101 ,653.39,
DFID,DFID,14/10/2015,Project delivery costs – supplier services ,West and Southern Africa ,GRM INTERNATIONAL LTD (1) ,114230-101 ,"580,693.49",
DFID,DFID,07/10/2015,Project delivery costs – supplier services ,West and Southern Africa ,GRM INTERNATIONAL LTD (1) ,202098-101 ,"283,744.69",
DFID,DFID,22/10/2015,Project delivery costs – supplier services ,Asia  Caribbean and Overseas Territories ,GRM INTERNATIONAL LTD (1) ,201851-101 ,"612,203.31",
DFID,DFID,23/10/2015,Project delivery costs – supplier services ,West and Southern Africa ,GRM INTERNATIONAL LTD (1) ,202370-102 ,"628,509.69",
DFID,DFID,13/10/2015,Project delivery costs – supplier services ,West and Southern Africa ,GRM INTERNATIONAL LTD (1) ,202370-102 ,"564,862.04",
DFID,DFID,15/10/2015,Project delivery costs – supplier services ,West and Southern Africa ,GRM INTERNATIONAL LTD (1) ,202352-102 ,"402,296.82",
DFID,DFID,23/10/2015,Project delivery costs – supplier services ,East and Central Africa ,GRM INTERNATIONAL LTD (1) ,202596-108 ,"33,527.88",
DFID,DFID,05/10/2015,Project delivery costs – supplier services ,East and Central Africa ,GRM INTERNATIONAL LTD (1) ,202596-108 ,"39,772.60",
DFID,DFID,20/10/2015,Fund monies to be managed and dispersed by the supplier ,East and Central Africa ,GRM INTERNATIONAL LTD (1) ,203539-102 ,"669,823.00",
DFID,DFID,01/10/2015,Project delivery costs – supplier services ,West and Southern Africa ,GRM INTERNATIONAL LTD (1) ,203429-103 ,"118,628.90",
DFID,DFID,30/10/2015,Project delivery costs – supplier services ,West and Southern Africa ,GRM INTERNATIONAL LTD (1) ,203429-103 ,"55,952.71",
DFID,DFID,20/10/2015,Project delivery costs – supplier services ,East and Central Africa ,GRM INTERNATIONAL LTD (1) ,203539-102 ,"80,723.65",
DFID,DFID,13/10/2015,Project delivery costs – supplier services ,Asia  Caribbean and Overseas Territories ,ICF CONSULTING SERVICES LTD. ,114168-101 ,"98,477.00",
DFID,DFID,13/10/2015,Project delivery costs – supplier services ,Asia  Caribbean and Overseas Territories ,ICF CONSULTING SERVICES LTD. ,114168-101 ,"59,520.00",
DFID,DFID,13/10/2015,Project delivery costs – supplier services ,Asia  Caribbean and Overseas Territories ,ICF CONSULTING SERVICES LTD. ,114168-101 ,"53,445.00",
DFID,DFID,28/10/2015,Aid Programme - Accountable Grant Payments ,Research and Evidence Division ,GALVmed ,203188-102 ,"285,474.00",
DFID,DFID,23/10/2015,Project delivery costs – supplier services ,Asia  Caribbean and Overseas Territories ,ICF Consulting Services Ltd ,203484-101 ,"34,995.00",
DFID,DFID,21/10/2015,Project delivery costs – supplier services ,Asia  Caribbean and Overseas Territories ,ICF Consulting Services Ltd ,203484-101 ,"36,501.00",
DFID,DFID,21/10/2015,Project delivery costs – supplier services ,Asia  Caribbean and Overseas Territories ,ICF Consulting Services Ltd ,203484-101 ,"145,493.00",
DFID,DFID,07/10/2015,Project delivery costs – supplier services ,Asia  Caribbean and Overseas Territories ,ICF Consulting Services Ltd ,107891-102 ,"15,523.00",
DFID,DFID,07/10/2015,Project delivery costs – supplier services ,Asia  Caribbean and Overseas Territories ,ICF Consulting Services Ltd ,107891-102 ,"23,715.00",
DFID,DFID,07/10/2015,Project delivery costs – supplier services ,Asia  Caribbean and Overseas Territories ,ICF Consulting Services Ltd ,107891-102 ,"23,715.00",
DFID,DFID,07/10/2015,Project delivery costs – supplier services ,Asia  Caribbean and Overseas Territories ,ICF Consulting Services Ltd ,107891-102 ,"5,829.00",
DFID,DFID,07/10/2015,Project delivery costs – supplier services ,Asia  Caribbean and Overseas Territories ,ICF Consulting Services Ltd ,107891-102 ,"23,715.00",
DFID,DFID,07/10/2015,Project delivery costs – supplier services ,Asia  Caribbean and Overseas Territories ,ICF Consulting Services Ltd ,107891-102 ,"13,868.00",
DFID,DFID,07/10/2015,Project delivery costs – supplier services ,Asia  Caribbean and Overseas Territories ,ICF Consulting Services Ltd ,107891-102 ,"5,814.00",
DFID,DFID,07/10/2015,Project delivery costs – supplier services ,Asia  Caribbean and Overseas Territories ,ICF Consulting Services Ltd ,107891-102 ,"13,614.00",
DFID,DFID,07/10/2015,Project delivery costs – supplier services ,Asia  Caribbean and Overseas Territories ,ICF Consulting Services Ltd ,107891-102 ,"23,715.00",
DFID,DFID,07/10/2015,Project delivery costs – supplier services ,Asia  Caribbean and Overseas Territories ,ICF Consulting Services Ltd ,107891-102 ,"14,207.00",
DFID,DFID,07/10/2015,Project delivery costs – supplier services ,Asia  Caribbean and Overseas Territories ,ICF Consulting Services Ltd ,107891-102 ,"5,356.00",
DFID,DFID,07/10/2015,Project delivery costs – supplier services ,Asia  Caribbean and Overseas Territories ,ICF Consulting Services Ltd ,107891-102 ,"5,781.00",
DFID,DFID,06/10/2015,Aid Programme - Humanitarian Material Relief Assistance and Services ,Asia  Caribbean and Overseas Territories ,Supplier Name withheld ,205028-102 ,"337,808.00",
DFID,DFID,13/10/2015,Project delivery costs – supplier services ,Middle East  Humanitarian & Conflict Division ,THE HALO TRUST ,203243-110 ,"215,719.00",
DFID,DFID,22/10/2015,Project delivery costs – supplier services ,Middle East  Humanitarian & Conflict Division ,THE HALO TRUST ,203243-118 ,"105,006.26",
DFID,DFID,13/10/2015,Project delivery costs – supplier services ,Middle East  Humanitarian & Conflict Division ,THE HALO TRUST ,203243-119 ,"752,609.00",
DFID,DFID,13/10/2015,Project delivery costs – supplier services ,Middle East  Humanitarian & Conflict Division ,THE HALO TRUST ,203243-121 ,"263,836.90",
DFID,DFID,13/10/2015,Project delivery costs – supplier services ,Middle East  Humanitarian & Conflict Division ,THE HALO TRUST ,203243-122 ,"251,991.34",
DFID,DFID,15/10/2015,Aid Programme - Accountable Grant Payments ,Western Asia Division ,Supplier Name withheld ,203748-101 ,"378,280.21",
DFID,DFID,16/10/2015,Aid Programme - Partnership Programme Arrangements ,Policy Division ,HELPAGE INTERNATIONAL ,202566-101 ,"667,568.00",
DFID,DFID,21/10/2015,Project delivery costs – supplier services ,West and Southern Africa ,HEALTH PARTNERS INTERNATIONAL ,202694-101 ,"159,665.64",
DFID,DFID,27/10/2015,Project delivery costs – supplier services ,Western Asia Division ,HTSPE LTD ,202491-102 ,"112,852.21",
DFID,DFID,02/10/2015,Project delivery costs – supplier services ,East and Central Africa ,HTSPE LTD ,202900-102 ,"692,947.74",
DFID,DFID,28/10/2015,Project delivery costs – supplier services ,East and Central Africa ,HTSPE LTD ,202900-102 ,"154,807.45",
DFID,DFID,30/10/2015,Project delivery costs – supplier services ,East and Central Africa ,HTSPE LTD ,202900-105 ,"17,939.89",
DFID,DFID,15/10/2015,Project delivery costs – supplier services ,Economic Development Division ,HTSPE LTD ,204252-110 ,"31,160.00",
DFID,DFID,22/10/2015,Project delivery costs – supplier services ,West and Southern Africa ,HTSPE LTD ,203627-104 ,"26,106.77",
DFID,DFID,14/10/2015,Project delivery costs – supplier services ,West and Southern Africa ,HTSPE LTD ,104189-101 ,"710,999.98",
DFID,DFID,19/10/2015,Project delivery costs – supplier services ,Asia  Caribbean and Overseas Territories ,HTSPE LTD ,114175-108 ,"32,814.04",
DFID,DFID,19/10/2015,Project delivery costs – supplier services ,Asia  Caribbean and Overseas Territories ,HTSPE LTD ,114175-108 ,"11,178.00",
DFID,DFID,15/10/2015,Project delivery costs – supplier services ,Research and Evidence Division ,HTSPE LTD ,201884-101 ,"5,716.12",
DFID,DFID,15/10/2015,Project delivery costs – supplier services ,Research and Evidence Division ,HTSPE LTD ,201884-101 ,"7,621.49",
DFID,DFID,15/10/2015,Project delivery costs – supplier services ,Research and Evidence Division ,HTSPE LTD ,201884-101 ,"5,716.12",
DFID,DFID,14/10/2015,Project delivery costs – supplier services ,West and Southern Africa ,HTSPE LTD ,201944-104 ,"48,449.25",
DFID,DFID,23/10/2015,Project delivery costs – supplier services ,Policy Division ,HTSPE LTD ,205027-101 ,"21,627.12",
DFID,DFID,27/10/2015,Aid Programme - Challenge Fund payments ,Western Asia Division ,HTSPE LTD ,202491-106 ,"70,381.53",
DFID,DFID,19/10/2015,Research and development costs - supplier services ,Research and Evidence Division ,HTSPE LTD ,204046-101 ,"8,013.33",
DFID,DFID,19/10/2015,Project delivery costs – supplier services ,Asia  Caribbean and Overseas Territories ,HTSPE LTD ,203174-102 ,"22,965.19",
DFID,DFID,30/10/2015,Project delivery costs – supplier services ,East and Central Africa ,HTSPE LTD ,203574-103 ,"15,391.85",
DFID,DFID,30/10/2015,Project delivery costs – supplier services ,East and Central Africa ,HTSPE LTD ,203574-109 ,"43,200.05",
DFID,DFID,19/10/2015,Project delivery costs – supplier services ,East and Central Africa ,HTSPE LTD ,203574-109 ,"64,434.37",
DFID,DFID,21/10/2015,Project delivery costs – supplier services ,East and Central Africa ,HTSPE LTD ,203574-112 ,"44,007.64",
DFID,DFID,30/10/2015,Project delivery costs – supplier services ,East and Central Africa ,HTSPE LTD ,203574-112 ,"7,586.17",
DFID,DFID,21/10/2015,Research and development costs - supplier services ,Research and Evidence Division ,HTSPE LTD ,205090-101 ,"9,080.00",
DFID,DFID,29/10/2015,Contract & Agency Staff ,Finance and Corporate Performance Division ,Hays Specialist Recruitment Ltd ,100201-101 ,"1,157.16",
DFID,DFID,01/10/2015,Contract & Agency Staff ,Finance and Corporate Performance Division ,Hays Specialist Recruitment Ltd ,100201-101 ,"1,157.16",
DFID,DFID,15/10/2015,Contract & Agency Staff ,Finance and Corporate Performance Division ,Hays Specialist Recruitment Ltd ,100201-101 ,"1,157.16",
DFID,DFID,13/10/2015,Contract & Agency Staff ,Finance and Corporate Performance Division ,Hays Specialist Recruitment Ltd ,100201-101 ,"1,157.16",
DFID,DFID,15/10/2015,Contract & Agency Staff ,Finance and Corporate Performance Division ,Hays Specialist Recruitment Ltd ,100201-101 ,594.05,
DFID,DFID,22/10/2015,Contract & Agency Staff ,Finance and Corporate Performance Division ,Hays Specialist Recruitment Ltd ,100201-101 ,"1,157.16",
DFID,DFID,19/10/2015,Project delivery costs – supplier services ,Western Asia Division ,Supplier Name withheld ,203106-103 ,"14,353.45",
DFID,DFID,23/10/2015,Contract & Agency Staff ,Finance and Corporate Performance Division ,HUDSON GLOBAL RESOURCES LTD ,100201-101 ,"2,095.10",
DFID,DFID,23/10/2015,Contract & Agency Staff ,Finance and Corporate Performance Division ,HUDSON GLOBAL RESOURCES LTD ,100201-101 ,"4,713.98",
DFID,DFID,30/10/2015,Contract & Agency Staff ,Finance and Corporate Performance Division ,HUDSON GLOBAL RESOURCES LTD ,100201-101 ,"4,190.21",
DFID,DFID,07/10/2015,Contract & Agency Staff ,Finance and Corporate Performance Division ,HUDSON GLOBAL RESOURCES LTD ,100201-101 ,"5,053.81",
DFID,DFID,30/10/2015,Contract & Agency Staff ,Group Operations ,HUDSON GLOBAL RESOURCES LTD ,100161-101 ,"2,000.59",
DFID,DFID,07/10/2015,Contract & Agency Staff ,Human Resources ,HUDSON GLOBAL RESOURCES LTD ,100261-101 ,"3,274.30",
DFID,DFID,06/10/2015,Training Providers/Facilitation Services ,Policy Division ,Cabinet Office ,100191-101 ,"24,000.00",
DFID,DFID,21/10/2015,Project delivery costs – supplier services ,Asia  Caribbean and Overseas Territories ,JEREMY HOLLAND ,202958-102 ,"24,172.21",
DFID,DFID,29/10/2015,Aid Programme - Partnership Programme Arrangements ,Policy Division ,International Planned Parent ,114146-101 ,"2,150,000.00",
DFID,DFID,05/10/2015,Project delivery costs – supplier services ,West and Southern Africa ,ITAD LTD ,202482-102 ,"12,777.00",
DFID,DFID,15/10/2015,Project delivery costs – supplier services ,West and Southern Africa ,ITAD LTD ,202482-102 ,"111,645.00",
DFID,DFID,12/10/2015,Project delivery costs – supplier services ,Policy Division ,ITAD LTD ,201724-134 ,"31,807.28",
DFID,DFID,12/10/2015,Project delivery costs – supplier services ,Policy Division ,ITAD LTD ,201724-134 ,"25,042.50",
DFID,DFID,08/10/2015,Project delivery costs – supplier services ,Policy Division ,ITAD LTD ,201724-134 ,"85,673.71",
DFID,DFID,08/10/2015,Project delivery costs – supplier services ,Policy Division ,ITAD LTD ,201724-134 ,"48,700.00",
DFID,DFID,13/10/2015,Project delivery costs – supplier services ,Policy Division ,THE INSTITUTE OF DEVELOPMENT STUDIE ,202882-101 ,"148,761.00",
DFID,DFID,09/10/2015,Project delivery costs – supplier services ,Policy Division ,THE INSTITUTE OF DEVELOPMENT STUDIE ,202882-101 ,"99,452.00",
DFID,DFID,29/10/2015,Research and development costs - supplier services ,Research and Evidence Division ,THE INSTITUTE OF DEVELOPMENT STUDIE ,204570-103 ,"26,493.19",
DFID,DFID,29/10/2015,Research and development costs - supplier services ,Research and Evidence Division ,THE INSTITUTE OF DEVELOPMENT STUDIE ,204570-103 ,"6,006.81",
DFID,DFID,02/10/2015,Aid Programme - Partnership Programme Arrangements ,Policy Division ,INTERNATIONAL HIV/AIDS ALLIANCE ,202557-101 ,"972,905.75",
DFID,DFID,23/10/2015,Aid Programme - Voluntary contributions ,East and Central Africa ,ICRAF ,204956-102 ,"135,220.45",
DFID,DFID,08/10/2015,Research and development costs - supplier services ,Research and Evidence Division ,INASP ,203778-106 ,"292,990.41",
DFID,DFID,19/10/2015,Aid Programme - Partnership Programme Arrangements ,Policy Division ,INTERNATIONAL ALERT ,202687-101 ,"434,790.00",
DFID,DFID,12/10/2015,Training Providers/Facilitation Services ,Internal Audit ,INSTITUTE OF INTERNAL AUDITORS-UK ,100121-101 ,975.00,
DFID,DFID,14/10/2015,Training - Course Fees ,Internal Audit ,INSTITUTE OF INTERNAL AUDITORS-UK ,100121-101 ,880.00,
DFID,DFID,13/10/2015,Training - Course Fees ,Internal Audit ,INSTITUTE OF INTERNAL AUDITORS-UK ,100121-101 ,"1,215.00",
DFID,DFID,13/10/2015,Training - Course Fees ,Internal Audit ,INSTITUTE OF INTERNAL AUDITORS-UK ,100121-101 ,"1,215.00",
DFID,DFID,16/10/2015,Project delivery costs – supplier services ,Policy Division ,INTERN DEVEL EDUC ASSOC OF SCOTLAND ,201469-105 ,"135,137.00",
DFID,DFID,07/10/2015,Research and development costs - supplier services ,Research and Evidence Division ,THE UNIVERSITY OF MANCHESTER ,201010-101 ,"360,546.40",
DFID,DFID,07/10/2015,Aid Programme - Accountable Grant Payments ,West and Southern Africa ,INTERNATIONAL RESCUE COMMITTEE UK ,105862-103 ,"2,712,035.00",
DFID,DFID,06/10/2015,Aid Programme - Accountable Grant Payments ,Asia  Caribbean and Overseas Territories ,INTERNATIONAL RESCUE COMMITTEE UK ,203400-101 ,"265,167.00",
DFID,DFID,14/10/2015,Aid Programme - Humanitarian Material Relief Assistance and Services ,Middle East  Humanitarian & Conflict Division ,INTERNATIONAL RESCUE COMMITTEE UK ,204987-101 ,"763,744.00",
DFID,DFID,22/10/2015,Aid Programme - Humanitarian Material Relief Assistance and Services ,Middle East  Humanitarian & Conflict Division ,INTERNATIONAL RESCUE COMMITTEE UK ,204987-101 ,"46,014.00",
DFID,DFID,26/10/2015,Research and development costs - supplier services ,Research and Evidence Division ,INSTITUTE OF DEVELOPMENT STUDIES ,201097-101 ,"61,965.76",
DFID,DFID,16/10/2015,Aid Programme - Trust Funds contributions ,Research and Evidence Division ,IBRD HSBC T ,113710-101 ,"6,000,000.00",
DFID,DFID,22/10/2015,Aid Programme - Trust Funds contributions ,Middle East  Humanitarian & Conflict Division ,IBRD HSBC T ,202564-101 ,"7,500,000.00",
DFID,DFID,13/10/2015,Aid Programme - Trust Funds contributions ,Research and Evidence Division ,IBRD HSBC T ,202211-101 ,"25,000,000.00",
DFID,DFID,28/10/2015,Aid Programme - Core contributions ,Asia  Caribbean and Overseas Territories ,IBRD HSBC T ,204623-112 ,"400,000.00",
DFID,DFID,29/10/2015,Aid Programme - Trust Funds contributions ,Research and Evidence Division ,IBRD HSBC T ,204991-101 ,"7,000,000.00",
DFID,DFID,29/10/2015,Aid Programme - Trust Funds contributions ,Research and Evidence Division ,IBRD HSBC T ,204991-101 ,"1,750,000.00",
DFID,DFID,23/10/2015,Aid Programme - Trust Funds contributions ,Economic Development Division ,IBRD HSBC T ,203808-101 ,"1,000,000.00",
DFID,DFID,09/10/2015,Aid Programme - Trust Funds contributions ,Economic Development Division ,IBRD HSBC T ,203808-106 ,"1,000,000.00",
DFID,DFID,27/10/2015,Aid Programme - Trust Funds contributions ,Economic Development Division ,IBRD HSBC T ,204255-103 ,"300,000.00",
DFID,DFID,19/10/2015,Aid Programme - Trust Funds contributions ,Research and Evidence Division ,IBRD HSBC T ,204343-101 ,"250,000.00",
DFID,DFID,05/10/2015,Project delivery costs – supplier services ,Research and Evidence Division ,IOD PARC ,203197-101 ,"32,970.00",
DFID,DFID,20/10/2015,Project delivery costs – supplier services ,Middle East  Humanitarian & Conflict Division ,IOD PARC ,202885-101 ,"4,503.07",
DFID,DFID,01/10/2015,Project delivery costs – supplier services ,Policy Division ,IOD PARC ,203493-101 ,"8,493.60",
DFID,DFID,12/10/2015,Aid Programme - Trust Funds contributions ,East and Central Africa ,IBRD (HSBC)  C/O THE WORLD BANK ,204033-107 ,"462,000.00",
DFID,DFID,12/10/2015,Aid Programme - Trust Funds contributions ,Research and Evidence Division ,IBRD (HSBC)  C/O THE WORLD BANK ,203872-101 ,"3,194,000.00",
DFID,DFID,28/10/2015,Aid Programme - Trust Funds contributions ,West and Southern Africa ,IBRD (HSBC)  C/O THE WORLD BANK ,203312-101 ,"935,000.00",
DFID,DFID,09/10/2015,Aid Programme - Trust Funds contributions ,West and Southern Africa ,IBRD (HSBC)  C/O THE WORLD BANK ,203270-101 ,"500,000.00",
DFID,DFID,27/10/2015,Aid Programme - Trust Funds contributions ,Western Asia Division ,IBRD (HSBC)  C/O THE WORLD BANK ,203029-106 ,"1,000,000.00",
DFID,DFID,02/10/2015,Aid Programme - Trust Funds contributions ,Policy Division ,IBRD (HSBC)  C/O THE WORLD BANK ,203034-103 ,"1,290,000.00",
DFID,DFID,28/10/2015,Aid Programme - Trust Funds contributions ,West and Southern Africa ,IBRD (HSBC)  C/O THE WORLD BANK ,202427-101 ,"1,325,337.00",
DFID,DFID,12/10/2015,Aid Programme - Trust Funds contributions ,West and Southern Africa ,IBRD (HSBC)  C/O THE WORLD BANK ,105862-105 ,"900,000.00",
DFID,DFID,28/10/2015,Project delivery costs – supplier services ,Policy Division ,IMPERIAL COLLEGE LONDON ,200706-101 ,"116,191.91",
DFID,DFID,06/10/2015,Aid Programme - Core contributions ,Global Funds ,IBRD-IFFIm ,111073-101 ,"37,342,500.00",
DFID,DFID,06/10/2015,Aid Programme - Core contributions ,Global Funds ,IBRD-IFFIm ,201185-101 ,"4,454,620.00",
DFID,DFID,05/10/2015,Project delivery costs – supplier services ,Regional Directorate ,KELLOGG BROWN & ROOT LIMITED ,204876-102 ,"99,802.15",
DFID,DFID,05/10/2015,Project delivery costs – supplier services ,Regional Directorate ,KELLOGG BROWN & ROOT LIMITED ,204876-102 ,"31,385.27",
DFID,DFID,21/10/2015,Aid Programme - Accountable Grant Payments ,Policy Division ,LIVERPOOL SCHOOL OF TROPICAL MEDICINE ,201177-101 ,"1,548,844.00",
DFID,DFID,28/10/2015,Research and development costs - supplier services ,Research and Evidence Division ,LIVERPOOL SCHOOL OF TROPICAL MEDICINE ,201400-101 ,"245,718.25",
DFID,DFID,29/10/2015,Research and development costs - supplier services ,Research and Evidence Division ,LIVERPOOL SCHOOL OF TROPICAL MEDICINE ,203089-101 ,"274,493.83",
DFID,DFID,09/10/2015,Aid Programme - Accountable Grant Payments ,Research and Evidence Division ,London School of Hygiene and Tropical Medicine ,204046-101 ,"212,682.00",
DFID,DFID,19/10/2015,Project delivery costs – supplier services ,East and Central Africa ,London School of Hygiene and Tropical Medicine ,203155-103 ,"372,049.00",
DFID,DFID,27/10/2015,Project delivery costs – supplier services ,Research and Evidence Division ,London School of Hygiene and Tropical Medicine ,203806-101 ,"116,531.52",
DFID,DFID,13/10/2015,Project delivery costs – supplier services ,East and Central Africa ,London School of Hygiene and Tropical Medicine ,204033-105 ,"16,282.50",
DFID,DFID,21/10/2015,Project delivery costs – supplier services ,Research and Evidence Division ,London School of Hygiene and Tropical Medicine ,114396-102 ,"201,002.84",
DFID,DFID,02/10/2015,Print Services ,Research and Evidence Division ,UNIVERSITY OF LONDON INSTIT ,203339-103 ,"4,435.00",
DFID,DFID,09/10/2015,Electricity ,Group Operations ,EDF ENERGY ,203717-101 ,"8,526.91",
DFID,DFID,09/10/2015,Electricity ,Group Operations ,EDF ENERGY ,203717-101 ,"12,339.14",
DFID,DFID,21/10/2015,Electricity ,Group Operations ,EDF ENERGY ,100106-101 ,"16,808.51",
DFID,DFID,09/10/2015,Project delivery costs – supplier services ,Middle East  Humanitarian & Conflict Division ,LONDON SCHOOL OF ECONOMICS & POL ,204921-101 ,"22,177.00",
DFID,DFID,19/10/2015,Project delivery costs – supplier services ,Asia  Caribbean and Overseas Territories ,Supplier Name withheld ,201388-102 ,"261,052.63",
DFID,DFID,26/10/2015,Project delivery costs – supplier services ,Asia  Caribbean and Overseas Territories ,Supplier Name withheld ,201388-102 ,"806,045.12",
DFID,DFID,26/10/2015,Project delivery costs – supplier services ,Western Asia Division ,Supplier Name withheld ,203029-104 ,"387,877.00",
DFID,DFID,23/10/2015,Project delivery costs – supplier services ,Policy Division ,Supplier Name withheld ,204020-103 ,"12,119.36",
DFID,DFID,23/10/2015,Project delivery costs – supplier services ,Policy Division ,Supplier Name withheld ,204020-103 ,"11,054.00",
DFID,DFID,27/10/2015,Project delivery costs – supplier services ,Western Asia Division ,Supplier Name withheld ,204277-102 ,"55,607.06",
DFID,DFID,01/10/2015,Project delivery costs – supplier services ,Western Asia Division ,Supplier Name withheld ,204277-102 ,"72,167.75",
DFID,DFID,23/10/2015,Project delivery costs – supplier services ,East and Central Africa ,Supplier Name withheld ,204288-103 ,"125,264.81",
DFID,DFID,13/10/2015,Project delivery costs – supplier services ,Research and Evidence Division ,Supplier Name withheld ,203778-110 ,"25,249.12",
DFID,DFID,13/10/2015,Project delivery costs – supplier services ,Research and Evidence Division ,Supplier Name withheld ,203778-110 ,"3,437.14",
DFID,DFID,09/10/2015,Project delivery costs – supplier services ,East and Central Africa ,Mott MacDonald,202377-102 ,"138,809.00",
DFID,DFID,21/10/2015,Project delivery costs – supplier services ,East and Central Africa ,Supplier Name withheld ,202893-102 ,"62,775.00",
DFID,DFID,21/10/2015,Project delivery costs – supplier services ,East and Central Africa ,Supplier Name withheld ,202893-102 ,"23,541.00",
DFID,DFID,26/10/2015,Project delivery costs – supplier services ,West and Southern Africa ,Supplier Name withheld ,202942-102 ,"568,406.15",
DFID,DFID,29/10/2015,Project delivery costs – supplier services ,West and Southern Africa ,Supplier Name withheld,202942-102 ,"262,904.42",
DFID,DFID,30/10/2015,Project delivery costs – supplier services ,Western Asia Division ,Supplier Name withheld ,202488-107 ,"289,676.26",
DFID,DFID,01/10/2015,Project delivery costs – supplier services ,Western Asia Division ,Supplier Name withheld ,202488-107 ,"203,072.88",
DFID,DFID,23/10/2015,Project delivery costs – supplier services ,West and Southern Africa ,Supplier Name withheld ,202678-101 ,"94,756.35",
DFID,DFID,23/10/2015,Project delivery costs – supplier services ,East and Central Africa ,Supplier Name withheld ,203363-103 ,"1,347,084.34",
DFID,DFID,26/10/2015,Project delivery costs – supplier services ,West and Southern Africa ,Supplier Name withheld ,203154-103 ,"333,527.96",
DFID,DFID,21/10/2015,Aid Programme - Challenge Fund payments ,Asia  Caribbean and Overseas Territories ,MAXWELL STAMP PLC ,107460-107 ,"277,028.82",
DFID,DFID,12/10/2015,Project delivery costs – supplier services ,West and Southern Africa ,MAXWELL STAMP PLC ,202623-104 ,"47,532.60",
DFID,DFID,20/10/2015,Project delivery costs – supplier services ,Asia  Caribbean and Overseas Territories ,MAXWELL STAMP PLC ,107370-101 ,"19,663.12",
DFID,DFID,21/10/2015,Project delivery costs – supplier services ,Asia  Caribbean and Overseas Territories ,MAXWELL STAMP PLC ,114175-110 ,"408,595.28",
DFID,DFID,27/10/2015,Project delivery costs – supplier services ,Asia  Caribbean and Overseas Territories ,MAXWELL STAMP PLC ,114175-101 ,"152,212.56",
DFID,DFID,21/10/2015,Project delivery costs – supplier services ,Asia  Caribbean and Overseas Territories ,MAXWELL STAMP PLC ,114175-102 ,"208,473.44",
DFID,DFID,27/10/2015,Project delivery costs – supplier services ,Asia  Caribbean and Overseas Territories ,MAXWELL STAMP PLC ,114175-105 ,"9,201.10",
DFID,DFID,21/10/2015,Project delivery costs – supplier services ,Asia  Caribbean and Overseas Territories ,MAXWELL STAMP PLC ,114175-106 ,"110,112.26",
DFID,DFID,07/10/2015,Project delivery costs – supplier services ,Human Resources ,MTB CONSULTING ,100269-130 ,"2,100.00",
DFID,DFID,13/10/2015,Project delivery costs – supplier services ,Group Operations ,MARSH PRIVATE CLIENT SERVICES ,204999-103 ,"10,958.43",
DFID,DFID,13/10/2015,Project delivery costs – supplier services ,Group Operations ,MARSH PRIVATE CLIENT SERVICES ,202426-101 ,"43,833.69",Quarterly worldwide all risks & public liability insurance policy for overseas staff for the period  July - Septembr 2015 
DFID,DFID,27/10/2015,Repairs  Maint  Alter - Property & Constrct. Services ,Group Operations ,MITIE Technical Facilities Management Ltd ,203717-101 ,"8,643.55",
DFID,DFID,01/10/2015,Office Equipment - Purchases ,Policy Division ,MITIE Technical Facilities Management Ltd ,100045-101 ,"2,335.20",
DFID,DFID,27/10/2015,Repairs  Maint  Alter - Property & Constrct. Services ,Group Operations ,MITIE Technical Facilities Management Ltd ,100106-101 ,"1,323.76",
DFID,DFID,27/10/2015,Cleaning Costs ,Group Operations ,MITIE Technical Facilities Management Ltd ,100106-101 ,"14,765.76",
DFID,DFID,27/10/2015,Facilities Management payments ,Group Operations ,MITIE Technical Facilities Management Ltd ,100106-101 ,"13,521.50",
DFID,DFID,27/10/2015,Contract Catering Services ,Group Operations ,MITIE Technical Facilities Management Ltd ,100106-101 ,"1,596.88",
DFID,DFID,08/10/2015,Cleaning Costs ,Policy Division ,MITIE Technical Facilities Management Ltd ,100045-101 ,912.50,
DFID,DFID,08/10/2015,Repairs  Maintenance and Alterations – Other Building Costs ,Policy Division ,MITIE Technical Facilities Management Ltd ,100045-101 ,685.92,
DFID,DFID,08/10/2015,Repairs  Maintenance and Alterations – Other Building Costs ,Group Operations ,MITIE Technical Facilities Management Ltd ,203717-101 ,730.10,
DFID,DFID,09/10/2015,Repairs  Maintenance and Alterations – Other Building Costs ,Group Operations ,MITIE Technical Facilities Management Ltd ,203717-101 ,"3,033.84",
DFID,DFID,28/10/2015,Repairs  Maintenance and Alterations – Other Building Costs ,Group Operations ,MITIE Technical Facilities Management Ltd ,203717-101 ,"1,676.50",
DFID,DFID,08/10/2015,Cleaning Costs ,Group Operations ,MITIE Technical Facilities Management Ltd ,203717-101 ,"1,453.50",
DFID,DFID,27/10/2015,Cleaning Costs ,Group Operations ,MITIE Technical Facilities Management Ltd ,203717-101 ,"20,665.50",
DFID,DFID,27/10/2015,Facilities Management payments ,Group Operations ,MITIE Technical Facilities Management Ltd ,203717-101 ,"24,701.46",
DFID,DFID,27/10/2015,Contract Catering Services ,Group Operations ,MITIE Technical Facilities Management Ltd ,203717-101 ,843.22,
DFID,DFID,01/10/2015,Repairs  Maintenance and Alterations – Other Building Costs ,Group Operations ,MITIE Technical Facilities Management Ltd ,203717-101 ,"1,837.00",
DFID,DFID,13/10/2015,Aid Programme - Partnership Programme Arrangements ,Policy Division ,MARIE STOPES INTERNATIONAL ,202625-101 ,"1,088,263.00",
DFID,DFID,06/10/2015,Aid Programme - Partnership Programme Arrangements ,Policy Division ,MALARIA CONSORTIUM ,202700-101 ,"667,567.25",
DFID,DFID,26/10/2015,Project delivery costs – supplier services ,West and Southern Africa ,MALARIA CONSORTIUM ,104223-101 ,"394,161.00",
DFID,DFID,15/10/2015,Aid Programme - Accountable Grant Payments ,Middle East  Humanitarian & Conflict Division ,Supplier Name withheld ,205075-101 ,"1,138,878.00",
DFID,DFID,05/10/2015,Aid Programme - Partnership Programme Arrangements ,Policy Division ,MAPACTION ,202793-101 ,"37,789.50",
DFID,DFID,30/10/2015,Aid Programme - Accountable Grant Payments ,Asia  Caribbean and Overseas Territories ,OXFAM INSTITUTIONAL INCOME ACCOUNT ,202433-107 ,"97,649.00",
DFID,DFID,12/10/2015,Aid Programme - Accountable Grant Payments ,Middle East  Humanitarian & Conflict Division ,OXFAM INSTITUTIONAL INCOME ACCOUNT ,203847-102 ,"232,717.00",
DFID,DFID,20/10/2015,Project delivery costs – supplier services ,Research and Evidence Division ,OXFAM INSTITUTIONAL INCOME ACCOUNT ,203706-102 ,"37,628.49",
DFID,DFID,07/10/2015,Project delivery costs – supplier services ,Asia  Caribbean and Overseas Territories ,OXFAM INSTITUTIONAL INCOME ACCOUNT ,202951-102 ,"262,995.00",
DFID,DFID,15/10/2015,Project delivery costs – supplier services ,Asia  Caribbean and Overseas Territories ,OXFAM INSTITUTIONAL INCOME ACCOUNT ,202951-102 ,"320,691.00",
DFID,DFID,20/10/2015,Project delivery costs – supplier services ,Middle East  Humanitarian & Conflict Division ,Supplier Name withheld ,204813-101 ,"2,746.30",
DFID,DFID,05/10/2015,Secure Staff Accommodation ,Finance and Corporate Performance Division ,Supplier Name withheld ,204296-107 ,"5,400.57",
DFID,DFID,05/10/2015,Secure Staff Accommodation ,Finance and Corporate Performance Division ,Supplier Name withheld ,204296-107 ,"2,830.16",
DFID,DFID,14/10/2015,Other rentals ,Asia  Caribbean and Overseas Territories ,Supplier Name withheld ,202403-101 ,"16,167.93",
DFID,DFID,14/10/2015,Other rentals ,Asia  Caribbean and Overseas Territories ,Supplier Name withheld ,202403-101 ,"1,730.65",
DFID,DFID,16/10/2015,Secure Staff Accommodation ,Economic Development Division ,Supplier Name withheld ,201723-102 ,"1,954.87",
DFID,DFID,27/10/2015,Office Supplies ,West and Southern Africa ,Supplier Name withheld ,101620-101 ,645.67,
DFID,DFID,27/10/2015,FCO shared service charges ,Middle East  Humanitarian & Conflict Division ,Supplier Name withheld ,101619-101 ,"58,000.00",Quarterly Security costs for DFID staff and visitors at the British embassy Baghdad covering the period Jan-Mar 2015  
DFID,DFID,30/10/2015,Project delivery costs – supplier services ,Research and Evidence Division ,OXFORD POLICY MANAGEMENT ,203193-101 ,"20,812.00",
DFID,DFID,26/10/2015,Project delivery costs – supplier services ,Asia  Caribbean and Overseas Territories ,OXFORD POLICY MANAGEMENT ,203180-102 ,"334,643.00",
DFID,DFID,30/10/2015,Project delivery costs – supplier services ,West and Southern Africa ,OXFORD POLICY MANAGEMENT ,200341-101 ,"227,106.79",
DFID,DFID,20/10/2015,Project delivery costs – supplier services ,Asia  Caribbean and Overseas Territories ,OXFORD POLICY MANAGEMENT ,203123-101 ,"167,157.25",
DFID,DFID,23/10/2015,Project delivery costs – supplier services ,West and Southern Africa ,OXFORD POLICY MANAGEMENT ,101629-101 ,"19,522.69",
DFID,DFID,07/10/2015,Project delivery costs – supplier services ,Middle East  Humanitarian & Conflict Division ,OXFORD POLICY MANAGEMENT ,202241-104 ,"269,493.64",
DFID,DFID,27/10/2015,Project delivery costs – supplier services ,Asia  Caribbean and Overseas Territories ,OXFORD POLICY MANAGEMENT ,202123-106 ,"9,214.10",
DFID,DFID,27/10/2015,Project delivery costs – supplier services ,West and Southern Africa ,OXFORD POLICY MANAGEMENT ,202214-108 ,"10,921.39",
DFID,DFID,20/10/2015,Project delivery costs – supplier services ,West and Southern Africa ,OXFORD POLICY MANAGEMENT ,205066-101 ,"409,569.62",
DFID,DFID,19/10/2015,Project delivery costs – supplier services ,West and Southern Africa ,OXFORD POLICY MANAGEMENT ,205066-101 ,"105,461.47",
DFID,DFID,13/10/2015,Project delivery costs – supplier services ,West and Southern Africa ,OXFORD POLICY MANAGEMENT ,201874-103 ,"96,382.73",
DFID,DFID,15/10/2015,Project delivery costs – supplier services ,West and Southern Africa ,OXFORD POLICY MANAGEMENT ,201874-103 ,"53,380.47",
DFID,DFID,15/10/2015,Project delivery costs – supplier services ,West and Southern Africa ,OXFORD POLICY MANAGEMENT ,201874-103 ,"214,257.84",
DFID,DFID,22/10/2015,Project delivery costs – supplier services ,Regional Directorate ,OXFORD POLICY MANAGEMENT ,204838-115 ,"30,686.79",
DFID,DFID,06/10/2015,Project delivery costs – supplier services ,Western Asia Division ,OXFORD POLICY MANAGEMENT ,202378-102 ,"142,598.15",
DFID,DFID,19/10/2015,Project delivery costs – supplier services ,Western Asia Division ,OXFORD POLICY MANAGEMENT ,202367-103 ,"290,481.96",
DFID,DFID,22/10/2015,Project delivery costs – supplier services ,Western Asia Division ,OXFORD POLICY MANAGEMENT ,202367-103 ,"104,579.21",
DFID,DFID,13/10/2015,Project delivery costs – supplier services ,Western Asia Division ,OXFORD POLICY MANAGEMENT ,202367-103 ,"337,822.23",
DFID,DFID,15/10/2015,Project delivery costs – supplier services ,Western Asia Division ,OXFORD POLICY MANAGEMENT ,202367-103 ,"121,050.68",
DFID,DFID,27/10/2015,Project delivery costs – supplier services ,Research and Evidence Division ,OXFORD POLICY MANAGEMENT ,203638-101 ,"200,898.00",
DFID,DFID,09/10/2015,Project delivery costs – supplier services ,West and Southern Africa ,OXFORD POLICY MANAGEMENT ,204497-103 ,"276,853.00",
DFID,DFID,14/10/2015,Project delivery costs – supplier services ,West and Southern Africa ,OXFORD POLICY MANAGEMENT ,202977-102 ,"12,320.94",
DFID,DFID,30/10/2015,Project delivery costs – supplier services ,Policy Division ,OXFORD POLICY MANAGEMENT ,202779-103 ,"40,817.26",
DFID,DFID,30/10/2015,Project delivery costs – supplier services ,West and Southern Africa ,OXFORD POLICY MANAGEMENT ,202819-108 ,"328,200.00",
DFID,DFID,05/10/2015,Project delivery costs – supplier services ,West and Southern Africa ,OXFORD POLICY MANAGEMENT ,202706-102 ,"37,262.83",
DFID,DFID,27/10/2015,Project delivery costs – supplier services ,West and Southern Africa ,OXFORD POLICY MANAGEMENT ,202706-102 ,"17,555.16",
DFID,DFID,30/10/2015,Project delivery costs – supplier services ,West and Southern Africa ,OXFORD POLICY MANAGEMENT ,202656-103 ,"42,244.88",
DFID,DFID,20/10/2015,Project delivery costs – supplier services ,West and Southern Africa ,OXFORD POLICY MANAGEMENT ,202643-102 ,"50,000.00",
DFID,DFID,20/10/2015,Project delivery costs – supplier services ,West and Southern Africa ,OXFORD POLICY MANAGEMENT ,202643-102 ,"13,583.10",
DFID,DFID,20/10/2015,Project delivery costs – supplier services ,West and Southern Africa ,OXFORD POLICY MANAGEMENT ,202643-103 ,"3,125.64",
DFID,DFID,26/10/2015,Project delivery costs – supplier services ,East and Central Africa ,OXFORD POLICY MANAGEMENT ,202580-103 ,"4,809.75",
DFID,DFID,22/10/2015,Further Education costs ,Research and Evidence Division ,OFFICE FOR NATIONAL STATISTICS ,202331-102 ,"2,640.00",
DFID,DFID,29/10/2015,Project delivery costs – supplier services ,Asia  Caribbean and Overseas Territories ,OPTIONS CONSULTANCY SERVICES LIMITED ,203390-104 ,"24,553.00",
DFID,DFID,15/10/2015,Project delivery costs – supplier services ,West and Southern Africa ,OPTIONS CONSULTANCY SERVICES LIMITED ,202721-104 ,"61,961.00",
DFID,DFID,28/10/2015,Project delivery costs – supplier services ,Asia  Caribbean and Overseas Territories ,OPTIONS CONSULTANCY SERVICES LIMITED ,202871-101 ,"59,120.65",
DFID,DFID,01/10/2015,Project delivery costs – supplier services ,Asia  Caribbean and Overseas Territories ,OPTIONS CONSULTANCY SERVICES LIMITED ,202871-101 ,"104,811.55",
DFID,DFID,23/10/2015,Project delivery costs – supplier services ,East and Central Africa ,OPTIONS CONSULTANCY SERVICES LIMITED ,203024-103 ,"46,483.00",
DFID,DFID,23/10/2015,Project delivery costs – supplier services ,East and Central Africa ,OPTIONS CONSULTANCY SERVICES LIMITED ,203024-103 ,"46,483.00",
DFID,DFID,23/10/2015,Project delivery costs – supplier services ,East and Central Africa ,OPTIONS CONSULTANCY SERVICES LIMITED ,203024-103 ,"46,483.00",
DFID,DFID,14/10/2015,Project delivery costs – supplier services ,Asia  Caribbean and Overseas Territories ,OPTIONS CONSULTANCY SERVICES LIMITED ,201375-103 ,"29,216.00",
DFID,DFID,14/10/2015,Project delivery costs – supplier services ,Asia  Caribbean and Overseas Territories ,OPTIONS CONSULTANCY SERVICES LIMITED ,201375-103 ,"73,041.00",
DFID,DFID,14/10/2015,Project delivery costs – supplier services ,Asia  Caribbean and Overseas Territories ,OPTIONS CONSULTANCY SERVICES LIMITED ,201375-103 ,"170,785.40",
DFID,DFID,02/10/2015,Project delivery costs – supplier services ,Asia  Caribbean and Overseas Territories ,OPTIONS CONSULTANCY SERVICES LIMITED ,201375-103 ,"72,155.00",
DFID,DFID,28/10/2015,Project delivery costs – supplier services ,Asia  Caribbean and Overseas Territories ,OPTIONS CONSULTANCY SERVICES LIMITED ,201375-103 ,"72,155.00",
DFID,DFID,23/10/2015,Oil - Other Utilities ,Group Operations ,Government Procurement Service ,203717-101 ,"9,044.10",
DFID,DFID,21/10/2015,Oil - Other Utilities ,Group Operations ,Government Procurement Service ,203717-101 ,"13,501.57",
DFID,DFID,29/10/2015,Project delivery costs – supplier services ,Policy Division ,CENTRE FOR GLOBAL EDUCATION live ,201469-104 ,"8,888.99",
DFID,DFID,08/10/2015,Aid Programme - Accountable Grant Payments ,Research and Evidence Division ,OVERSEAS DEVELOPMENT INSTITUTE ,203210-101 ,"866,200.79",
DFID,DFID,27/10/2015,Aid Programme - Accountable Grant Payments ,Policy Division ,OVERSEAS DEVELOPMENT INSTITUTE ,202814-101 ,"308,538.77",
DFID,DFID,09/10/2015,Aid Programme - Accountable Grant Payments ,Regional Directorate ,Supplier Name withheld ,202752-106 ,"685,652.00",
DFID,DFID,02/10/2015,Aid Programme - Partnership Programme Arrangements ,Policy Division ,Supplier Name withheld ,202758-101 ,"2,792,759.00",
DFID,DFID,09/10/2015,Aid Programme - Partnership Programme Arrangements ,Policy Division ,PLAN INTERNATIONAL UK ,202755-101 ,"1,025,263.75",
DFID,DFID,30/10/2015,Aid Programme - Humanitarian Material Relief Assistance and Services ,Asia  Caribbean and Overseas Territories ,PLAN INTERNATIONAL UK ,205028-102 ,"366,079.79",
DFID,DFID,22/10/2015,Aid Programme - Accountable Grant Payments ,Regional Directorate ,PLAN INTERNATIONAL UK ,204838-117 ,"1,997,076.68",
DFID,DFID,22/10/2015,Aid Programme - Accountable Grant Payments ,Middle East  Humanitarian & Conflict Division ,PENAL REFORM INTERNATIONAL ,203244-106 ,"91,559.25",
DFID,DFID,22/10/2015,Aid Programme - Accountable Grant Payments ,Middle East  Humanitarian & Conflict Division ,PENAL REFORM INTERNATIONAL ,203244-112 ,"42,138.32",
DFID,DFID,06/10/2015,Aid Programme - Partnership Programme Arrangements ,Policy Division ,PENAL REFORM INTERNATIONAL ,202590-101 ,"270,344.00",
DFID,DFID,22/10/2015,Project delivery costs – supplier services ,Asia  Caribbean and Overseas Territories ,PRICEWATERHOUSECOOPERS ,203281-101 ,"120,010.61",
DFID,DFID,26/10/2015,Project delivery costs – supplier services ,West and Southern Africa ,PRICEWATERHOUSECOOPERS ,203161-104 ,"156,902.79",
DFID,DFID,28/10/2015,Project delivery costs – supplier services ,Research and Evidence Division ,PRICEWATERHOUSECOOPERS ,200822-101 ,"6,170.00",
DFID,DFID,28/10/2015,Project delivery costs – supplier services ,Research and Evidence Division ,PRICEWATERHOUSECOOPERS ,200822-101 ,"414,471.04",
DFID,DFID,28/10/2015,Project delivery costs – supplier services ,Research and Evidence Division ,PRICEWATERHOUSECOOPERS ,200822-101 ,"59,741.92",
DFID,DFID,28/10/2015,Project delivery costs – supplier services ,Research and Evidence Division ,PRICEWATERHOUSECOOPERS ,200822-101 ,"904,853.90",
DFID,DFID,28/10/2015,Project delivery costs – supplier services ,Research and Evidence Division ,PRICEWATERHOUSECOOPERS ,200822-101 ,"6,567.82",
DFID,DFID,29/10/2015,Project delivery costs – supplier services ,Economic Development Division ,PRICEWATERHOUSECOOPERS ,114178-104 ,"171,806.90",
DFID,DFID,20/10/2015,Project delivery costs – supplier services ,Economic Development Division ,PRICEWATERHOUSECOOPERS ,114178-104 ,"134,516.19",
DFID,DFID,28/10/2015,Project delivery costs – supplier services ,Policy Division ,PRICEWATERHOUSECOOPERS ,114370-104 ,"414,471.04",
DFID,DFID,28/10/2015,Project delivery costs – supplier services ,Policy Division ,PRICEWATERHOUSECOOPERS ,114370-104 ,"59,741.92",
DFID,DFID,26/10/2015,Project delivery costs – supplier services ,Policy Division ,PRICEWATERHOUSECOOPERS ,114370-105 ,"21,750.36",
DFID,DFID,26/10/2015,Project delivery costs – supplier services ,Policy Division ,PRICEWATERHOUSECOOPERS ,114370-105 ,"164,910.76",
DFID,DFID,14/10/2015,Project delivery costs – supplier services ,Economic Development Division ,PRICEWATERHOUSECOOPERS ,202939-103 ,"21,840.58",
DFID,DFID,30/10/2015,Project delivery costs – supplier services ,Economic Development Division ,PRICEWATERHOUSECOOPERS ,202939-103 ,"40,981.92",
DFID,DFID,30/10/2015,Project delivery costs – supplier services ,Economic Development Division ,PRICEWATERHOUSECOOPERS ,202939-106 ,"49,288.36",
DFID,DFID,14/10/2015,Project delivery costs – supplier services ,Economic Development Division ,PRICEWATERHOUSECOOPERS ,202939-106 ,"22,643.32",
DFID,DFID,26/10/2015,Project delivery costs – supplier services ,Economic Development Division ,PRICEWATERHOUSECOOPERS ,202648-102 ,"10,117.54",
DFID,DFID,15/10/2015,Project delivery costs – supplier services ,Economic Development Division ,PRICEWATERHOUSECOOPERS ,202648-102 ,"148,483.82",
DFID,DFID,15/10/2015,Project delivery costs – supplier services ,Economic Development Division ,PRICEWATERHOUSECOOPERS ,202648-102 ,"41,830.80",
DFID,DFID,15/10/2015,Project delivery costs – supplier services ,Research and Evidence Division ,PRICEWATERHOUSECOOPERS ,204415-102 ,"4,585.20",
DFID,DFID,20/10/2015,Project delivery costs – supplier services ,West and Southern Africa ,PRICEWATERHOUSECOOPERS ,203824-104 ,"50,000.00",
DFID,DFID,29/10/2015,Project delivery costs – supplier services ,West and Southern Africa ,PRICEWATERHOUSECOOPERS ,203824-104 ,"50,000.00",
DFID,DFID,29/10/2015,Project delivery costs – supplier services ,Asia  Caribbean and Overseas Territories ,PRICEWATERHOUSECOOPERS ,203964-101 ,"75,156.31",
DFID,DFID,20/10/2015,Project delivery costs – supplier services ,Asia  Caribbean and Overseas Territories ,PRICEWATERHOUSECOOPERS ,203964-101 ,"152,288.96",
DFID,DFID,22/10/2015,Project delivery costs – supplier services ,Policy Division ,PRICEWATERHOUSECOOPERS ,202372-102 ,"870,122.40",
DFID,DFID,26/10/2015,Project delivery costs – supplier services ,Western Asia Division ,PRICEWATERHOUSECOOPERS ,204792-101 ,"322,288.00",
DFID,DFID,28/10/2015,Storage & Distribution costs ,Research and Evidence Division ,PICKFORDS LTD ,203874-102 ,"3,873.56",
DFID,DFID,28/10/2015,Storage & Distribution costs ,Research and Evidence Division ,PICKFORDS LTD ,203874-102 ,"2,045.96",
DFID,DFID,28/10/2015,Storage & Distribution costs ,Research and Evidence Division ,PICKFORDS LTD ,203874-102 ,"3,648.71",
DFID,DFID,20/10/2015,Storage & Distribution costs ,Research and Evidence Division ,PICKFORDS LTD ,203874-102 ,878.30,
DFID,DFID,28/10/2015,Storage & Distribution costs ,Middle East  Humanitarian & Conflict Division ,PICKFORDS LTD ,204055-101 ,"6,173.92",
DFID,DFID,23/10/2015,Storage & Distribution costs ,East and Central Africa ,PICKFORDS LTD ,202594-101 ,"2,369.25",
DFID,DFID,28/10/2015,Storage & Distribution costs ,Middle East  Humanitarian & Conflict Division ,PICKFORDS LTD ,202410-101 ,"2,104.40",
DFID,DFID,28/10/2015,Storage & Distribution costs ,Middle East  Humanitarian & Conflict Division ,PICKFORDS LTD ,201705-101 ,"6,173.92",
DFID,DFID,26/10/2015,Storage & Distribution costs ,Middle East  Humanitarian & Conflict Division ,PICKFORDS LTD ,201705-101 ,"5,472.51",
DFID,DFID,08/10/2015,Storage & Distribution costs ,Middle East  Humanitarian & Conflict Division ,PICKFORDS LTD ,201705-101 ,"1,760.26",
DFID,DFID,29/10/2015,Storage & Distribution costs ,West and Southern Africa ,PICKFORDS LTD ,101638-101 ,"5,823.84",
DFID,DFID,25/10/2015,Storage & Distribution costs ,East and Central Africa ,PICKFORDS LTD ,101634-101 ,"2,488.74",
DFID,DFID,22/10/2015,Storage & Distribution costs ,East and Central Africa ,PICKFORDS LTD ,101634-101 ,681.79,
DFID,DFID,22/10/2015,Storage & Distribution costs ,East and Central Africa ,PICKFORDS LTD ,101634-101 ,"1,002.52",
DFID,DFID,28/10/2015,Storage & Distribution costs ,West and Southern Africa ,PICKFORDS LTD ,101631-101 ,886.01,
DFID,DFID,28/10/2015,Storage & Distribution costs ,West and Southern Africa ,PICKFORDS LTD ,101631-101 ,"5,496.36",
DFID,DFID,26/10/2015,Storage & Distribution costs ,East and Central Africa ,PICKFORDS LTD ,101633-101 ,"15,987.98",
DFID,DFID,22/10/2015,Relocation costs ,East and Central Africa ,PICKFORDS LTD ,101630-101 ,"14,221.27",
DFID,DFID,29/10/2015,Storage & Distribution costs ,Asia  Caribbean and Overseas Territories ,PICKFORDS LTD ,101636-101 ,"1,089.26",
DFID,DFID,08/10/2015,Storage & Distribution costs ,West and Southern Africa ,PICKFORDS LTD ,101637-101 ,673.92,
DFID,DFID,28/10/2015,Storage & Distribution costs ,West and Southern Africa ,PICKFORDS LTD ,101637-101 ,"1,423.66",
DFID,DFID,21/10/2015,Storage & Distribution costs ,West and Southern Africa ,PICKFORDS LTD ,101637-101 ,"15,288.72",
DFID,DFID,23/10/2015,Storage & Distribution costs ,West and Southern Africa ,PICKFORDS LTD ,101637-101 ,"6,239.99",
DFID,DFID,26/10/2015,Storage & Distribution costs ,East and Central Africa ,PICKFORDS LTD ,101635-101 ,"8,577.36",
DFID,DFID,29/10/2015,Storage & Distribution costs ,East and Central Africa ,PICKFORDS LTD ,101635-101 ,"6,935.64",
DFID,DFID,29/10/2015,Storage & Distribution costs ,Western Asia Division ,Supplier Name withheld ,101601-110 ,"3,813.31",
DFID,DFID,06/10/2015,Storage & Distribution costs ,Western Asia Division ,Supplier Name withheld ,101601-110 ,"3,936.72",
DFID,DFID,07/10/2015,Storage & Distribution costs ,Asia  Caribbean and Overseas Territories ,PICKFORDS LTD ,101603-101 ,528.35,
DFID,DFID,22/10/2015,Storage & Distribution costs ,Asia  Caribbean and Overseas Territories ,PICKFORDS LTD ,101603-101 ,738.27,
DFID,DFID,28/10/2015,Storage & Distribution costs ,Asia  Caribbean and Overseas Territories ,PICKFORDS LTD ,101604-101 ,"1,886.73",
DFID,DFID,26/10/2015,Relocation costs ,West and Southern Africa ,PICKFORDS LTD ,101610-101 ,"15,987.98",
DFID,DFID,30/10/2015,Storage & Distribution costs ,West and Southern Africa ,PICKFORDS LTD ,101610-101 ,627.43,
DFID,DFID,30/10/2015,Storage & Distribution costs ,West and Southern Africa ,PICKFORDS LTD ,101610-101 ,522.86,
DFID,DFID,22/10/2015,Relocation costs ,West and Southern Africa ,PICKFORDS LTD ,101610-101 ,"26,290.29",Staff relocation costs at end of postings
DFID,DFID,13/10/2015,Relocation costs ,West and Southern Africa ,PICKFORDS LTD ,101610-101 ,"7,339.30",
DFID,DFID,19/10/2015,Storage & Distribution costs ,East and Central Africa ,PICKFORDS LTD ,101612-101 ,"11,240.73",
DFID,DFID,28/10/2015,Air fares ,East and Central Africa ,PICKFORDS LTD ,101612-101 ,"1,694.57",
DFID,DFID,13/10/2015,Storage & Distribution costs ,West and Southern Africa ,PICKFORDS LTD ,101613-101 ,"7,339.30",
DFID,DFID,20/10/2015,Storage & Distribution costs ,Western Asia Division ,Supplier Name withheld ,101601-110 ,"4,055.25",
DFID,DFID,09/10/2015,Storage & Distribution costs ,West and Southern Africa ,PICKFORDS LTD ,101622-106 ,552.13,
DFID,DFID,11/10/2015,Storage & Distribution costs ,Western Asia Division ,PICKFORDS LTD ,101624-101 ,"3,686.49",
DFID,DFID,21/10/2015,Storage & Distribution costs ,Western Asia Division ,PICKFORDS LTD ,101624-101 ,945.29,
DFID,DFID,23/10/2015,Storage & Distribution costs ,Asia  Caribbean and Overseas Territories ,PICKFORDS LTD ,101621-101 ,"14,355.50",
DFID,DFID,29/10/2015,Storage & Distribution costs ,East and Central Africa ,PICKFORDS LTD ,101616-101 ,"9,070.74",
DFID,DFID,02/10/2015,Aid Programme - Partnership Programme Arrangements ,Policy Division ,PEOPLE IN AID LTD ,202875-101 ,"51,699.75",
DFID,DFID,19/10/2015,Aid Programme - Accountable Grant Payments ,East and Central Africa ,POPULATION  SERVICES INTERNATIONAL ,202841-106 ,"166,042.00",
DFID,DFID,12/10/2015,Project delivery costs – supplier services ,West and Southern Africa ,POPULATION  SERVICES INTERNATIONAL ,203458-102 ,"947,428.00",
DFID,DFID,12/10/2015,Project delivery costs – supplier services ,West and Southern Africa ,POPULATION  SERVICES INTERNATIONAL ,203458-104 ,"42,119.00",
DFID,DFID,20/10/2015,Project delivery costs – supplier services ,Western Asia Division ,POPULATION  SERVICES INTERNATIONAL ,202413-105 ,"758,963.77",
DFID,DFID,20/10/2015,Contract & Agency Staff ,Finance and Corporate Performance Division ,MICHAEL PAGE INTERNATIONAL RECRUITMENT LIMITED ,100201-101 ,"2,486.50",
DFID,DFID,28/10/2015,Contract & Agency Staff ,Finance and Corporate Performance Division ,MICHAEL PAGE INTERNATIONAL RECRUITMENT LIMITED ,100201-101 ,"3,108.12",
DFID,DFID,06/10/2015,Aid Programme - Partnership Programme Arrangements ,Policy Division ,PRACTICAL ACTION LTD ,202646-101 ,"722,765.00",
DFID,DFID,09/10/2015,Aid Programme - Partnership Programme Arrangements ,Policy Division ,PROGRESSIO ,202503-101 ,"506,253.75",
DFID,DFID,06/10/2015,Aid Programme - Accountable Grant Payments ,West and Southern Africa ,Supplier Name withheld ,201874-102 ,"803,930.00",
DFID,DFID,07/10/2015,Aid Programme - Accountable Grant Payments ,Middle East  Humanitarian & Conflict Division ,Supplier Name withheld ,204540-101 ,"2,507,762.00",
DFID,DFID,07/10/2015,Aid Programme - Accountable Grant Payments ,Middle East  Humanitarian & Conflict Division ,Supplier Name withheld ,204540-102 ,"1,400,000.00",
DFID,DFID,15/10/2015,Aid Programme - Accountable Grant Payments ,Research and Evidence Division ,Supplier Name withheld ,203705-115 ,"871,209.00",
DFID,DFID,12/10/2015,Project delivery costs – supplier services ,West and Southern Africa ,Supplier Name withheld ,202623-116 ,"91,706.00",
DFID,DFID,12/10/2015,Project delivery costs – supplier services ,West and Southern Africa ,Supplier Name withheld ,202623-117 ,"91,447.00",
DFID,DFID,27/10/2015,Project delivery costs – supplier services ,East and Central Africa ,Supplier Name withheld ,202315-110 ,"71,698.24",
DFID,DFID,20/10/2015,Aid Programme - Humanitarian Material Relief Assistance and Services ,Middle East  Humanitarian & Conflict Division ,Supplier Name withheld ,203044-101 ,"1,551,079.00",
DFID,DFID,21/10/2015,Aid Programme - Humanitarian Material Relief Assistance and Services ,Middle East  Humanitarian & Conflict Division ,Supplier Name withheld ,203044-103 ,"51,608.00",
DFID,DFID,07/10/2015,Aid Programme - Partnership Programme Arrangements ,Policy Division ,Supplier Name withheld ,202662-101 ,"2,352,165.50",
DFID,DFID,28/10/2015,Aid Programme - Accountable Grant Payments ,East and Central Africa ,Supplier Name withheld ,202619-110 ,"60,000.00",
DFID,DFID,05/10/2015,Aid Programme - Partnership Programme Arrangements ,Policy Division ,SAFERWORLD ,202709-101 ,"434,790.00",
DFID,DFID,21/10/2015,Aid Programme - Accountable Grant Payments ,International Relations Division ,SAFERWORLD ,204932-102 ,"5,309.00",
DFID,DFID,08/10/2015,Project delivery costs – supplier services ,West and Southern Africa ,SCHOOL OF ORIENTAL & AFRICAN STUDIES (UK) ,202524-107 ,"90,000.00",
DFID,DFID,26/10/2015,Project delivery costs – supplier services ,West and Southern Africa ,Social Development Direct Ltd ,203823-106 ,"114,754.69",
DFID,DFID,26/10/2015,Project delivery costs – supplier services ,West and Southern Africa ,Social Development Direct Ltd ,203823-106 ,"8,585.00",
DFID,DFID,06/10/2015,Project delivery costs – supplier services ,Policy Division ,Social Development Direct Ltd ,203245-106 ,"3,596.80",
DFID,DFID,09/10/2015,Operating Lease rental of buildings ,Non-Departmental Public Body ,SCOTLAND OFFICE ,204859-104 ,"9,626.74",
DFID,DFID,09/10/2015,Operating Lease rental of buildings ,Non-Departmental Public Body ,SCOTLAND OFFICE ,204859-104 ,"9,626.75",
DFID,DFID,02/10/2015,Aid Programme - Partnership Programme Arrangements ,Policy Division ,SIGHT SAVERS INTERNATIONAL ,202546-101 ,"934,669.50",
DFID,DFID,01/10/2015,Aid Programme - Partnership Programme Arrangements ,Policy Division ,RESTLESS DEVELOPMENT ,202545-101 ,"836,823.75",
DFID,DFID,27/10/2015,Project delivery costs – supplier services ,Group Operations ,SODEXHO PASS LTD ,204999-104 ,"1,554.20",
DFID,DFID,23/10/2015,Storage & Distribution costs ,Business Solutions Division Level ,TNT Express (UK) Ltd ,200001-101 ,"6,036.40",
DFID,DFID,19/10/2015,Legal costs ,Finance and Corporate Performance Division ,TREASURY SOLICITORS CASH ACC ,100201-101 ,"2,297.28",
DFID,DFID,20/10/2015,Legal costs ,Human Resources ,TREASURY SOLICITORS CASH ACC ,100269-136 ,"4,848.70",
DFID,DFID,27/10/2015,Aid Programme - Joint programme contribution ,East and Central Africa ,UNICEF ,204005-102 ,"5,385,572.00",
DFID,DFID,27/10/2015,Aid Programme - Accountable Grant Payments ,Policy Division ,Supplier Name withheld ,203559-112 ,"178,741.00",
DFID,DFID,05/10/2015,Project delivery costs – supplier services ,Policy Division ,TROPICAL HEALTH AND EDUCATION TRUST ,202208-101 ,"80,307.05",
DFID,DFID,02/10/2015,Project delivery costs – supplier services ,Policy Division ,TROPICAL HEALTH AND EDUCATION TRUST ,202208-101 ,"485,984.00",
DFID,DFID,28/10/2015,Project delivery costs – supplier services ,Policy Division ,TRIPLE LINE CONSULTING LTD ,202035-101 ,"144,466.40",
DFID,DFID,05/10/2015,Project delivery costs – supplier services ,Policy Division ,TRIPLE LINE CONSULTING LTD ,202035-101 ,"139,119.32",
DFID,DFID,05/10/2015,Project delivery costs – supplier services ,Policy Division ,TRIPLE LINE CONSULTING LTD ,202035-102 ,"20,255.10",
DFID,DFID,28/10/2015,Project delivery costs – supplier services ,Policy Division ,TRIPLE LINE CONSULTING LTD ,202035-102 ,"26,480.10",
DFID,DFID,19/10/2015,Water charges ,Group Operations ,THAMES WATER UTILITIES LTD ,203717-101 ,615.67,
DFID,DFID,07/10/2015,Research and development costs - supplier services ,Research and Evidence Division ,UNIVERSITY OF BIRMINGHAM ,204806-102 ,"17,715.00",
DFID,DFID,16/10/2015,Aid Programme - Accountable Grant Payments ,East and Central Africa , University of Oxford ,204635-105 ,"22,700.00",
DFID,DFID,22/10/2015,Research and development costs - supplier services ,Research and Evidence Division ,University Of Sussex ,114334-101 ,"302,439.78",
DFID,DFID,04/10/2015,Aid Programme - Voluntary contributions ,Western Asia Division ,Supplier Name withheld ,205076-101 ,"325,000.00",
DFID,DFID,09/10/2015,Aid Programme - Pooled/Basket funding ,West and Southern Africa ,UNDP CONTRIBUTIONS ACCOUNT ,203464-102 ,"1,000,000.00",
DFID,DFID,19/10/2015,Aid Programme - Voluntary contributions ,Middle East  Humanitarian & Conflict Division ,Supplier Name withheld ,204535-101 ,"10,000,000.00",
DFID,DFID,19/10/2015,Aid Programme - Voluntary contributions ,Middle East  Humanitarian & Conflict Division ,Supplier Name withheld ,204535-103 ,"10,000,000.00",
DFID,DFID,09/10/2015,Training - Course Fees ,Asia  Caribbean and Overseas Territories ,UNIVERSITY OF SOUTHAMPTON ,101621-108 ,"1,000.00",
DFID,DFID,28/10/2015,Aid Programme - Voluntary contributions ,West and Southern Africa ,Supplier Name withheld ,203428-102 ,"125,000.00",
DFID,DFID,19/10/2015,Project delivery costs – supplier services ,Western Asia Division ,Supplier Name withheld ,204604-106 ,"540,073.80",
DFID,DFID,13/10/2015,Aid Programme - Voluntary contributions ,East and Central Africa ,Supplier Name withheld ,203462-102 ,"2,500,000.00",
DFID,DFID,27/10/2015,Aid Programme - Voluntary contributions ,West and Southern Africa ,Supplier Name withheld ,203445-103 ,"8,803,618.00",
DFID,DFID,29/10/2015,Aid Programme - Voluntary contributions ,East and Central Africa ,Supplier Name withheld ,203603-109 ,"1,167,012.00",
DFID,DFID,21/10/2015,Research and development costs - supplier services ,Research and Evidence Division ,Supplier Name withheld ,203705-106 ,"602,100.00",
DFID,DFID,13/10/2015,Aid Programme - Voluntary contributions ,East and Central Africa ,Supplier Name withheld ,202994-102 ,"400,000.00",
DFID,DFID,30/10/2015,Aid Programme - Joint programme contribution ,Asia  Caribbean and Overseas Territories ,Supplier Name withheld ,203885-102 ,"160,920.00",
DFID,DFID,05/10/2015,Aid Programme - Voluntary contributions ,East and Central Africa ,Supplier Name withheld ,204019-108 ,"2,500,000.00",
DFID,DFID,21/10/2015,Aid Programme - Voluntary contributions ,East and Central Africa ,Supplier Name withheld ,204019-108 ,"2,000,000.00",
DFID,DFID,21/10/2015,Aid Programme - Voluntary contributions ,Middle East  Humanitarian & Conflict Division ,Supplier Name withheld ,204515-101 ,"10,000,000.00",
DFID,DFID,27/10/2015,Aid Programme - Voluntary contributions ,Middle East  Humanitarian & Conflict Division ,Supplier Name withheld ,204515-101 ,"3,000,000.00",
DFID,DFID,27/10/2015,Aid Programme - Voluntary contributions ,Middle East  Humanitarian & Conflict Division ,Supplier Name withheld ,204515-102 ,"3,500,000.00",
DFID,DFID,27/10/2015,Aid Programme - Voluntary contributions ,Middle East  Humanitarian & Conflict Division ,Supplier Name withheld ,204515-104 ,"2,500,000.00",
DFID,DFID,21/10/2015,Aid Programme - Voluntary contributions ,Middle East  Humanitarian & Conflict Division ,Supplier Name withheld ,204515-104 ,"5,000,000.00",
DFID,DFID,26/10/2015,Aid Programme - Refugee Relief Payments ,East and Central Africa ,Supplier Name withheld ,205032-103 ,"1,590,000.00",
DFID,DFID,09/10/2015,Aid Programme - Humanitarian Material Relief Assistance and Services ,East and Central Africa ,Supplier Name withheld ,202890-101 ,"1,620,000.00",
DFID,DFID,14/10/2015,Aid Programme - Humanitarian Material Relief Assistance and Services ,East and Central Africa ,Supplier Name withheld ,202890-101 ,"9,920,000.00",
DFID,DFID,27/10/2015,Aid Programme - Accountable Grant Payments ,East and Central Africa ,VOLUNTARY SERVICE OVERSEAS ,200250-117 ,"230,663.00",
DFID,DFID,27/10/2015,Aid Programme - Accountable Grant Payments ,West and Southern Africa ,VOLUNTARY SERVICE OVERSEAS ,203428-106 ,"11,983.00",
DFID,DFID,12/10/2015,Aid Programme - Accountable Grant Payments ,Regional Directorate ,UNICEF UK ,204919-102 ,"368,168.00",
DFID,DFID,21/10/2015,Training Providers/Facilitation Services ,Group Operations ,VULCAN FIRE TRAINING CO LTD ,203717-101 ,565.00,
DFID,DFID,13/10/2015,Data Network - land lines ,Business Solutions Division Level ,VERIZON UK LIMITED ,200002-126 ,"3,317.88",
DFID,DFID,07/10/2015,Aid Programme - Strategic Grant Arrangement payments ,Policy Division ,VSO ,202414-102 ,"5,500,000.00",
DFID,DFID,13/10/2015,Aid Programme - Partnership Programme Arrangements ,Policy Division ,WORLD VISION UNITED KINGDOM ,202642-101 ,"984,441.25",
DFID,DFID,20/10/2015,Aid Programme - Partnership Programme Arrangements ,Policy Division ,WOMANKIND WORLDWIDE (JFS) ,202548-101 ,"140,096.00",
DFID,DFID,06/10/2015,Aid Programme - Partnership Programme Arrangements ,Policy Division ,WWF-UK ,202661-101 ,"772,589.00",
DFID,DFID,30/10/2015,Aid Programme - Humanitarian Material Relief Assistance and Services ,Middle East  Humanitarian & Conflict Division ,Supplier Name withheld ,203044-101 ,"50,296.18",
DFID,DFID,08/10/2015,Aid Programme - Accountable Grant Payments ,Regional Directorate ,Supplier Name withheld ,204838-115 ,"888,090.00",
DFID,DFID,06/10/2015,Aid Programme - Accountable Grant Payments ,Regional Directorate ,Supplier Name withheld ,204838-115 ,"888,090.00",
DFID,DFID,23/10/2015,Aid Programme - Accountable Grant Payments ,Regional Directorate ,Supplier Name withheld ,204838-115 ,"1,558,482.00",
DFID,DFID,20/10/2015,Project delivery costs – supplier services ,Policy Division ,Supplier Name withheld ,202035-103 ,"174,037.20",
DFID,DFID,07/10/2015,Aid Programme - Partnership Programme Arrangements ,Policy Division ,WATERAID ,202621-101 ,"1,050,410.00",
DFID,DFID,14/10/2015,Research and development costs - supplier services ,Research and Evidence Division ,Institute of Development Studies. ,204584-110 ,"460,530.00",
DFID,DFID,28/10/2015,Air fares ,West and Southern Africa ,Mukwa Travel and Tours ,101637-101 ,792.47,
DFID,DFID,08/10/2015,Air fares ,West and Southern Africa ,Mukwa Travel and Tours ,101629-101 ,966.43,
DFID,DFID,14/10/2015,Hotels - Accommodation only ,Internal Audit ,InterContinental Hotel ,100121-101 ,819.50,
DFID,DFID,14/10/2015,Hotels - Accommodation only ,Internal Audit ,InterContinental Hotel ,100121-101 ,819.50,
DFID,DFID,14/10/2015,Hotels - Accommodation only ,Internal Audit ,InterContinental Hotel ,100121-101 ,804.24,
DFID,DFID,14/10/2015,Hotels - Accommodation only ,Internal Audit ,InterContinental Hotel ,100121-101 ,819.50,
DFID,DFID,13/10/2015,Facilities Management payments ,Asia  Caribbean and Overseas Territories ,John Sanday Associates Pvt. Ltd ,101621-103 ,618.27,
DFID,DFID,07/10/2015,Aid Programme - Accountable Grant Payments ,Asia  Caribbean and Overseas Territories ,Helvetas Nepal ,201489-101 ,"84,448.00",
DFID,DFID,30/10/2015,Project delivery costs – supplier services ,Global Funds ,General Language Services ,100098-101 ,522.88,
DFID,DFID,26/10/2015,Hotels - Accommodation only ,West and Southern Africa ,Novotel Accra ,204918-101 ,617.05,
DFID,DFID,26/10/2015,Hotels - Accommodation only ,West and Southern Africa ,Novotel Accra ,204918-101 ,730.18,
DFID,DFID,26/10/2015,Hotels - Accommodation only ,West and Southern Africa ,Novotel Accra ,204918-101 ,617.05,
DFID,DFID,05/10/2015,Aid Programme - Accountable Grant Payments ,Asia  Caribbean and Overseas Territories ,PUBLIC AFFAIRS CENTRE ,203484-106 ,"41,944.71",
DFID,DFID,29/10/2015,Project delivery costs – supplier services ,Asia  Caribbean and Overseas Territories ,WIREWORKS ,100114-104 ,688.10,
DFID,DFID,27/10/2015,Project delivery costs – supplier services ,East and Central Africa ,Jasper - Semu & Associates ,200250-103 ,"3,472.01",
DFID,DFID,08/10/2015,Hotels - Accommodation only ,East and Central Africa ,Emin Pasha Hotel ,101635-101 ,586.49,
DFID,DFID,07/10/2015,Hotels - Accommodation only ,East and Central Africa ,Fairview Hotel ,101616-101 ,874.24,
DFID,DFID,09/10/2015,Project delivery costs – supplier services ,East and Central Africa ,Fairview Hotel ,202509-103 ,"4,546.97",
DFID,DFID,16/10/2015,Project delivery costs – supplier services ,East and Central Africa ,The Population Council ,202874-102 ,"428,306.00",
DFID,DFID,06/10/2015,Project delivery costs – supplier services ,Research and Evidence Division ,The Population Council ,204329-101 ,"203,220.68",
DFID,DFID,16/10/2015,Research and development costs - supplier services ,Research and Evidence Division ,Stellenbosch University ,204584-124 ,"5,575.00",
DFID,DFID,19/10/2015,Aid Programme - Accountable Grant Payments ,West and Southern Africa ,Institute  for Security Studies ,204349-105 ,"6,242.16",
DFID,DFID,20/10/2015,Secure Staff Accommodation ,West and Southern Africa ,Supplier Name withheld ,101620-101 ,"11,642.95",
DFID,DFID,21/10/2015,Secure Staff Accommodation ,West and Southern Africa ,Supplier Name withheld ,101620-101 ,"10,711.80",
DFID,DFID,06/10/2015,Auditors Remuneration & Expenses - Cash ,West and Southern Africa ,KPMG ,204866-101 ,"6,747.86",
DFID,DFID,02/10/2015,Training Providers/Facilitation Services ,West and Southern Africa ,ANARKALY LDA ,101620-102 ,"1,436.31",
DFID,DFID,02/10/2015,Training Providers/Facilitation Services ,West and Southern Africa ,ANARKALY LDA ,101620-102 ,"1,463.70",
DFID,DFID,20/10/2015,Secure Staff Accommodation ,West and Southern Africa ,Supplier Name withheld ,101620-101 ,"12,219.28",
DFID,DFID,06/10/2015,Repairs  Maint  Alter - Property & Constrct. Services ,West and Southern Africa ,Pekolyn Tech. Services ,101622-105 ,"1,557.07",
DFID,DFID,06/10/2015,Repairs  Maint  Alter - Property & Constrct. Services ,West and Southern Africa ,Pekolyn Tech. Services ,101622-105 ,884.19,
DFID,DFID,19/10/2015,Vehicle Petrol & Oil ,West and Southern Africa ,British  High Commission Abuja ,101622-105 ,757.42,
DFID,DFID,14/10/2015,Hotels - Accommodation only ,West and Southern Africa ,Supplier Name withheld ,101622-105 ,"3,502.85",
DFID,DFID,14/10/2015,Hotels - Accommodation only ,West and Southern Africa ,Supplier Name withheld ,101622-105 ,738.28,
DFID,DFID,13/10/2015,Repairs  Maint  Alter - Property & Constrct. Services ,West and Southern Africa ,Circuit Board (Nig) Ltd ,101622-105 ,"3,289.48",
DFID,DFID,14/10/2015,Hotels - Accommodation only ,West and Southern Africa ,Supplier Name withheld ,101622-103 ,853.13,
DFID,DFID,14/10/2015,Hotels - Accommodation only ,West and Southern Africa ,Supplier Name withheld ,101622-104 ,630.95,
DFID,DFID,14/10/2015,Hotels - Accommodation only ,West and Southern Africa ,Supplier Name withheld ,101622-102 ,"1,171.77",
DFID,DFID,22/10/2015,Cleaning Costs ,West and Southern Africa ,Sparklean Services Nig Ltd ,101622-105 ,"4,251.78",
DFID,DFID,22/10/2015,Cleaning Costs ,West and Southern Africa ,Sparklean Services Nig Ltd ,100152-110 ,"1,193.60",
DFID,DFID,08/10/2015,Aid Programme - Accountable Grant Payments ,West and Southern Africa ,Health Reform Foundation of Nigeria ,203654-101 ,"76,372.75",
DFID,DFID,28/10/2015,Aid Programme - Accountable Grant Payments ,West and Southern Africa ,Catholic Commission for Justice and Peace ,202559-103 ,"96,858.80",
DFID,DFID,28/10/2015,Aid Programme - Accountable Grant Payments ,West and Southern Africa ,Catholic Commission for Justice and Peace ,202559-103 ,"278,164.47",
DFID,DFID,15/10/2015,Research and development costs - supplier services ,Research and Evidence Division ,Supplier Name withheld ,201009-101 ,"352,337.60",
DFID,DFID,29/10/2015,Research and development costs - supplier services ,Research and Evidence Division ,Supplier Name withheld ,204584-123 ,"23,100.00",
DFID,DFID,05/10/2015,Project delivery costs – supplier services ,Policy Division ,Supplier Name withheld ,203134-104 ,"9,582.50",
DFID,DFID,20/10/2015,Project delivery costs – supplier services ,East and Central Africa ,Supplier Name withheld ,202913-101 ,"43,240.00",
DFID,DFID,20/10/2015,Project delivery costs – supplier services ,East and Central Africa ,Supplier Name withheld ,202913-101 ,"9,530.29",
DFID,DFID,02/10/2015,Project delivery costs – supplier services ,Policy Division ,Supplier Name withheld ,202921-103 ,"336,937.12",
DFID,DFID,21/10/2015,Aid Programme - Accountable Grant Payments ,Policy Division ,BUSINESS IN THE COMMUNITY ,205077-101 ,"42,875.00",
DFID,DFID,19/10/2015,Aid Programme - Accountable Grant Payments ,Asia  Caribbean and Overseas Territories ,MAF UK ,205028-101 ,"292,599.00",
DFID,DFID,06/10/2015,Project delivery costs – supplier services ,East and Central Africa ,IBTCI ,202984-101 ,"324,135.00",
DFID,DFID,05/10/2015,Aid Programme - Trust Funds contributions ,Research and Evidence Division ,THE WORLD BANK (IBRD ACCOUNT) ,203048-104 ,"275,587.40",
DFID,DFID,06/10/2015,Training - Course Fees ,Middle East  Humanitarian & Conflict Division ,KAPLAN FINANCIAL LTD ,100049-134 ,"1,048.50",
DFID,DFID,23/10/2015,Training - Course Fees ,Middle East  Humanitarian & Conflict Division ,KAPLAN FINANCIAL LTD ,100049-134 ,524.25,
DFID,DFID,27/10/2015,Aid Programme - Humanitarian Material Relief Assistance and Services ,East and Central Africa ,UN OCHA ,202235-101 ,"3,000,000.00",
DFID,DFID,27/10/2015,Aid Programme - Humanitarian Material Relief Assistance and Services ,East and Central Africa ,UN OCHA ,202235-101 ,"20,000,000.00",
DFID,DFID,26/10/2015,Aid Programme - Voluntary contributions ,East and Central Africa ,UN OCHA ,203462-113 ,"500,000.00",
DFID,DFID,13/10/2015,Aid Programme - Voluntary contributions ,Asia  Caribbean and Overseas Territories ,UN OCHA ,203400-106 ,"250,000.00",
DFID,DFID,23/10/2015,Aid Programme - Humanitarian Material Relief Assistance and Services ,Middle East  Humanitarian & Conflict Division ,UN OCHA ,204968-102 ,"1,000,000.00",
DFID,DFID,23/10/2015,Aid Programme - Core contributions ,Middle East  Humanitarian & Conflict Division ,UN OCHA ,205038-103 ,"10,000,000.00",
DFID,DFID,07/10/2015,Aid Programme - Accountable Grant Payments ,Research and Evidence Division ,IPDET  CARLETON UNIVERSITY ,203014-104 ,"100,000.00",
DFID,DFID,05/10/2015,Aid Programme - Voluntary contributions ,East and Central Africa ,FAO ,203462-102 ,"1,000,000.00",
DFID,DFID,21/10/2015,Aid Programme - Core contributions ,Economic Development Division ,FAO ,204332-101 ,"500,000.00",
DFID,DFID,01/10/2015,Aid Programme - Voluntary contributions ,East and Central Africa ,FAO ,204019-110 ,"1,200,000.00",
DFID,DFID,16/10/2015,Aid Programme - Core contributions ,Policy Division ,CMI MICHELSEN INSTITUTE ,203214-101 ,"41,250.00",
DFID,DFID,30/10/2015,Aid Programme - Voluntary contributions ,East and Central Africa ,Supplier Name withheld ,202995-112 ,"100,000.00",
DFID,DFID,30/10/2015,Aid Programme - Voluntary contributions ,East and Central Africa ,Supplier Name withheld ,202995-113 ,"400,000.00",
DFID,DFID,30/10/2015,Aid Programme - Voluntary contributions ,East and Central Africa ,Supplier Name withheld ,202995-104 ,"1,500,000.00",
DFID,DFID,23/10/2015,Aid Programme - Humanitarian Material Relief Assistance and Services ,East and Central Africa ,Supplier Name withheld ,203462-107 ,"1,000,000.00",
DFID,DFID,26/10/2015,Aid Programme - Voluntary contributions ,East and Central Africa ,Supplier Name withheld ,203462-114 ,"500,000.00",
DFID,DFID,30/10/2015,Aid Programme - Voluntary contributions ,East and Central Africa ,Supplier Name withheld ,203603-111 ,"1,627,747.00",
DFID,DFID,12/10/2015,Aid Programme - Voluntary contributions ,Middle East  Humanitarian & Conflict Division ,Supplier Name withheld ,204016-102 ,"1,000,000.00",
DFID,DFID,20/10/2015,Aid Programme - Humanitarian Material Relief Assistance and Services ,East and Central Africa ,Supplier Name withheld ,204439-106 ,"2,000,000.00",
DFID,DFID,23/10/2015,Aid Programme - Voluntary contributions ,Middle East  Humanitarian & Conflict Division ,Supplier Name withheld ,204513-101 ,"40,000,000.00",
DFID,DFID,28/10/2015,Aid Programme - Voluntary contributions ,Middle East  Humanitarian & Conflict Division ,Supplier Name withheld ,204513-101 ,"5,000,000.00",
DFID,DFID,28/10/2015,Aid Programme - Voluntary contributions ,Middle East  Humanitarian & Conflict Division ,Supplier Name withheld ,204513-102 ,"3,000,000.00",
DFID,DFID,30/10/2015,Aid Programme - Core contributions ,Middle East  Humanitarian & Conflict Division ,Supplier Name withheld ,205038-106 ,"20,000,000.00",
DFID,DFID,30/10/2015,Aid Programme - Humanitarian Material Relief Assistance and Services ,Asia  Caribbean and Overseas Territories ,Supplier Name withheld ,205028-103 ,"1,800,000.00",
DFID,DFID,22/10/2015,Aid Programme - Refugee Relief Payments ,East and Central Africa ,Supplier Name withheld ,205032-102 ,"3,200,000.00",
DFID,DFID,23/10/2015,Aid Programme - Emergency Food Aid ,East and Central Africa ,Supplier Name withheld ,204936-101 ,"7,000,000.00",
DFID,DFID,19/10/2015,Aid Programme - Humanitarian Material Relief Assistance and Services ,East and Central Africa ,Supplier Name withheld ,204936-105 ,"750,000.00",
DFID,DFID,06/10/2015,Research and development costs - supplier services ,Research and Evidence Division ,International Food PolicyResearch Institute (IFRI ,201448-101 ,"829,623.00",
DFID,DFID,07/10/2015,Data Network - land lines ,Business Solutions Division Level ,KUBE NETWORKS LTD ,200002-130 ,"1,074.74",
DFID,DFID,16/10/2015,Aid Programme - Accountable Grant Payments ,East and Central Africa ,AGRA in AFRICA ,202848-101 ,"377,576.00",
DFID,DFID,30/10/2015,Aid Programme - Joint programme contribution ,Western Asia Division ,GTZ GmBH Eschborn ,203106-101 ,"2,000,000.00",
DFID,DFID,01/10/2015,Aid Programme - Humanitarian Material Relief Assistance and Services ,Regional Directorate ,IPA-International Procurement Agency (BV) ,204890-116 ,"156,955.14",
DFID,DFID,28/10/2015,Aid Programme - Humanitarian Material Relief Assistance and Services ,Regional Directorate ,IPA-International Procurement Agency (BV) ,204890-116 ,"12,898.12",
DFID,DFID,19/10/2015,Aid Programme - Humanitarian Material Relief Assistance and Services ,Regional Directorate ,IPA-International Procurement Agency (BV) ,204890-116 ,"119,565.51",
DFID,DFID,28/10/2015,Aid Programme - Humanitarian Material Relief Assistance and Services ,Regional Directorate ,IPA-International Procurement Agency (BV) ,204917-102 ,"288,467.49",
DFID,DFID,19/10/2015,Aid Programme - Humanitarian Material Relief Assistance and Services ,Regional Directorate ,IPA-International Procurement Agency (BV) ,204917-102 ,"616,751.76",
DFID,DFID,19/10/2015,Aid Programme - Humanitarian Material Relief Assistance and Services ,Regional Directorate ,IPA-International Procurement Agency (BV) ,204917-102 ,"5,651.07",
DFID,DFID,19/10/2015,Aid Programme - Humanitarian Material Relief Assistance and Services ,Regional Directorate ,IPA-International Procurement Agency (BV) ,204917-102 ,"5,021.83",
DFID,DFID,30/10/2015,Project delivery costs � supplier services,East and Central Africa ,IPA-International Procurement Agency (BV) ,203542-106 ,"48,735.00",
DFID,DFID,14/10/2015,Aid Programme - Accountable Grant Payments ,Policy Division ,ICAR (UK) ,200458-102 ,"206,250.00",
DFID,DFID,27/10/2015,Project delivery costs – supplier services ,West and Southern Africa ,ABT ASSOCIATES INC ,104229-101 ,"717,302.82",
DFID,DFID,12/10/2015,Aid Programme - Accountable Grant Payments ,West and Southern Africa ,MEDECINS SANS FRONTIERES BELGIQUE ,202909-111 ,"523,945.00",
DFID,DFID,27/10/2015,Project delivery costs – supplier services ,Middle East  Humanitarian & Conflict Division ,The Law & Development Partnership ,204795-102 ,"28,602.00",
DFID,DFID,22/10/2015,Fund monies to be managed and dispersed by the supplier ,Policy Division ,KPMG EAST AFRICA LTD ,201724-142 ,"2,250,306.00",
DFID,DFID,27/10/2015,Fund monies to be managed and dispersed by the supplier ,Policy Division ,KPMG EAST AFRICA LTD ,201724-142 ,"1,296,234.00",
DFID,DFID,09/10/2015,Aid Programme - Accountable Grant Payments ,East and Central Africa ,LONDON SCHOOL OF ECONOMICS AND POLITICAL SCIENCE ,204803-103 ,"27,708.00",
DFID,DFID,01/10/2015,Aid Programme - Accountable Grant Payments ,East and Central Africa ,LONDON SCHOOL OF ECONOMICS AND POLITICAL SCIENCE ,204803-103 ,"13,854.00",
DFID,DFID,01/10/2015,Project delivery costs – supplier services ,East and Central Africa ,UPPER QUARTILE ,203431-103 ,"13,731.00",
DFID,DFID,01/10/2015,Project delivery costs – supplier services ,East and Central Africa ,UPPER QUARTILE ,203431-103 ,"74,960.00",
DFID,DFID,01/10/2015,Project delivery costs – supplier services ,East and Central Africa ,UPPER QUARTILE ,203431-103 ,"49,700.00",
DFID,DFID,26/10/2015,Project delivery costs – supplier services ,Western Asia Division ,Supplier Name withheld ,204122-103 ,"60,627.00",
DFID,DFID,19/10/2015,Facilities Management payments ,West and Southern Africa ,Hema Trading ,101629-101 ,"1,106.91",
DFID,DFID,01/10/2015,Project delivery costs – supplier services ,Research and Evidence Division ,UNITED NATIONS FOUNDATION ,203036-101 ,"1,000,000.00",
DFID,DFID,05/10/2015,Aid Programme - Voluntary contributions ,West and Southern Africa ,Supplier Name withheld ,202721-102 ,"500,000.00",
DFID,DFID,26/10/2015,Project delivery costs – supplier services ,West and Southern Africa ,Cambridge  Education Limited ,104200-101 ,"1,365,861.86",
DFID,DFID,21/10/2015,Aid Programme - Refugee Relief Payments ,East and Central Africa ,Supplier Name withheld ,205032-101 ,"3,190,000.00",
DFID,DFID,28/10/2015,Aid Programme - Voluntary contributions ,Middle East  Humanitarian & Conflict Division ,Supplier Name withheld ,204536-101 ,"4,000,000.00",
DFID,DFID,28/10/2015,Aid Programme - Voluntary contributions ,Middle East  Humanitarian & Conflict Division ,Supplier Name withheld ,204536-102 ,"5,000,000.00",
DFID,DFID,26/10/2015,Aid Programme - Voluntary contributions ,Middle East  Humanitarian & Conflict Division ,Supplier Name withheld ,204536-102 ,"10,000,000.00",
DFID,DFID,26/10/2015,Aid Programme - Voluntary contributions ,Middle East  Humanitarian & Conflict Division ,Supplier Name withheld ,204536-103 ,"10,000,000.00",
DFID,DFID,28/10/2015,Aid Programme - Voluntary contributions ,Middle East  Humanitarian & Conflict Division ,Supplier Name withheld ,204536-103 ,"8,000,000.00",
DFID,DFID,14/10/2015,Aid Programme - Humanitarian Material Relief Assistance and Services ,East and Central Africa ,Supplier Name withheld ,204852-102 ,"3,000,000.00",
DFID,DFID,19/10/2015,Aid Programme - Voluntary contributions ,East and Central Africa ,Supplier Name withheld ,202995-110 ,"200,000.00",
DFID,DFID,19/10/2015,Aid Programme - Voluntary contributions ,East and Central Africa ,Supplier Name withheld ,202995-111 ,"800,000.00",
DFID,DFID,19/10/2015,Aid Programme - Voluntary contributions ,East and Central Africa ,Supplier Name withheld ,202995-102 ,"4,474,000.00",
DFID,DFID,29/10/2015,Project delivery costs – supplier services ,Economic Development Division ,KPMG LLP ,204252-101 ,"262,217.16",
DFID,DFID,02/10/2015,Aid Programme - Voluntary contributions ,Policy Division ,Supplier Name withheld ,203066-101 ,"305,000.00",
DFID,DFID,28/10/2015,Aid Programme - Voluntary contributions ,Regional Directorate ,Supplier Name withheld ,204929-104 ,"5,000,000.00",
DFID,DFID,02/10/2015,Aid Programme - Joint programme contribution ,East and Central Africa ,Supplier Name withheld ,113303-105 ,"1,497,676.00",
DFID,DFID,20/10/2015,other information and communication technologies ,West and Southern Africa ,Osmat Network Solutions Ventures ,101622-107 ,"2,994.07",
DFID,DFID,20/10/2015,other information and communication technologies ,West and Southern Africa ,Osmat Network Solutions Ventures ,100152-115 ,748.52,
DFID,DFID,14/10/2015,Project delivery costs – supplier services ,West and Southern Africa ,DELOITTE CONSULTING (PTY) LTD ,203824-101 ,"25,329.60",
DFID,DFID,26/10/2015,Aid Programme - Voluntary contributions ,Regional Directorate ,IOM ,204967-101 ,"2,305,186.00",
DFID,DFID,15/10/2015,Aid Programme - Voluntary contributions ,Middle East  Humanitarian & Conflict Division ,IOM ,202985-101 ,"368,311.00",
DFID,DFID,06/10/2015,Aid Programme - Voluntary contributions ,East and Central Africa ,IOM ,204019-102 ,"400,000.00",
DFID,DFID,06/10/2015,Aid Programme - Voluntary contributions ,East and Central Africa ,IOM ,204019-102 ,"800,000.00",
DFID,DFID,09/10/2015,Aid Programme - Accountable Grant Payments ,West and Southern Africa ,SEARCH FOR COMMON GROUND ,202416-114 ,"266,742.00",
DFID,DFID,28/10/2015,Project delivery costs – supplier services ,Asia  Caribbean and Overseas Territories ,BMB MOTT  MACDONALD ,107480-101 ,"111,884.81",
DFID,DFID,28/10/2015,Project delivery costs – supplier services ,Asia  Caribbean and Overseas Territories ,BMB MOTT  MACDONALD ,107480-101 ,"71,070.16",
DFID,DFID,01/10/2015,Project delivery costs – supplier services ,Asia  Caribbean and Overseas Territories ,BMB MOTT  MACDONALD ,107480-101 ,"131,856.45",
DFID,DFID,01/10/2015,Project delivery costs – supplier services ,Asia  Caribbean and Overseas Territories ,BMB MOTT  MACDONALD ,107480-101 ,"72,855.66",
DFID,DFID,28/10/2015,Project delivery costs – supplier services ,Research and Evidence Division ,BMB MOTT  MACDONALD ,205053-103 ,"1,347.67",
DFID,DFID,01/10/2015,Project delivery costs – supplier services ,Research and Evidence Division ,BMB MOTT  MACDONALD ,205053-103 ,"1,492.53",
DFID,DFID,02/10/2015,Project delivery costs – supplier services ,Asia  Caribbean and Overseas Territories ,IPE Global Pvt. Ltd. ,200754-101 ,"18,878.40",
DFID,DFID,12/10/2015,Project delivery costs – supplier services ,Asia  Caribbean and Overseas Territories ,IPE Global Pvt. Ltd. ,114040-101 ,"85,313.04",
DFID,DFID,12/10/2015,Project delivery costs – supplier services ,Asia  Caribbean and Overseas Territories ,IPE Global Pvt. Ltd. ,114040-101 ,"63,064.30",
DFID,DFID,12/10/2015,Project delivery costs – supplier services ,Asia  Caribbean and Overseas Territories ,IPE Global Pvt. Ltd. ,202765-101 ,"33,568.75",
DFID,DFID,12/10/2015,Project delivery costs – supplier services ,Asia  Caribbean and Overseas Territories ,IPE Global Pvt. Ltd. ,202765-102 ,"13,221.25",
DFID,DFID,12/10/2015,Project delivery costs – supplier services ,Asia  Caribbean and Overseas Territories ,IPE Global Pvt. Ltd. ,202765-102 ,"18,966.75",
DFID,DFID,12/10/2015,Project delivery costs – supplier services ,Asia  Caribbean and Overseas Territories ,IPE Global Pvt. Ltd. ,203217-101 ,"51,452.19",
DFID,DFID,12/10/2015,Project delivery costs – supplier services ,Asia  Caribbean and Overseas Territories ,IPE Global Pvt. Ltd. ,203217-101 ,827.06,
DFID,DFID,12/10/2015,Project delivery costs – supplier services ,Asia  Caribbean and Overseas Territories ,IPE Global Pvt. Ltd. ,203217-101 ,"32,413.21",
DFID,DFID,23/10/2015,Project delivery costs – supplier services ,Asia  Caribbean and Overseas Territories ,IPE Global Pvt. Ltd. ,203217-101 ,"88,021.68",
DFID,DFID,23/10/2015,Project delivery costs – supplier services ,Asia  Caribbean and Overseas Territories ,IPE Global Pvt. Ltd. ,203217-101 ,"76,178.12",
DFID,DFID,07/10/2015,Repairs  Maint  Alter - Removal & waste disposal services ,Group Operations ,BYWATERS ,203717-101 ,"4,711.76",
DFID,DFID,07/10/2015,Aid Programme - Partnership Programme Arrangements ,Policy Division ,TRANSPARENCY INTERNAT ,202505-101 ,"843,586.00",
DFID,DFID,23/10/2015,Aid Programme - Accountable Grant Payments ,West and Southern Africa ,EFInA ,104187-104 ,"365,156.13",
DFID,DFID,22/10/2015,Recruitment costs ,Human Resources ,Michael Page Int. Recruitment Ltd ,100266-108 ,"7,095.00",
DFID,DFID,06/10/2015,Contract & Agency Staff ,Group Operations ,Michael Page Int. Recruitment Ltd ,100270-106 ,"1,139.81",
DFID,DFID,09/10/2015,Contract & Agency Staff ,Group Operations ,Michael Page Int. Recruitment Ltd ,100270-106 ,719.10,
DFID,DFID,09/10/2015,Contract & Agency Staff ,Group Operations ,Michael Page Int. Recruitment Ltd ,100270-106 ,719.10,
DFID,DFID,09/10/2015,Contract & Agency Staff ,Group Operations ,Michael Page Int. Recruitment Ltd ,100270-106 ,"1,438.20",
DFID,DFID,07/10/2015,Contract & Agency Staff ,Group Operations ,Michael Page Int. Recruitment Ltd ,100270-106 ,"1,150.56",
DFID,DFID,08/10/2015,Contract & Agency Staff ,Group Operations ,Michael Page Int. Recruitment Ltd ,100270-106 ,"1,438.20",
DFID,DFID,19/10/2015,Aid Programme - Humanitarian Material Relief Assistance and Services ,East and Central Africa ,Supplier Name withheld ,203462-108 ,"1,000,000.00",
DFID,DFID,28/10/2015,Aid Programme - Accountable Grant Payments ,Middle East  Humanitarian & Conflict Division ,Supplier Name withheld ,205059-102 ,"5,000,000.00",
DFID,DFID,21/10/2015,Aid Programme - Voluntary contributions ,Middle East  Humanitarian & Conflict Division ,Supplier Name withheld ,205137-101 ,"2,000,000.00",
DFID,DFID,29/10/2015,Aid Programme - Humanitarian Material Relief Assistance and Services ,Middle East  Humanitarian & Conflict Division ,Supplier Name withheld ,204813-101 ,"500,000.00",
DFID,DFID,08/10/2015,Aid Programme - Humanitarian Material Relief Assistance and Services ,Middle East  Humanitarian & Conflict Division ,Internews Europe ,204037-101 ,"63,373.31",
DFID,DFID,27/10/2015,Aid Programme - Trust Funds contributions ,East and Central Africa ,Registered Trustees of the Financial Sector Deepening Trust ,105422-104 ,"1,000,000.00",
DFID,DFID,05/10/2015,Aid Programme - Partnership Programme Arrangements ,Policy Division ,Fairtrade Labelling Organizations International e.V. ,201718-101 ,"750,000.00",
DFID,DFID,23/10/2015,Aid Programme - Accountable Grant Payments ,Regional Directorate ,Supplier Name withheld ,204838-106 ,"2,000,000.00",
DFID,DFID,29/10/2015,Aid Programme - Core contributions ,Middle East  Humanitarian & Conflict Division ,United Nations General Trust Fund Account ,205038-101 ,"30,000,000.00",
DFID,DFID,12/10/2015,Project delivery costs – supplier services ,Asia  Caribbean and Overseas Territories ,Crown Agents Bank ,203274-101 ,"5,080.00",
DFID,DFID,08/10/2015,Project delivery costs – supplier services ,Regional Directorate ,Crown Agents Bank ,204929-102 ,"4,815.77",
DFID,DFID,22/10/2015,Project delivery costs – supplier services ,Regional Directorate ,Crown Agents Bank ,204929-102 ,"1,440.00",
DFID,DFID,22/10/2015,Project delivery costs – supplier services ,Regional Directorate ,Crown Agents Bank ,204929-102 ,"16,684.50",
DFID,DFID,16/10/2015,Project delivery costs – supplier services ,Asia  Caribbean and Overseas Territories ,Crown Agents Bank ,201645-105 ,"292,228.70",
DFID,DFID,16/10/2015,Project delivery costs – supplier services ,Asia  Caribbean and Overseas Territories ,Crown Agents Bank ,201645-105 ,"106,040.30",
DFID,DFID,22/10/2015,Project delivery costs – supplier services ,Middle East  Humanitarian & Conflict Division ,Crown Agents Bank ,201828-101 ,"25,380.51",
DFID,DFID,28/10/2015,Project delivery costs – supplier services ,Policy Division ,Crown Agents Bank ,201724-128 ,"116,151.00",
DFID,DFID,28/10/2015,Project delivery costs – supplier services ,Policy Division ,Crown Agents Bank ,201724-129 ,"53,690.85",
DFID,DFID,29/10/2015,Project delivery costs – supplier services ,Policy Division ,Crown Agents Bank ,201724-129 ,"67,475.94",
DFID,DFID,29/10/2015,Project delivery costs – supplier services ,Policy Division ,Crown Agents Bank ,201724-129 ,"82,577.98",
DFID,DFID,19/10/2015,Aid Programme - Core contributions ,Research and Evidence Division ,Medicines for Malaria Venture ,204066-101 ,"5,050,000.00",
DFID,DFID,06/10/2015,Aid Programme - Partnership Programme Arrangements ,Policy Division ,COLLABORATIVE LEARNING PROJECTS ,202829-101 ,"114,038.25",
DFID,DFID,14/10/2015,Aid Programme - Strategic Grant Arrangement payments ,Research and Evidence Division ,WELLCOME TRUST ,204571-109 ,"78,895.00",
DFID,DFID,19/10/2015,Aid Programme - Accountable Grant Payments ,East and Central Africa ,Twaweza East Africa ,204436-101 ,"1,000,000.00",
DFID,DFID,15/10/2015,Vehicle Repairs & Maintenance ,West and Southern Africa ,United Nassar Motors ,101629-101 ,"1,803.98",
DFID,DFID,15/10/2015,Vehicle Repairs & Maintenance ,West and Southern Africa ,United Nassar Motors ,101629-101 ,"1,038.55",
DFID,DFID,27/10/2015,Project delivery costs – supplier services ,West and Southern Africa ,ECORYS UK Ltd. ,204899-101 ,"24,757.43",
DFID,DFID,27/10/2015,Project delivery costs – supplier services ,West and Southern Africa ,ECORYS UK Ltd. ,204899-101 ,"99,400.28",
DFID,DFID,16/10/2015,Aid Programme - Accountable Grant Payments ,Policy Division ,BILL & MELINDA GATES FOUNDATION (USD) ,202918-104 ,"259,640.00",
DFID,DFID,23/10/2015,Hotels - Accommodation only ,East and Central Africa ,Southern Sun Hotels(T) Ltd (USD) ,204334-102 ,901.49,
DFID,DFID,15/10/2015,Hotels - Accommodation only ,East and Central Africa ,Southern Sun Hotels(T) Ltd (USD) ,204033-104 ,556.35,
DFID,DFID,13/10/2015,Hotels - Accommodation only ,East and Central Africa ,Southern Sun Hotels(T) Ltd (USD) ,204033-104 ,556.71,
DFID,DFID,13/10/2015,Hotels - Accommodation only ,East and Central Africa ,Southern Sun Hotels(T) Ltd (USD) ,204033-104 ,898.15,
DFID,DFID,09/10/2015,Hotels - Accommodation only ,East and Central Africa ,Southern Sun Hotels(T) Ltd (USD) ,203459-112 ,557.44,
DFID,DFID,27/10/2015,Hotels - Accommodation only ,West and Southern Africa ,Supplier Name withheld ,101622-105 ,940.26,
DFID,DFID,15/10/2015,Training - Course Fees ,Human Resources ,The Taylor Clarke Partnership Ltd ,100266-101 ,"1,000.00",
DFID,DFID,15/10/2015,Training - Course Fees ,Human Resources ,The Taylor Clarke Partnership Ltd ,100268-101 ,"1,000.00",
DFID,DFID,16/10/2015,Fund monies to be managed and dispersed by the supplier ,East and Central Africa ,BMB  MOTT  MACDONALD ,203383-101 ,"187,497.00",
DFID,DFID,23/10/2015,Project delivery costs – supplier services ,East and Central Africa ,BMB  MOTT  MACDONALD ,202511-102 ,"1,653,496.83",
DFID,DFID,05/10/2015,Project delivery costs – supplier services ,East and Central Africa ,BMB  MOTT  MACDONALD ,202511-102 ,"447,384.01",
DFID,DFID,02/10/2015,Project delivery costs – supplier services ,East and Central Africa ,BMB  MOTT  MACDONALD ,202511-102 ,"127,421.86",
DFID,DFID,28/10/2015,Aid Programme - Accountable Grant Payments ,Asia  Caribbean and Overseas Territories ,Lucy Faithful Foundation Trading Ltd ,203885-101 ,"32,211.64",
DFID,DFID,30/10/2015,Aid Programme - Core contributions ,Research and Evidence Division ,INTERNATIONAL DEVELOPMENT RESEARCH CENTRE ,204168-101 ,"963,094.00",
DFID,DFID,12/10/2015,Aid Programme - Core contributions ,Asia  Caribbean and Overseas Territories ,INTERNATIONAL DEVELOPMENT RESEARCH CENTRE ,204168-102 ,"1,200,000.00",
DFID,DFID,16/10/2015,Aid Programme - Voluntary contributions ,Policy Division ,GLOBAL WATER PARTNERSHIP ,202884-103 ,"2,000,000.00",
DFID,DFID,22/10/2015,Aid Programme - Voluntary contributions ,Policy Division ,GLOBAL WATER PARTNERSHIP ,202884-103 ,"1,000,000.00",
DFID,DFID,20/10/2015,Storage & Distribution costs ,West and Southern Africa ,Conote Services Ltd ,101622-105 ,"1,383.32",
DFID,DFID,20/10/2015,Storage & Distribution costs ,West and Southern Africa ,Conote Services Ltd ,101622-105 ,"1,448.22",
DFID,DFID,20/10/2015,Storage & Distribution costs ,West and Southern Africa ,Conote Services Ltd ,101622-105 ,"1,253.13",
DFID,DFID,20/10/2015,Storage & Distribution costs ,West and Southern Africa ,Conote Services Ltd ,101622-105 ,"1,097.55",
DFID,DFID,20/10/2015,Storage & Distribution costs ,West and Southern Africa ,Conote Services Ltd ,101622-105 ,"1,431.95",
DFID,DFID,27/10/2015,Storage & Distribution costs ,West and Southern Africa ,Conote Services Ltd ,101622-105 ,985.38,
DFID,DFID,27/10/2015,Storage & Distribution costs ,West and Southern Africa ,Conote Services Ltd ,101622-105 ,963.33,
DFID,DFID,06/10/2015,Storage & Distribution costs ,West and Southern Africa ,Conote Services Ltd ,101622-105 ,"1,608.82",
DFID,DFID,06/10/2015,Storage & Distribution costs ,West and Southern Africa ,Conote Services Ltd ,101622-105 ,"1,476.13",
DFID,DFID,06/10/2015,Storage & Distribution costs ,West and Southern Africa ,Conote Services Ltd ,101622-105 ,"1,409.79",
DFID,DFID,06/10/2015,Storage & Distribution costs ,West and Southern Africa ,Conote Services Ltd ,101622-105 ,"1,227.35",
DFID,DFID,06/10/2015,Storage & Distribution costs ,West and Southern Africa ,Conote Services Ltd ,101622-105 ,"1,028.32",
DFID,DFID,06/10/2015,Storage & Distribution costs ,West and Southern Africa ,Conote Services Ltd ,101622-105 ,"2,056.64",
DFID,DFID,20/10/2015,Aid Programme - Accountable Grant Payments ,Policy Division ,UNOPS ,203830-102 ,"1,326,667.00",
DFID,DFID,20/10/2015,Aid Programme - Accountable Grant Payments ,Economic Development Division ,UNOPS ,203830-103 ,"495,667.00",
DFID,DFID,12/10/2015,Aid Programme - Accountable Grant Payments ,Asia  Caribbean and Overseas Territories ,Transparency International (Bangladesh) ,203488-101 ,"380,000.00",
DFID,DFID,12/10/2015,Aid Programme - Accountable Grant Payments ,Asia  Caribbean and Overseas Territories ,Transparency International (Bangladesh) ,203488-102 ,"380,000.00",
DFID,DFID,12/10/2015,Aid Programme - Accountable Grant Payments ,Asia  Caribbean and Overseas Territories ,Transparency International (Bangladesh) ,203488-104 ,"190,000.00",
DFID,DFID,23/10/2015,Aid Programme - Accountable Grant Payments ,Asia  Caribbean and Overseas Territories ,UCEP - Underpriveliged Childrens Education Programs ,203228-102 ,"2,268,965.00",
DFID,DFID,23/10/2015,Aid Programme - Accountable Grant Payments ,Asia  Caribbean and Overseas Territories ,UCEP - Underpriveliged Childrens Education Programs ,203228-103 ,"27,761.00",
DFID,DFID,22/10/2015,Aid Programme - Joint programme contribution ,Asia  Caribbean and Overseas Territories ,Swiss Agency for Development and Cooperation SDC (Bangladesh) ,203229-101 ,"2,602,526.86",
DFID,DFID,27/10/2015,Aid Programme - Accountable Grant Payments ,West and Southern Africa ,Banja La Mtsogolo ,201095-101 ,"479,448.00",
DFID,DFID,27/10/2015,Aid Programme - Accountable Grant Payments ,West and Southern Africa ,Banja La Mtsogolo ,201095-101 ,"52,133.00",
DFID,DFID,07/10/2015,Project delivery costs – supplier services ,Economic Development Division ,CARDNO EMERGING MARKETS (UK) LTD ,203535-102 ,"26,423.15",
DFID,DFID,07/10/2015,Project delivery costs – supplier services ,Asia  Caribbean and Overseas Territories ,CARDNO EMERGING MARKETS (UK) LTD ,203535-105 ,"21,363.13",
DFID,DFID,16/10/2015,Project delivery costs – supplier services ,Middle East  Humanitarian & Conflict Division ,CARDNO EMERGING MARKETS (UK) LTD ,204267-101 ,"86,525.00",
DFID,DFID,05/10/2015,Aid Programme - Joint programme contribution ,East and Central Africa , USAID ,204005-101 ,"4,000,000.00",
DFID,DFID,01/10/2015,Further Education costs ,Western Asia Division ,Supplier Name withheld ,101601-110 ,"1,933.58",
DFID,DFID,01/10/2015,Aid Programme - Accountable Grant Payments ,Research and Evidence Division ,GLOBAL DEVELOPMENT NETWORK (3ie) ,203705-109 ,"13,867.00",
DFID,DFID,20/10/2015,Project delivery costs – supplier services ,Middle East  Humanitarian & Conflict Division ,ADAM SMITH INTERNATIONAL ,202241-103 ,"23,513.89",
DFID,DFID,16/10/2015,Project delivery costs – supplier services ,West and Southern Africa ,ADAM SMITH INTERNATIONAL ,201139-101 ,"177,756.21",
DFID,DFID,28/10/2015,Aid Programme - Voluntary contributions ,Asia  Caribbean and Overseas Territories ,CARIBBEAN COMMUNITY CLIMATE CHANGE CENTER ,202595-101 ,"482,236.00",
DFID,DFID,20/10/2015,Aid Programme - Accountable Grant Payments ,Middle East  Humanitarian & Conflict Division ,ALTUS GLOBAL ALLIANCE ,203244-103 ,"98,595.00",
DFID,DFID,12/10/2015,Aid Programme - Partnership Programme Arrangements ,Policy Division ,AVOCATS SANS FRONTIERES ,202739-101 ,"362,613.00",
DFID,DFID,26/10/2015,Aid Programme - Voluntary contributions ,East and Central Africa ,UNOPS - support for Access Cell unit ,202974-108 ,"922,742.00",
DFID,DFID,26/10/2015,Aid Programme - Voluntary contributions ,East and Central Africa ,UNOPS - support for Access Cell unit ,202974-115 ,"2,000,000.00",
DFID,DFID,26/10/2015,Aid Programme - Voluntary contributions ,Middle East  Humanitarian & Conflict Division ,UNOPS - support for Access Cell unit ,204797-103 ,"788,000.00",
DFID,DFID,30/10/2015,Aid Programme - Accountable Grant Payments ,Asia  Caribbean and Overseas Territories ,THE GURKHA WELFARE SCHEME ,203187-102 ,"505,837.00",
DFID,DFID,30/10/2015,Aid Programme - Accountable Grant Payments ,Asia  Caribbean and Overseas Territories ,THE GURKHA WELFARE SCHEME ,203187-103 ,"109,163.00",
DFID,DFID,30/10/2015,Aid Programme - Core contributions ,Policy Division , OECD ,203564-101 ,"375,000.00",
DFID,DFID,08/10/2015,Data Network - land lines ,Business Solutions Division Level ,NAYATEL (PVT) LTD ,203329-102 ,"1,202.72",
DFID,DFID,08/10/2015,Data Network - land lines ,Business Solutions Division Level ,NAYATEL (PVT) LTD ,200002-121 ,"1,260.00",
DFID,DFID,13/10/2015,Project delivery costs – supplier services ,Policy Division ,VIVID ECONOMICS LIMITED ,202948-128 ,"27,013.50",
DFID,DFID,20/10/2015,Project delivery costs – supplier services ,Asia  Caribbean and Overseas Territories ,PRICEWATERHOUSECOOPERS PRIVATE LTD ,113287-102 ,"12,445.09",
DFID,DFID,01/10/2015,Aid Programme - Trust Funds contributions ,Economic Development Division ,WORLD TRADE ORGANIZATION ,204713-103 ,"250,000.00",
DFID,DFID,26/10/2015,Aid Programme - Voluntary contributions ,Middle East  Humanitarian & Conflict Division ,UN- HABITAT ,203452-106 ,"283,137.00",
DFID,DFID,09/10/2015,Project delivery costs – supplier services ,Regional Directorate ,McKinsey & Co  Inc UK ,204967-102 ,"145,000.00",
DFID,DFID,09/10/2015,Project delivery costs – supplier services ,Regional Directorate ,McKinsey & Co  Inc UK ,204967-102 ,"145,000.00",
DFID,DFID,13/10/2015,Project delivery costs – supplier services ,Western Asia Division ,McKinsey & Co  Inc UK ,202697-109 ,"124,650.00",
DFID,DFID,12/10/2015,Medical/Health Services ,West and Southern Africa ,FLIMAS ,101638-101 ,"2,785.25",
DFID,DFID,12/10/2015,Medical/Health Services ,West and Southern Africa ,FLIMAS ,100256-102 ,"1,095.30",
DFID,DFID,13/10/2015,Project delivery costs – supplier services ,Asia  Caribbean and Overseas Territories ,KPMG Advisory Services Pvt Ltd ( India) ,202867-103 ,"8,391.79",
DFID,DFID,29/10/2015,Aid Programme - Accountable Grant Payments ,International Relations Division ,IFPRI ,203707-101 ,"157,492.20",
DFID,DFID,05/10/2015,Aid Programme - Accountable Grant Payments ,Middle East  Humanitarian & Conflict Division ,Supplier Name withheld ,203847-104 ,"1,660,000.00",
DFID,DFID,26/10/2015,Aid Programme - Accountable Grant Payments ,Economic Development Division ,FSD Kenya ,201394-102 ,"1,354,231.00",
DFID,DFID,26/10/2015,Aid Programme - Accountable Grant Payments ,East and Central Africa ,FSD Kenya ,201394-105 ,"1,000,000.00",
DFID,DFID,21/10/2015,Air fares ,West and Southern Africa ,UNHAS - WFP (DRC) ,101610-101 ,"2,133.16",
DFID,DFID,30/10/2015,Aid Programme - Core contributions ,Research and Evidence Division ,Drugs for Neglected Diseases Initiative ,204075-101 ,"5,000,000.00",
DFID,DFID,27/10/2015,Aid Programme - Accountable Grant Payments ,Policy Division ,Global Canopy Programme ,201724-114 ,"148,094.76",
DFID,DFID,13/10/2015,Secure Staff Accommodation ,West and Southern Africa ,Supplier Name withheld ,101622-105 ,"117,941.14",Secure staff accommodation costs for 5 properties for 12 months 2015/2016 � DFID Nigeria (payment 1 of 2)
DFID,DFID,23/10/2015,Secure Staff Accommodation ,West and Southern Africa ,Supplier Name withheld ,100152-110 ,"29,336.98",Secure staff accommodation costs for 5 properties for 12 months 2015/2016 � DFID Nigeria (payment 2 of 2)
DFID,DFID,22/10/2015,Training Providers/Facilitation Services ,Research and Evidence Division ,NatCen Learning ,202331-102 ,"6,733.00",
DFID,DFID,23/10/2015,Project delivery costs – supplier services ,Asia  Caribbean and Overseas Territories ,Futures Group Europe ,203455-101 ,"191,025.52",
DFID,DFID,14/10/2015,Project delivery costs – supplier services ,West and Southern Africa ,Futures Group Europe ,202819-102 ,"801,084.19",
DFID,DFID,14/10/2015,Project delivery costs – supplier services ,West and Southern Africa ,Futures Group Europe ,202992-101 ,"1,014,978.00",
DFID,DFID,01/10/2015,Project delivery costs – supplier services ,Western Asia Division ,Futures Group Europe ,202488-105 ,"153,088.47",
DFID,DFID,06/10/2015,Project delivery costs – supplier services ,East and Central Africa ,Futures Group Europe ,202547-102 ,"228,886.01",
DFID,DFID,29/10/2015,Project delivery costs – supplier services ,East and Central Africa ,Futures Group Europe ,203016-102 ,"14,241.06",
DFID,DFID,02/10/2015,Aid Programme - Voluntary contributions ,Research and Evidence Division ,International Monetary Fund (GBP) ,204933-101 ,"708,850.00",
DFID,DFID,02/10/2015,Recruitment costs ,International Relations Division ,HM REVENUE AND CUSTOMS Acc No 12535645 ,100086-101 ,"41,000.00",DFID core contribution funding of the HMG European Faststreamer programme 2015/16 
DFID,DFID,30/10/2015,Recruitment costs ,International Relations Division ,HM REVENUE AND CUSTOMS Acc No 12535645 ,100086-101 ,"4,888.74",
DFID,DFID,12/10/2015,Recruitment costs ,Human Resources ,HM REVENUE AND CUSTOMS Acc No 12535645 ,100269-117 ,"109,910.52",DFID Contribution to the HMG General Fast Stream Programme  for  the period April - June 2015
DFID,DFID,20/10/2015,Aid Programme - Accountable Grant Payments ,East and Central Africa ,Basel Institute On Governance ,200120-105 ,"23,185.91",
DFID,DFID,20/10/2015,Secure Staff Accommodation ,West and Southern Africa ,Supplier Name withheld ,101620-101 ,"3,234.15",
DFID,DFID,06/10/2015,Project delivery costs – supplier services ,East and Central Africa ,Montrose International ,201512-103 ,"14,425.00",
DFID,DFID,29/10/2015,Aid Programme - Poverty Reduction Budget Support ,Western Asia Division ,STATE BANK OF PAKISTAN  ,202697-101 ,"10,600,000.00",
DFID,DFID,22/10/2015,Aid Programme - Humanitarian Material Relief Assistance and Services ,East and Central Africa ,UNDP (USD) ACCOUNT ,204852-106 ,"4,000,000.00",
DFID,DFID,28/10/2015,Aid Programme - Accountable Grant Payments ,Asia  Caribbean and Overseas Territories ,Bal Raksha Bharat -Save the Children ,200754-108 ,"41,126.55",
DFID,DFID,02/10/2015,Aid Programme - Partnership Programme Arrangements ,Policy Division ,Development Initiatives Poverty Research Ltd ,202828-101 ,"97,330.00",
DFID,DFID,29/10/2015,Aid Programme - Joint programme contribution ,Asia  Caribbean and Overseas Territories ,DFID-GIZ Risk Management Office  Kathmandu ,204293-101 ,"80,559.00",
DFID,DFID,23/10/2015,Air fares ,East and Central Africa ,Bon Voyage Travel Centre Ltd(USD) ,204334-102 ,596.24,
DFID,DFID,26/10/2015,Training - Travel & Subsistence ,East and Central Africa ,Bon Voyage Travel Centre Ltd(USD) ,101634-101 ,724.54,
DFID,DFID,07/10/2015,Air fares ,East and Central Africa ,Bon Voyage Travel Centre Ltd(USD) ,101634-101 ,678.52,
DFID,DFID,06/10/2015,Training - Travel & Subsistence ,East and Central Africa ,Bon Voyage Travel Centre Ltd(USD) ,101634-101 ,855.83,
DFID,DFID,14/10/2015,Hotels - Accommodation only ,East and Central Africa ,Bon Voyage Travel Centre Ltd(USD) ,101634-101 ,589.01,
DFID,DFID,14/10/2015,Air fares ,East and Central Africa ,Bon Voyage Travel Centre Ltd(Tsh) ,101634-101 ,543.82,
DFID,DFID,06/10/2015,Air fares ,East and Central Africa ,Bon Voyage Travel Centre Ltd(Tsh) ,101634-101 ,538.96,
DFID,DFID,07/10/2015,Research and development costs - supplier services ,Research and Evidence Division ,Tim Leyland ,204823-101 ,"10,800.00",
DFID,DFID,19/10/2015,Aid Programme - Accountable Grant Payments ,Asia  Caribbean and Overseas Territories ,International Institute for Environment and Development (IIED) ,114058-112 ,"22,676.00",
DFID,DFID,30/10/2015,Project delivery costs – supplier services ,East and Central Africa ,The Communication Initiative ,203024-104 ,"18,360.00",
DFID,DFID,30/10/2015,Project delivery costs – supplier services ,Asia  Caribbean and Overseas Territories ,ICLEI South Asia ,107891-102 ,"12,640.69",
DFID,DFID,22/10/2015,Project delivery costs – supplier services ,Asia  Caribbean and Overseas Territories ,Landell Mills Ltd ,202787-102 ,"26,000.00",
DFID,DFID,15/10/2015,Project delivery costs – supplier services ,Asia  Caribbean and Overseas Territories ,Landell Mills Ltd ,202787-102 ,"92,522.95",
DFID,DFID,13/10/2015,Aid Programme - Challenge Fund payments ,Western Asia Division ,Supplier Name withheld ,200898-116 ,"133,000.00",
DFID,DFID,05/10/2015,Aid Programme - Challenge Fund payments ,Western Asia Division ,Supplier Name withheld ,200898-116 ,"173,246.63",
DFID,DFID,28/10/2015,Aid Programme - Joint programme contribution ,West and Southern Africa ,USAID Washington ,204315-103 ,"953,037.00",
DFID,DFID,20/10/2015,Hardware - servers & storage ,Business Solutions Division Level ,CAPITA  IT SERVICES ,200005-131 ,"2,932.80",
DFID,DFID,02/10/2015,Hardware - servers & storage ,Business Solutions Division Level ,CAPITA  IT SERVICES ,200005-131 ,"2,489.40",
DFID,DFID,08/10/2015,Project delivery costs – supplier services ,East and Central Africa ,Dr Mohammed Mussa(MMA Development Consultancy) ,204246-101 ,"4,165.13",
DFID,DFID,22/10/2015,Aid Programme - Voluntary contributions ,West and Southern Africa ,OHCHR ,202416-116 ,"285,320.00",
DFID,DFID,06/10/2015,Aid Programme - Accountable Grant Payments ,Middle East  Humanitarian & Conflict Division ,RedR UK ,203978-102 ,"69,079.00",
DFID,DFID,05/10/2015,Other rentals ,Group Operations ,Cabinet Office RM Shared Services ,203717-101 ,"61,500.00",Annual service cost for security services and mainatence of the Ripley Building Courtyard  (DFID HQ Whitehall office) 2015-2016
DFID,DFID,20/10/2015,Subscriptions ,Communications Division ,Cabinet Office RM Shared Services ,100197-101 ,"40,000.00",DFIDs annual contribution to the Government-wide media monitoring system for the period  April 2015 � March 2016
DFID,DFID,28/10/2015,Auditors Assurance Service ,East and Central Africa ,Mazars Certified Public Accountants (K) ,202549-107 ,"3,741.30",
DFID,DFID,19/10/2015,Aid Programme - Challenge Fund payments ,Asia  Caribbean and Overseas Territories ,Harewelle International Limited. ,107402-102 ,"354,739.47",
DFID,DFID,19/10/2015,Aid Programme - Challenge Fund payments ,Asia  Caribbean and Overseas Territories ,Harewelle International Limited. ,107402-106 ,"135,494.06",
DFID,DFID,19/10/2015,Project delivery costs – supplier services ,Asia  Caribbean and Overseas Territories ,Harewelle International Limited. ,107402-101 ,"100,628.98",
DFID,DFID,19/10/2015,Project delivery costs – supplier services ,Asia  Caribbean and Overseas Territories ,Harewelle International Limited. ,107402-105 ,"7,482.46",
DFID,DFID,08/10/2015,Encashment of Promissory Notes ,Policy Division ,International Bank for Reconstruction and Development ,113819-103 ,"868,000.00",
DFID,DFID,07/10/2015,Encashment of Promissory Notes ,Economic Development Division ,International Development Association ,200269-106 ,"37,345,000.00",
DFID,DFID,06/10/2015,Encashment of Promissory Notes ,Economic Development Division ,Asian Development Bank ,200614-104 ,"3,973,000.00",
DFID,DFID,08/10/2015,Encashment of Promissory Notes ,Policy Division ,International Bank for Reconstruction and Development ,202216-103 ,"6,300,000.00",
DFID,DFID,08/10/2015,Encashment of Promissory Notes ,Policy Division ,International Bank for Reconstruction and Development ,204056-101 ,"1,400,000.00",
DFID,DFID,08/10/2015,Encashment of Promissory Notes ,Policy Division ,International Bank for Reconstruction and Development ,204056-102 ,"2,800,000.00",
DFID,DFID,27/10/2015,Aid Programme - Accountable Grant Payments ,East and Central Africa ,Prince of Wales Youth Bus. Inter'l Ltd ,200250-128 ,"156,664.00",
DFID,DFID,29/10/2015,Project delivery costs – supplier services ,Asia  Caribbean and Overseas Territories ,SIDBI MUMBAI ,114293-103 ,"33,296.45",
DFID,DFID,29/10/2015,Project delivery costs – supplier services ,Asia  Caribbean and Overseas Territories ,SIDBI MUMBAI ,114293-103 ,"24,083.01",
DFID,DFID,29/10/2015,Project delivery costs – supplier services ,Asia  Caribbean and Overseas Territories ,SIDBI MUMBAI ,114293-103 ,"40,862.07",
DFID,DFID,29/10/2015,Project delivery costs – supplier services ,Asia  Caribbean and Overseas Territories ,SIDBI MUMBAI ,114293-103 ,"500,575.16",
DFID,DFID,29/10/2015,Project delivery costs – supplier services ,Asia  Caribbean and Overseas Territories ,SIDBI MUMBAI ,114293-103 ,"1,599,255.52",
DFID,DFID,07/10/2015,Project delivery costs – supplier services ,Asia  Caribbean and Overseas Territories ,SIDBI MUMBAI ,114293-103 ,"498,421.00",
DFID,DFID,26/10/2015,Project delivery costs – supplier services ,Policy Division ,Triple Line Crown Agents JV. ,201242-101 ,"94,653.62",
DFID,DFID,30/10/2015,Aid Programme - Accountable Grant Payments ,East and Central Africa ,TRADEMARK EAST AFRICA ,204362-103 ,"3,500,000.00",
DFID,DFID,21/10/2015,Hotels - Accommodation only ,East and Central Africa ,Doubletree by Hilton Dar es Salaam ,101634-101 ,"1,550.10",
DFID,DFID,27/10/2015,Aid Programme - Accountable Grant Payments ,Regional Directorate ,Clinton Health Access Initiative ,204967-101 ,"145,144.61",
DFID,DFID,01/10/2015,Aid Programme - Accountable Grant Payments ,Research and Evidence Division ,Clinton Health Access Initiative ,205105-101 ,"118,180.00",
DFID,DFID,28/10/2015,Aid Programme - Accountable Grant Payments ,Asia  Caribbean and Overseas Territories ,The Asia Foundation (GBP) ,204623-101 ,"81,962.00",
DFID,DFID,01/10/2015,Aid Programme - Accountable Grant Payments ,Asia  Caribbean and Overseas Territories ,The Asia Foundation (GBP) ,204623-101 ,"32,227.00",
DFID,DFID,01/10/2015,Project delivery costs – supplier services ,Asia  Caribbean and Overseas Territories ,Pricewaterhousecoopers Pvt. Ltd. ,203484-101 ,"12,214.86",
DFID,DFID,12/10/2015,Aid Programme - Accountable Grant Payments ,Asia  Caribbean and Overseas Territories ,Society for Development Alternatives ,203757-105 ,"60,211.00",
DFID,DFID,05/10/2015,Oil - Other Utilities ,West and Southern Africa ,NP (SL) Ltd ,100214-101 ,"2,061.87",
DFID,DFID,05/10/2015,Oil - Other Utilities ,West and Southern Africa ,NP (SL) Ltd ,101629-101 ,"3,092.80",
DFID,DFID,23/10/2015,Aid Programme - Accountable Grant Payments ,East and Central Africa , THE RESEARCH FOUNDATION ,200120-114 ,"67,760.46",
DFID,DFID,05/10/2015,Aid Programme - Voluntary contributions ,International Relations Division ,  OECD ,205030-101 ,"563,885.39",
DFID,DFID,23/10/2015,Aid Programme - Accountable Grant Payments ,West and Southern Africa ,Paralegal Advisory Service Institute ,202559-102 ,"94,394.55",
DFID,DFID,21/10/2015,Mobile telephones & accessories ,West and Southern Africa ,Airtel (SL) Ltd ,101629-101 ,566.47,
DFID,DFID,06/10/2015,Mobile telephones & accessories ,West and Southern Africa ,Airtel (SL) Ltd ,101629-101 ,671.37,
DFID,DFID,09/10/2015,Aid Programme - Partnership Programme Arrangements ,Policy Division ,Supplier Name withheld ,202688-101 ,"635,786.50",
DFID,DFID,26/10/2015,Aid Programme - Humanitarian Material Relief Assistance and Services ,Middle East  Humanitarian & Conflict Division ,Supplier Name withheld ,204854-101 ,"28,567.00",
DFID,DFID,27/10/2015,Aid Programme - Humanitarian Material Relief Assistance and Services ,West and Southern Africa ,Supplier Name withheld ,204013-102 ,"43,035.00",
DFID,DFID,09/10/2015,Aid Programme - Accountable Grant Payments ,East and Central Africa ,Supplier Name withheld ,203462-102 ,"3,500,000.00",
DFID,DFID,09/10/2015,Computer software maintenance ,Non-Departmental Public Body ,Ministry of Justice (2) ,204859-103 ,"7,540.00",
DFID,DFID,23/10/2015,Project delivery costs – supplier services ,Policy Division ,CfBT Education Trust ,201469-106 ,"125,754.00",
DFID,DFID,07/10/2015,Aid Programme - Accountable Grant Payments ,Research and Evidence Division ,University of Edinburgh - Research Into Results Ltd ,203665-101 ,"117,943.16",
DFID,DFID,26/10/2015,Aid Programme - Accountable Grant Payments ,Research and Evidence Division ,University of Edinburgh - Research Into Results Ltd ,203665-101 ,"110,955.08",
DFID,DFID,09/10/2015,Research and development costs - supplier services ,Research and Evidence Division ,University of Edinburgh - Research Into Results Ltd ,204326-101 ,"183,056.01",
DFID,DFID,05/10/2015,Training - Travel & Subsistence ,Western Asia Division ,Gerry's Travel Agency Private Limited ,101624-101 ,"1,214.43",
DFID,DFID,28/10/2015,Aid Programme - Accountable Grant Payments ,East and Central Africa ,Supplier Name withheld ,203928-103 ,"169,806.33",
DFID,DFID,23/10/2015,Aid Programme - Accountable Grant Payments ,East and Central Africa ,AgDevCo ,204012-102 ,"286,133.00",
DFID,DFID,23/10/2015,Aid Programme - Accountable Grant Payments ,East and Central Africa ,AgDevCo ,204012-103 ,"480,769.00",
DFID,DFID,21/10/2015,Aid Programme - Core contributions ,East and Central Africa , ACCESS TO FINANCE RWANDA ,201845-101 ,"877,732.00",
DFID,DFID,15/10/2015,Project delivery costs – supplier services ,West and Southern Africa ,PATRICK JAMES NOLEN ,202482-104 ,900.00,
DFID,DFID,08/10/2015,Aid Programme - Accountable Grant Payments ,Policy Division ,Triple Line Crown Agents JV ,202035-101 ,"14,119.99",
DFID,DFID,08/10/2015,Aid Programme - Accountable Grant Payments ,Policy Division ,Triple Line Crown Agents JV ,202035-101 ,"32,898.65",
DFID,DFID,08/10/2015,Aid Programme - Accountable Grant Payments ,Policy Division ,Triple Line Crown Agents JV ,202035-101 ,"68,861.60",
DFID,DFID,08/10/2015,Aid Programme - Accountable Grant Payments ,Policy Division ,Triple Line Crown Agents JV ,202035-101 ,"16,963.00",
DFID,DFID,29/10/2015,Project delivery costs – supplier services ,Asia  Caribbean and Overseas Territories ,IMC Worldwide Ltd. ,203186-102 ,"452,612.40",
DFID,DFID,29/10/2015,Project delivery costs – supplier services ,Asia  Caribbean and Overseas Territories ,IMC Worldwide Ltd. ,203186-103 ,"67,131.63",
DFID,DFID,15/10/2015,Project delivery costs – supplier services ,Western Asia Division ,IMC Worldwide Ltd. ,202697-104 ,"351,508.85",
DFID,DFID,15/10/2015,Project delivery costs – supplier services ,Western Asia Division ,IMC Worldwide Ltd. ,202328-106 ,"295,781.69",
DFID,DFID,27/10/2015,Project delivery costs – supplier services ,East and Central Africa ,IMC Worldwide Ltd. ,200221-105 ,"190,712.29",
DFID,DFID,13/10/2015,Project delivery costs – supplier services ,West and Southern Africa ,DAI Europe ,200274-104 ,"15,589.81",
DFID,DFID,22/10/2015,Project delivery costs – supplier services ,Western Asia Division ,DAI Europe ,114433-102 ,"732,544.94",
DFID,DFID,23/10/2015,Project delivery costs – supplier services ,West and Southern Africa ,DAI Europe ,201018-102 ,"300,383.29",
DFID,DFID,29/10/2015,Project delivery costs – supplier services ,West and Southern Africa ,DAI Europe ,201857-102 ,"284,448.10",
DFID,DFID,30/10/2015,Project delivery costs – supplier services ,West and Southern Africa ,DAI Europe ,201857-102 ,"54,636.00",
DFID,DFID,14/10/2015,Project delivery costs – supplier services ,West and Southern Africa ,DAI Europe ,201980-102 ,"12,502.36",
DFID,DFID,23/10/2015,Project delivery costs – supplier services ,West and Southern Africa ,DAI Europe ,203922-101 ,"51,519.00",
DFID,DFID,26/10/2015,Project delivery costs – supplier services ,East and Central Africa ,DAI Europe ,203986-102 ,"146,434.79",
DFID,DFID,12/10/2015,Project delivery costs – supplier services ,East and Central Africa ,DAI Europe ,202580-102 ,"100,000.00",
DFID,DFID,12/10/2015,Project delivery costs – supplier services ,East and Central Africa ,DAI Europe ,202580-102 ,"104,785.86",
DFID,DFID,12/10/2015,Project delivery costs – supplier services ,West and Southern Africa ,DAI Europe ,202585-102 ,"79,649.07",
DFID,DFID,16/10/2015,Project delivery costs – supplier services ,West and Southern Africa ,DAI Europe ,202585-102 ,"456,792.18",
DFID,DFID,29/10/2015,Project delivery costs – supplier services ,West and Southern Africa ,DAI Europe ,202585-102 ,"383,289.60",
DFID,DFID,30/10/2015,Project delivery costs – supplier services ,East and Central Africa ,DAI Europe ,202596-105 ,"111,475.51",
DFID,DFID,27/10/2015,Project delivery costs – supplier services ,East and Central Africa ,DAI Europe ,202596-105 ,"137,486.64",
DFID,DFID,27/10/2015,Project delivery costs – supplier services ,East and Central Africa ,DAI Europe ,202596-105 ,"113,855.62",
DFID,DFID,05/10/2015,Project delivery costs – supplier services ,West and Southern Africa ,DAI Europe ,203000-102 ,"129,158.96",
DFID,DFID,08/10/2015,Project delivery costs – supplier services ,Asia  Caribbean and Overseas Territories ,DAI Europe ,203186-104 ,"63,004.08",
DFID,DFID,29/10/2015,Project delivery costs – supplier services ,Asia  Caribbean and Overseas Territories ,DAI Europe ,203186-104 ,"58,771.88",
DFID,DFID,15/10/2015,Project delivery costs – supplier services ,West and Southern Africa ,DAI Europe ,203317-102 ,"30,000.00",
DFID,DFID,09/10/2015,Project delivery costs – supplier services ,West and Southern Africa ,DAI Europe ,203317-102 ,"321,755.00",
DFID,DFID,09/10/2015,Project delivery costs – supplier services ,West and Southern Africa ,DAI Europe ,203317-102 ,"117,229.95",
DFID,DFID,09/10/2015,Project delivery costs – supplier services ,West and Southern Africa ,DAI Europe ,203317-102 ,"16,518.56",
DFID,DFID,09/10/2015,Project delivery costs – supplier services ,West and Southern Africa ,DAI Europe ,203317-102 ,"51,532.43",
DFID,DFID,29/10/2015,Fund monies to be managed and dispersed by the supplier ,West and Southern Africa ,DAI Europe ,201958-102 ,"30,501.50",
DFID,DFID,22/10/2015,Fund monies to be managed and dispersed by the supplier ,Middle East  Humanitarian & Conflict Division ,DAI Europe ,201828-101 ,"272,767.32",
DFID,DFID,26/10/2015,Project delivery costs – supplier services ,Policy Division ,Sightsavers ,203146-103 ,"796,000.00",
DFID,DFID,23/10/2015,Project delivery costs – supplier services ,Policy Division ,Sightsavers ,203145-101 ,"662,432.00",
DFID,DFID,30/10/2015,Project delivery costs – supplier services ,Asia  Caribbean and Overseas Territories ,Deloitte Touche Tohmatsu India Pvt. Ltd. ,202744-101 ,"44,147.01",
DFID,DFID,19/10/2015,Project delivery costs – supplier services ,West and Southern Africa ,Abt Associates ,202342-102 ,"141,551.35",
DFID,DFID,19/10/2015,Research and development costs - supplier services ,Research and Evidence Division ,Abt Associates ,203052-102 ,"591,156.58",
DFID,DFID,06/10/2015,Project delivery costs – supplier services ,West and Southern Africa ,MSI ,202721-103 ,"269,655.00",
DFID,DFID,15/10/2015,Project delivery costs – supplier services ,Western Asia Division ,MSI ,202413-104 ,"969,295.00",
DFID,DFID,15/10/2015,Project delivery costs – supplier services ,Policy Division ,PATH ,202674-101 ,"13,945.23",
DFID,DFID,15/10/2015,Project delivery costs – supplier services ,Policy Division ,PATH ,202674-101 ,"117,389.32",
DFID,DFID,14/10/2015,Project delivery costs – supplier services ,Policy Division ,PATH ,202674-101 ,"7,908.00",
DFID,DFID,14/10/2015,Project delivery costs – supplier services ,Policy Division ,PATH ,202674-101 ,"55,269.20",
DFID,DFID,14/10/2015,Project delivery costs – supplier services ,Policy Division ,PATH ,202674-101 ,"11,753.72",
DFID,DFID,14/10/2015,Project delivery costs – supplier services ,Policy Division ,PATH ,202674-101 ,"8,140.08",
DFID,DFID,15/10/2015,Project delivery costs – supplier services ,Policy Division ,PATH ,202674-101 ,"12,649.20",
DFID,DFID,15/10/2015,Project delivery costs – supplier services ,Policy Division ,PATH ,202674-101 ,"18,921.11",
DFID,DFID,15/10/2015,Project delivery costs – supplier services ,Policy Division ,PATH ,202674-101 ,"21,378.80",
DFID,DFID,15/10/2015,Project delivery costs – supplier services ,Policy Division ,PATH ,202674-101 ,"3,790.00",
DFID,DFID,15/10/2015,Project delivery costs – supplier services ,Policy Division ,PATH ,202676-101 ,"40,938.67",
DFID,DFID,14/10/2015,Project delivery costs – supplier services ,Policy Division ,PATH ,202676-101 ,"112,084.39",
DFID,DFID,14/10/2015,Project delivery costs – supplier services ,Policy Division ,PATH ,202676-102 ,"69,728.03",
DFID,DFID,23/10/2015,Project delivery costs – supplier services ,East and Central Africa ,Mennonite Economic Development Associates of Canada ,202481-104 ,"116,971.25",
DFID,DFID,05/10/2015,Project delivery costs – supplier services ,East and Central Africa ,DKT International ,202980-103 ,"699,423.00",
DFID,DFID,06/10/2015,Project delivery costs – supplier services ,Policy Division ,LTS International Ltd. ,201724-135 ,"19,311.94",
DFID,DFID,26/10/2015,Project delivery costs – supplier services ,Asia  Caribbean and Overseas Territories ,LTS International Ltd. ,201724-153 ,"103,043.65",
DFID,DFID,26/10/2015,Project delivery costs – supplier services ,Asia  Caribbean and Overseas Territories ,LTS International Ltd. ,201724-153 ,"148,355.84",
DFID,DFID,06/10/2015,Project delivery costs – supplier services ,Asia  Caribbean and Overseas Territories ,LTS International Ltd. ,203174-102 ,"230,309.67",
DFID,DFID,06/10/2015,Project delivery costs – supplier services ,East and Central Africa ,Pathfinder International - US ,202893-103 ,"333,388.66",
DFID,DFID,28/10/2015,Aid Programme - Programme Contribution ,International Relations Division ,CSC ,202861-101 ,"5,907,000.00",
DFID,DFID,28/10/2015,Other Admin Costs ,International Relations Division ,CSC ,202861-102 ,"406,000.00",Quarterly Payment to the Commonwealth Scholarship Commission for the period October to December 2015 - Programme Contribution 
DFID,DFID,30/10/2015,Project delivery costs – supplier services ,Asia  Caribbean and Overseas Territories ,KPMG (KASPL) ,202867-103 ,"32,404.00",
DFID,DFID,28/10/2015,Aid Programme - Accountable Grant Payments ,Asia  Caribbean and Overseas Territories ,International Foundation for Electoral Systems ,203454-101 ,"600,000.00",
DFID,DFID,23/10/2015,Project delivery costs – supplier services ,West and Southern Africa ,GDSI UK LIMITED ,202999-104 ,"14,997.00",
DFID,DFID,12/10/2015,Project delivery costs – supplier services ,Asia  Caribbean and Overseas Territories ,PricewaterhouseCoopers Pvt.Ltd ,202865-101 ,"317,229.00",
DFID,DFID,20/10/2015,Project delivery costs – supplier services ,Asia  Caribbean and Overseas Territories ,PricewaterhouseCoopers Pvt.Ltd ,202865-101 ,"9,644.00",
DFID,DFID,16/10/2015,Project delivery costs – supplier services ,Asia  Caribbean and Overseas Territories ,PricewaterhouseCoopers Pvt.Ltd ,202865-101 ,"5,075.00",
DFID,DFID,30/10/2015,Project delivery costs – supplier services ,Asia  Caribbean and Overseas Territories ,PricewaterhouseCoopers Pvt.Ltd ,200599-101 ,"22,800.00",
DFID,DFID,30/10/2015,Project delivery costs – supplier services ,Asia  Caribbean and Overseas Territories ,PricewaterhouseCoopers Pvt.Ltd ,200599-101 ,"96,900.00",
DFID,DFID,30/10/2015,Project delivery costs – supplier services ,Asia  Caribbean and Overseas Territories ,PricewaterhouseCoopers Pvt.Ltd ,107891-102 ,"147,060.00",
DFID,DFID,19/10/2015,Project delivery costs – supplier services ,Research and Evidence Division ,PricewaterhouseCoopers Pvt.Ltd ,203200-104 ,"75,230.00",
DFID,DFID,29/10/2015,Project delivery costs – supplier services ,West and Southern Africa ,Dr. Joanna Harma ,204924-101 ,"7,244.35",
DFID,DFID,13/10/2015,Repairs  Maint  Alter - Property & Constrct. Services ,West and Southern Africa ,Lilleker Bros (Nigeria) Ltd ,100153-101 ,"117,345.00",
DFID,DFID,02/10/2015,Taxi costs ,Business Solutions Division Level ,d&m taxis ,200001-101 ,720.00,
DFID,DFID,30/10/2015,Aid Programme - Accountable Grant Payments ,Research and Evidence Division ,Forschungsinstitut zur Zukunft der Arbeit GmbH ,202568-101 ,"277,506.00",
DFID,DFID,19/10/2015,Aid Programme - Partnership Programme Arrangements ,Policy Division ,GENDER LINKS ,202576-101 ,"156,217.00",
DFID,DFID,30/10/2015,Research and development costs - supplier services ,Research and Evidence Division ,PricewaterhouseCoopers Limited (KENYA3) ,204570-101 ,"49,209.00",
DFID,DFID,12/10/2015,Aid Programme - Partnership Programme Arrangements ,Policy Division ,The Global Alliance for Improved Nutrition ,202780-101 ,"787,449.00",
DFID,DFID,06/10/2015,Subscriptions ,Communications Division ,Durrants lTD ,100197-101 ,"1,150.57",
DFID,DFID,27/10/2015,Project delivery costs – supplier services ,East and Central Africa ,Charlie Goldsmith Associates Limited ,203597-106 ,"6,025.00",
DFID,DFID,13/10/2015,Office Equipment - Maintenance ,West and Southern Africa ,Formats Projects Services Limited ,100152-115 ,"1,159.10",
DFID,DFID,13/10/2015,Office Equipment - Maintenance ,West and Southern Africa ,Formats Projects Services Limited ,101622-107 ,"4,636.40",
DFID,DFID,28/10/2015,Project delivery costs – supplier services ,West and Southern Africa ,UHL-Golden Tulip Festac ,204438-101 ,"20,646.72",
DFID,DFID,26/10/2015,Vehicle Repairs & Maintenance ,West and Southern Africa ,Cerra Automotive (SL) Ltd ,101629-101 ,"1,758.71",
DFID,DFID,06/10/2015,Vehicle Repairs & Maintenance ,West and Southern Africa ,Cerra Automotive (SL) Ltd ,101629-101 ,722.27,
DFID,DFID,26/10/2015,Vehicle Repairs & Maintenance ,West and Southern Africa ,Cerra Automotive (SL) Ltd ,101629-101 ,"1,421.86",
DFID,DFID,26/10/2015,Vehicle Repairs & Maintenance ,West and Southern Africa ,Cerra Automotive (SL) Ltd ,100214-101 ,947.91,
DFID,DFID,26/10/2015,Vehicle Repairs & Maintenance ,West and Southern Africa ,Cerra Automotive (SL) Ltd ,100214-101 ,"1,172.47",
DFID,DFID,21/10/2015,Aid Programme - Accountable Grant Payments ,Policy Division ,European Timber Trade Federation ,201724-107 ,"130,502.77",
DFID,DFID,20/10/2015,Secure Staff Accommodation ,West and Southern Africa ,Supplier Name withheld ,101620-101 ,"11,254.85",
DFID,DFID,13/10/2015,Secure Staff Accommodation ,Economic Development Division ,Supplier Name withheld ,100124-101 ,"1,714.33",
DFID,DFID,07/10/2015,Training Providers/Facilitation Services ,Internal Audit ,University of Portsmouth Enterprise Limited ,100121-101 ,"2,050.00",
DFID,DFID,06/10/2015,Aid Programme - Accountable Grant Payments ,Western Asia Division ,Idara-e-Taleem-o-Aagahi ,202491-105 ,"124,687.00",
DFID,DFID,22/10/2015,Aid Programme - Core contributions ,Research and Evidence Division ,Biotechnology & Biological Sciences Research Council ,202038-101 ,"356,343.37",
DFID,DFID,12/10/2015,Furniture & Fittings ,Group Operations ,Flexiform Business Furniture Limited ,203716-101 ,"2,546.40",
DFID,DFID,16/10/2015,Aid Programme - Accountable Grant Payments ,Research and Evidence Division ,International Union Against Tuberculosis and Lung Disease ,202506-103 ,"141,983.38",
DFID,DFID,30/10/2015,Training Providers/Facilitation Services ,Policy Division ,Pilgrims Group ,202402-107 ,556.58,
DFID,DFID,23/10/2015,Hostile Environment Training ,Economic Development Division ,Pilgrims Group ,202373-101 ,640.60,
DFID,DFID,16/10/2015,Hostile Environment Training ,Middle East  Humanitarian & Conflict Division ,Pilgrims Group ,202410-101 ,677.26,
DFID,DFID,15/10/2015,Hostile Environment Training ,Research and Evidence Division ,Pilgrims Group ,202392-107 ,902.26,
DFID,DFID,06/10/2015,Hostile Environment Training ,Research and Evidence Division ,Pilgrims Group ,202392-107 ,902.26,
DFID,DFID,29/10/2015,Hostile Environment Training ,Research and Evidence Division ,Pilgrims Group ,202392-109 ,640.60,
DFID,DFID,29/10/2015,Hostile Environment Training ,Regional Directorate ,Pilgrims Group ,204833-101 ,790.60,
DFID,DFID,23/10/2015,Hostile Environment Training ,Regional Directorate ,Pilgrims Group ,204833-101 ,"1,030.34",
DFID,DFID,19/10/2015,Hostile Environment Training ,Non-Departmental Public Body ,Pilgrims Group ,204859-103 ,556.58,
DFID,DFID,23/10/2015,Hostile Environment Training ,Research and Evidence Division ,Pilgrims Group ,100088-119 ,948.72,
DFID,DFID,01/10/2015,Hostile Environment Training ,Research and Evidence Division ,Pilgrims Group ,100088-119 ,907.49,
DFID,DFID,30/10/2015,Hostile Environment Training ,East and Central Africa ,Pilgrims Group ,101635-101 ,790.60,
DFID,DFID,29/10/2015,Hostile Environment Training ,East and Central Africa ,Pilgrims Group ,101633-101 ,667.90,
DFID,DFID,11/10/2015,Hostile Environment Training ,Western Asia Division ,Pilgrims Group ,101624-101 ,556.58,
DFID,DFID,08/10/2015,Hostile Environment Training ,Western Asia Division ,Pilgrims Group ,101624-101 ,756.24,
DFID,DFID,29/10/2015,Hostile Environment Training ,Western Asia Division ,Supplier Name withheld ,101601-110 ,606.24,
DFID,DFID,15/10/2015,Hostile Environment Training ,Top Management Group ,Pilgrims Group ,100232-106 ,677.26,
DFID,DFID,20/10/2015,Aid Programme - Accountable Grant Payments ,Western Asia Division ,Supplier Name withheld ,200898-117 ,"880,746.67",
DFID,DFID,13/10/2015,Generators & spares ,West and Southern Africa ,Enjay Technical Services Limited ,101622-103 ,706.01,
DFID,DFID,13/10/2015,Generators & spares ,West and Southern Africa ,Enjay Technical Services Limited ,101622-105 ,"3,805.32",
